Ref No,Fund Type,Dept,Cost Centre Description    ,Description    ,Creditor Name    ,GL Code Net Amount,Payment date        
2,Revenue,CAHD,Bed Purchasing - North,Permanent Nursing,.,2445.6, 10-Apr-2018
3,Revenue,CAHD,Bed Purchasing - North,Permanent Nursing,.,2400, 10-Apr-2018
4,Revenue,CAHD,Bed Purchasing - Southmead Hospital,Permanent Nursing,.,2477.4, 10-Apr-2018
5,Revenue,CAHD,Bed Purchasing - Southmead Hospital,Permanent Nursing,.,2431.2, 10-Apr-2018
6,Revenue,CAHD,Bed Purchasing - South,Permanent Nursing,.,1282.14, 10-Apr-2018
7,Revenue,CAHD,Bed Purchasing - South,Permanent Nursing,.,1258.24, 10-Apr-2018
8,Revenue,CAHD,Bed Purchasing - Elderly S117- North,Permanent Nursing,.,1987.94, 10-Apr-2018
9,Revenue,CAHD,Bed Purchasing - Elderly S117- North,Permanent Nursing,.,1950.88, 10-Apr-2018
10,Revenue,CAHD,Bed Purchasing - South,Permanent Residential,.,2139.9, 10-Apr-2018
11,Revenue,CAHD,Bed Purchasing - South,Permanent Residential,.,2100, 10-Apr-2018
12,Revenue,CAHD,Bed Purchasing - Elderly S117- North,Permanent Nursing,.,2154.82, 10-Apr-2018
13,Revenue,CAHD,Bed Purchasing - Elderly S117- North,Permanent Nursing,.,2114.64, 10-Apr-2018
14,Revenue,CAHD,Bed Purchasing - North,Permanent Nursing,.,2477.4, 10-Apr-2018
15,Revenue,CAHD,Bed Purchasing - North,Permanent Nursing,.,2431.2, 10-Apr-2018
16,Revenue,CAHD,Bed Purchasing - Elderly S117- North,Permanent Nursing,.,2761.6, 10-Apr-2018
17,Revenue,CAHD,Bed Purchasing - Elderly S117- North,Permanent Nursing,.,2710.1, 10-Apr-2018
18,Revenue,CAHD,Bed Purchasing - South,Permanent Nursing,.,2445.6, 10-Apr-2018
19,Revenue,CAHD,Bed Purchasing - South,Permanent Nursing,.,2400, 10-Apr-2018
20,Revenue,CAHD,Bed Purchasing - North,Permanent Nursing,.,1678.44, 10-Apr-2018
21,Revenue,CAHD,Bed Purchasing - North,Permanent Nursing,.,1647.14, 10-Apr-2018
22,Revenue,CAHD,Bed Purchasing - South,Permanent Nursing,.,1706.6, 10-Apr-2018
23,Revenue,CAHD,Bed Purchasing - South,Permanent Nursing,.,1674.78, 10-Apr-2018
24,Revenue,CAHD,Bed Purchasing - North,Permanent Nursing,.,2241.8, 10-Apr-2018
25,Revenue,CAHD,Bed Purchasing - North,Permanent Nursing,.,2200, 10-Apr-2018
26,Revenue,CAHD,Bed Purchasing - South,Permanent Nursing,.,2241.8, 10-Apr-2018
27,Revenue,CAHD,Bed Purchasing - South,Permanent Nursing,.,2200, 10-Apr-2018
28,Revenue,CAHD,Bed Purchasing - South,Permanent Nursing,.,1678.44, 10-Apr-2018
29,Revenue,CAHD,Bed Purchasing - South,Permanent Nursing,.,1647.14, 10-Apr-2018
30,Revenue,CAHD,Bed Purchasing - Southmead Hospital,Permanent Nursing,.,2445.6, 10-Apr-2018
31,Revenue,CAHD,Bed Purchasing - Southmead Hospital,Permanent Nursing,.,2400, 10-Apr-2018
32,Revenue,CAHD,Bed Purchasing - North,Permanent Residential,.,2167.72, 10-Apr-2018
33,Revenue,CAHD,Bed Purchasing - North,Permanent Residential,.,2127.3, 10-Apr-2018
34,Revenue,CAHD,Bed Purchasing - South,Permanent Nursing,.,1845.14, 10-Apr-2018
35,Revenue,CAHD,Bed Purchasing - South,Permanent Nursing,.,1810.74, 10-Apr-2018
36,Revenue,CAHD,Bed Purchasing - North,Permanent Nursing,.,2241.8, 10-Apr-2018
37,Revenue,CAHD,Bed Purchasing - North,Permanent Nursing,.,2200, 10-Apr-2018
38,Revenue,CAHD,Bed Purchasing - Southmead Hospital,Permanent Nursing,.,1948.36, 10-Apr-2018
39,Revenue,CAHD,Bed Purchasing - Southmead Hospital,Permanent Nursing,.,1912.04, 10-Apr-2018
40,Revenue,CAHD,Bed Purchasing - Southmead Hospital,Permanent Nursing,.,3142.86, 10-Apr-2018
41,Revenue,CAHD,Bed Purchasing - Southmead Hospital,Permanent Nursing,.,2241.8, 10-Apr-2018
42,Revenue,CAHD,Bed Purchasing - Southmead Hospital,Permanent Nursing,.,2200, 10-Apr-2018
43,Revenue,CAHD,Bed Purchasing - North,Permanent Nursing,.,2154.46, 10-Apr-2018
44,Revenue,CAHD,Bed Purchasing - North,Permanent Nursing,.,2114.28, 10-Apr-2018
45,Revenue,CAHD,Bed Purchasing - North,Permanent Nursing,.,2241.8, 10-Apr-2018
46,Revenue,CAHD,Bed Purchasing - North,Permanent Nursing,.,2200, 10-Apr-2018
47,Revenue,CAHD,Bed Purchasing - North,Permanent Nursing,.,2129.6, 10-Apr-2018
48,Revenue,CAHD,Bed Purchasing - North,Permanent Nursing,.,2089.9, 10-Apr-2018
49,Revenue,CAHD,Bed Purchasing - North,Fees & Charges Income - General,.,5178.18, 10-Apr-2018
50,Revenue,CAHD,South Glos Users in South Glos Homes,Permanent Nursing,.,2303.6, 10-Apr-2018
51,Revenue,CAHD,Bed Purchasing - North,Permanent Nursing,.,1587.08, 10-Apr-2018
52,Revenue,CAHD,Bed Purchasing - North,Permanent Nursing,.,1557.48, 10-Apr-2018
53,Revenue,CAHD,Bed Purchasing - South,Permanent Nursing,.,1925.8, 10-Apr-2018
54,Revenue,CAHD,Bed Purchasing - South,Permanent Nursing,.,1889.9, 10-Apr-2018
55,Revenue,CAHD,Bed Purchasing - North,Permanent Nursing,.,7828.96, 10-Apr-2018
56,Revenue,CAHD,Bed Purchasing - North,Permanent Nursing,.,1994.42, 10-Apr-2018
57,Revenue,CAHD,Bed Purchasing - North,Permanent Nursing,.,1957.24, 10-Apr-2018
58,Revenue,CAHD,Bed Purchasing - North,Fees & Charges Income - General,.,1382.46, 10-Apr-2018
59,Revenue,CAHD,Bed Purchasing - Southmead Hospital,Permanent Nursing,.,1948.36, 10-Apr-2018
60,Revenue,CAHD,Bed Purchasing - Southmead Hospital,Permanent Nursing,.,1912.04, 10-Apr-2018
61,Revenue,CAHD,South Glos Users in South Glos Homes,Permanent Nursing,.,620.2, 10-Apr-2018
62,Revenue,CAHD,Bed Purchasing - North,Permanent Residential,.,1806.44, 10-Apr-2018
63,Revenue,CAHD,Bed Purchasing - North,Permanent Residential,.,1772.76, 10-Apr-2018
64,Revenue,CAHD,Bed Purchasing - North,Permanent Nursing,.,6317.8, 10-Apr-2018
65,Revenue,CAHD,Bed Purchasing - North,Permanent Nursing,.,6200, 10-Apr-2018
66,Revenue,CAHD,Bed Purchasing - South,Permanent Residential,.,1548.38, 10-Apr-2018
67,Revenue,CAHD,Bed Purchasing - South,Permanent Residential,.,1519.5, 10-Apr-2018
68,Revenue,CAHD,Bed Purchasing - South,Permanent Nursing,.,1467.36, 10-Apr-2018
69,Revenue,CAHD,Bed Purchasing - South,Permanent Nursing,.,1440, 10-Apr-2018
70,Revenue,CAHD,Bed Purchasing - North,Permanent Residential,.,1416.42, 10-Apr-2018
71,Revenue,CAHD,Bed Purchasing - North,Permanent Residential,.,1390, 10-Apr-2018
72,Revenue,CAHD,Bed Purchasing - North,Permanent Residential,.,7842.86, 10-Apr-2018
73,Revenue,CAHD,Bed Purchasing - North,Permanent Residential,.,1834.2, 10-Apr-2018
74,Revenue,CAHD,Bed Purchasing - North,Permanent Residential,.,1800, 10-Apr-2018
75,Revenue,CAHD,Bed Purchasing - North,Permanent Residential,.,1834.2, 10-Apr-2018
76,Revenue,CAHD,Bed Purchasing - North,Permanent Residential,.,1800, 10-Apr-2018
77,Revenue,CAHD,Bed Purchasing - North,Permanent Residential,.,1834.2, 10-Apr-2018
78,Revenue,CAHD,Bed Purchasing - North,Permanent Residential,.,1800, 10-Apr-2018
79,Revenue,CAHD,Bed Purchasing - North,Permanent Residential,.,1834.2, 10-Apr-2018
80,Revenue,CAHD,Bed Purchasing - North,Permanent Residential,.,1800, 10-Apr-2018
81,Revenue,CAHD,Bed Purchasing - North,Permanent Residential,.,1834.2, 10-Apr-2018
82,Revenue,CAHD,Bed Purchasing - North,Permanent Residential,.,1800, 10-Apr-2018
83,Revenue,CAHD,Bed Purchasing - South,Respite Planned - Residential,.,771.43, 10-Apr-2018
84,Revenue,CAHD,Bed Purchasing - North,Permanent Residential,.,1800, 10-Apr-2018
85,Revenue,CAHD,Bed Purchasing - North,Permanent Residential,.,1834.2, 10-Apr-2018
86,Revenue,CAHD,Bed Purchasing - North,Permanent Residential,.,1834.2, 10-Apr-2018
87,Revenue,CAHD,Bed Purchasing - North,Permanent Residential,.,1800, 10-Apr-2018
88,Revenue,CAHD,Bed Purchasing - North,Permanent Residential,.,771.43, 10-Apr-2018
89,Revenue,CAHD,Bed Purchasing - North,Permanent Residential,.,1834.2, 10-Apr-2018
90,Revenue,CAHD,Bed Purchasing - North,Permanent Residential,.,1800, 10-Apr-2018
91,Revenue,CAHD,Bed Purchasing - North,Respite Planned - Residential,.,1800, 10-Apr-2018
92,Revenue,CAHD,Bed Purchasing - North,Respite Planned - Residential,.,524.06, 10-Apr-2018
93,Revenue,CAHD,Bed Purchasing - North,Permanent Residential,.,3000, 10-Apr-2018
94,Revenue,CAHD,Bed Purchasing - North,Permanent Residential,.,1528.5, 10-Apr-2018
95,Revenue,CAHD,Bed Purchasing - North,Permanent Residential,.,1500, 10-Apr-2018
96,Revenue,CAHD,18-25 Year Olds,Permanent Residential,1 St Georges House,6510.5, 10-Apr-2018
97,Revenue,CAHD,18-25 Year Olds,Permanent Residential,1 St Georges House,6389.1, 10-Apr-2018
98,Revenue,CAHD,Supporting People Programme,Grants to Voluntary Bodies,1625 Independent People,18078, 06-Apr-2018
99,Revenue,CAHD,Bed Purchasing - Southmead Hospital,Permanent Residential,1St Floor Lingfield House,1324.7, 10-Apr-2018
100,Revenue,CAHD,Bed Purchasing - Southmead Hospital,Permanent Residential,1St Floor Lingfield House,1300, 10-Apr-2018
101,Revenue,CAHD,Bed Purchasing - North,Permanent Residential,1St Floor Lingfield House,1324.7, 10-Apr-2018
102,Revenue,CAHD,Bed Purchasing - North,Permanent Residential,1St Floor Lingfield House,1300, 10-Apr-2018
103,Revenue,CAHD,Home Care - Elderly - South,Day Care / Social Activities,3 Trees Community Support Ltd,93.4, 11-Apr-2018
104,Revenue,CAHD,Home Care - Elderly - North,Day Care / Social Activities,3 Trees Community Support Ltd,1148.82, 11-Apr-2018
105,Revenue,CAHD,Home Care - Elderly - North,Other Small Contracts,3 Trees Community Support Ltd,705.17, 11-Apr-2018
106,Revenue,CAHD,Home Care - Elderly - North,Supported Living,3 Trees Community Support Ltd,7442.7, 11-Apr-2018
107,Revenue,CAHD,Home Care - Elderly - South,Day Care / Social Activities,3 Trees Community Support Ltd,93.4, 11-Apr-2018
108,Revenue,CAHD,Home Care - Elderly - North,Day Care / Social Activities,3 Trees Community Support Ltd,957.35, 11-Apr-2018
109,Revenue,CAHD,Home Care - Elderly - North,Other Small Contracts,3 Trees Community Support Ltd,709.84, 11-Apr-2018
110,Revenue,CAHD,Home Care - Elderly - North,Supported Living,3 Trees Community Support Ltd,7436.09, 11-Apr-2018
111,Revenue,CAHD,Home Care - Elderly - South,Day Care / Social Activities,3 Trees Community Support Ltd,93.4, 18-Apr-2018
112,Revenue,CAHD,Home Care - Elderly - North,Day Care / Social Activities,3 Trees Community Support Ltd,1055.42, 18-Apr-2018
113,Revenue,CAHD,Home Care - Elderly - North,Other Small Contracts,3 Trees Community Support Ltd,709.84, 18-Apr-2018
114,Revenue,CAHD,Home Care - Elderly - North,Supported Living,3 Trees Community Support Ltd,7436.09, 18-Apr-2018
115,Revenue,CAHD,Home Care - Elderly - North,Day Care / Social Activities,3 Trees Community Support Ltd,1175.72, 24-Apr-2018
116,Revenue,CAHD,Home Care - Elderly - North,Other Small Contracts,3 Trees Community Support Ltd,723.52, 24-Apr-2018
117,Revenue,CAHD,Home Care - Elderly - North,Supported Living,3 Trees Community Support Ltd,7590.85, 24-Apr-2018
118,Revenue,CAHD,18-25 Year Olds,Permanent Residential,5Th Floor Harlech Court,7448.7, 10-Apr-2018
119,Revenue,CAHD,18-25 Year Olds,Permanent Residential,5Th Floor Harlech Court,7309.82, 10-Apr-2018
120,Revenue,CAHD,18-25 Year Olds,Permanent Residential,5Th Floor Harlech Court,7520.22, 10-Apr-2018
121,Revenue,CAHD,18-25 Year Olds,Permanent Residential,5Th Floor Harlech Court,7380, 10-Apr-2018
122,Revenue,CAHD,18-25 Year Olds,Permanent Residential,5Th Floor Harlech Court,6690.12, 10-Apr-2018
123,Revenue,CAHD,18-25 Year Olds,Permanent Residential,5Th Floor Harlech Court,6565.38, 10-Apr-2018
124,Revenue,CAHD,Bed Purchasing - North,Permanent Residential,5Th Floor Harlech Court,8086.08, 10-Apr-2018
125,Revenue,CAHD,Bed Purchasing - North,Permanent Residential,5Th Floor Harlech Court,7935.3, 10-Apr-2018
126,Revenue,CAHD,18-25 Year Olds,Permanent Residential,5Th Floor Harlech Court,8896.16, 10-Apr-2018
127,Revenue,CAHD,18-25 Year Olds,Permanent Residential,5Th Floor Harlech Court,8730.28, 10-Apr-2018
128,Revenue,CAHD,Bed Purchasing - North,Permanent Residential,5Th Floor Harlech Court,6746.02, 10-Apr-2018
129,Revenue,CAHD,Bed Purchasing - North,Permanent Residential,5Th Floor Harlech Court,6620.24, 10-Apr-2018
130,Revenue,CAHD,18-25 Year Olds,Permanent Residential,5Th Floor Harlech Court,6752.72, 10-Apr-2018
131,Revenue,CAHD,18-25 Year Olds,Permanent Residential,5Th Floor Harlech Court,6626.82, 10-Apr-2018
132,Revenue,CAHD,Bed Purchasing - North,Permanent Residential,5Th Floor Harlech Court,7186.12, 10-Apr-2018
133,Revenue,CAHD,Jointly Funded H&SC Packages,Permanent Residential,5Th Floor Harlech Court,1778.24, 10-Apr-2018
134,Revenue,CAHD,Bed Purchasing - North,Permanent Residential,5Th Floor Harlech Court,7052.14, 10-Apr-2018
135,Revenue,CAHD,Jointly Funded H&SC Packages,Permanent Residential,5Th Floor Harlech Court,1745.08, 10-Apr-2018
136,Revenue,CAHD,18-25 Year Olds,Permanent Residential,5Th Floor Harlech Court,8510.7, 10-Apr-2018
137,Revenue,CAHD,18-25 Year Olds,Permanent Residential,5Th Floor Harlech Court,8352.02, 10-Apr-2018
138,Revenue,CAHD,Bed Purchasing - South,Permanent Residential,5Th Floor Harlech Court,8138.24, 10-Apr-2018
139,Revenue,CAHD,Bed Purchasing - South,Permanent Residential,5Th Floor Harlech Court,7986.5, 10-Apr-2018
140,Revenue,CAHD,Bed Purchasing - South,Permanent Residential,5Th Floor Harlech Court,5087.66, 10-Apr-2018
141,Revenue,CAHD,Bed Purchasing - South,Permanent Residential,5Th Floor Harlech Court,4992.8, 10-Apr-2018
142,Revenue,CAHD,Bed purchasing - S28A Under 65 - South,Permanent Residential,5Th Floor Harlech Court,5324.56, 10-Apr-2018
143,Revenue,CAHD,Bed purchasing - S28A Under 65 - South,Permanent Residential,5Th Floor Harlech Court,5225.28, 10-Apr-2018
144,Revenue,CAHD,Bed Purchasing - South,Permanent Residential,5Th Floor Harlech Court,5584.18, 10-Apr-2018
145,Revenue,CAHD,Bed Purchasing - South,Permanent Residential,5Th Floor Harlech Court,5480.06, 10-Apr-2018
146,Revenue,CAHD,Alexandra Way,Mechanical & Electrical Maintenance,A E Horder (Contracting) Limited,3127.38, 30-Apr-2018
147,Revenue,CAHD,Alexandra Way,Mechanical & Electrical Maintenance,A E Horder (Contracting) Limited,1626.78, 30-Apr-2018
148,Revenue,CAHD,Bed Purchasing - North,Permanent Nursing,ABI Development Limited,3868.04, 10-Apr-2018
149,Revenue,CAHD,Bed Purchasing - North,Permanent Nursing,ABI Development Limited,3795.92, 10-Apr-2018
150,Revenue,CAHD,Home Care - Elderly - South,Day Care / Social Activities,About Me Care and Support Limited,1359.04, 16-Apr-2018
151,Revenue,CAHD,Home Care - Elderly - North,Day Care / Social Activities,About Me Care and Support Limited,613.76, 16-Apr-2018
152,Revenue,CAHD,Home Care - Elderly - South,Day Care / Social Activities,About Me Care and Support Limited,832.96, 16-Apr-2018
153,Revenue,CAHD,Training Budget - Children`s Social Serv,Training Expenses,AC Education Ltd,550, 27-Apr-2018
154,Revenue,CAHD,Training Budget - Children`s Social Serv,Training Expenses,Achieving for Children,3465, 20-Apr-2018
155,Revenue,CAHD,Training - Adult Services,Training Expenses,Acorn Health & Safety Limited,465, 13-Apr-2018
156,Revenue,CAHD,Training - Adult Services,Training Expenses,Acorn Health & Safety Limited,465, 04-Apr-2018
157,Revenue,CAHD,Training Budget - Children`s Social Serv,Training Expenses,Acorn Health & Safety Limited,449, 11-Apr-2018
158,Revenue,CAHD,Training - Adult Services,Training Expenses,Acorn Health & Safety Limited,465, 10-Apr-2018
159,Revenue,CAHD,Older People's Commissioned Se,Grants to Voluntary Bodies,Action for Blind People,24975, 13-Apr-2018
160,Revenue,CAHD,Minor Adaptations Service,Grants to Voluntary Bodies,Action for Blind People,2500, 13-Apr-2018
161,Revenue,CAHD,CSC - Emergency Duty Team,Interpreting & Translation,Action on Hearing Loss,561, 18-Apr-2018
162,Revenue,CAHD,Home Care - Elderly - South,Other Small Contracts,Advantedge Commercial Finance Limited,2298.24, 26-Apr-2018
163,Revenue,CAHD,Home Care - Elderly - North,Other Small Contracts,Advantedge Commercial Finance Limited,766.08, 18-Apr-2018
164,Revenue,CAHD,Mental Health and Emotional Wellbeing,Other Small Contracts,Age UK South Gloucestershire,13725, 13-Apr-2018
165,Revenue,CAHD,Home Care - Elderly - South,Other Small Contracts,Agincare UK Limited,1992.52, 11-Apr-2018
166,Revenue,CAHD,Home Care - Elderly - North,Other Small Contracts,Agincare UK Limited,1312.36, 11-Apr-2018
167,Revenue,CAHD,Home Care - Elderly - South,Other Small Contracts,Agincare UK Limited,2057.92, 06-Apr-2018
168,Revenue,CAHD,Home Care - Elderly - North,Other Small Contracts,Agincare UK Limited,1386.48, 06-Apr-2018
169,Revenue,CAHD,Home Care - Elderly - South,Other Small Contracts,Agincare UK Limited,2036.12, 18-Apr-2018
170,Revenue,CAHD,Home Care - Elderly - North,Other Small Contracts,Agincare UK Limited,1430.08, 18-Apr-2018
171,Revenue,CAHD,Home Care - Elderly - South,Other Small Contracts,Agincare UK Limited,1935.84, 24-Apr-2018
172,Revenue,CAHD,Home Care - Elderly - North,Other Small Contracts,Agincare UK Limited,1473.68, 24-Apr-2018
173,Revenue,CAHD,Home Care - Elderly - South,Other Small Contracts,Agincare UK Limited,1922.4, 30-Apr-2018
174,Revenue,CAHD,Home Care - Elderly - North,Other Small Contracts,Agincare UK Limited,1424, 30-Apr-2018
175,Revenue,CAHD,Extra Care Housing,Private & Voluntary Home Care,Agincare UK Limited,25811, 04-Apr-2018
176,Revenue,CAHD,Extra Care Housing,Private & Voluntary Home Care,Agincare UK Limited,3529.76, 12-Apr-2018
177,Revenue,CAHD,Extra Care Housing,Private & Voluntary Home Care,Agincare UK Limited,3067.33, 12-Apr-2018
178,Revenue,CAHD,Extra Care Housing,Private & Voluntary Home Care,Agincare UK Limited,2914.6, 12-Apr-2018
179,Revenue,CAHD,Extra Care Housing,Private & Voluntary Home Care,Agincare UK Limited,2367.32, 12-Apr-2018
180,Revenue,CAHD,Extra Care Housing,Private & Voluntary Home Care,Agincare UK Limited,1070.82, 12-Apr-2018
181,Revenue,CAHD,Extra Care Housing,Private & Voluntary Home Care,Agincare UK Limited,4274.83, 12-Apr-2018
182,Revenue,CAHD,Extra Care Housing,Private & Voluntary Home Care,Agincare UK Limited,1544.76, 12-Apr-2018
183,Revenue,CAHD,Extra Care Housing,Private & Voluntary Home Care,Agincare UK Limited,3200.89, 12-Apr-2018
184,Revenue,CAHD,Prison Assessments & Costs,Other Supplies & Services,Agincare UK Limited,4966.5, 23-Apr-2018
185,Revenue,CAHD,CSC - Vinney Green Secure Unit,Training Expenses,Aim Project,2244.71, 20-Apr-2018
186,Revenue,CAHD,Home Care - Elderly - South,Other Small Contracts,AliMo Care Ltd,855.68, 06-Apr-2018
187,Revenue,CAHD,Home Care - Elderly - South,Other Small Contracts,AliMo Care Ltd,985.6, 13-Apr-2018
188,Revenue,CAHD,Home Care - Elderly - South,Other Small Contracts,AliMo Care Ltd,779.52, 19-Apr-2018
189,Revenue,CAHD,Home Care - Elderly - South,Other Small Contracts,AliMo Care Ltd,810.88, 25-Apr-2018
190,Revenue,CAHD,Bed Purchasing - Southmead Hospital,Permanent Nursing,Allambie Court,1133.02, 10-Apr-2018
191,Revenue,CAHD,Bed Purchasing - Southmead Hospital,Permanent Nursing,Allambie Court,1111.9, 10-Apr-2018
192,Revenue,CAHD,Bed Purchasing - Southmead Hospital,Permanent Nursing,Allambie Court,1133.02, 10-Apr-2018
193,Revenue,CAHD,Bed Purchasing - Southmead Hospital,Permanent Nursing,Allambie Court,1111.9, 10-Apr-2018
194,Revenue,CAHD,Tenancy Start Up Scheme,Other Supplies & Services,Allen & Harris,1900, 23-Apr-2018
195,Revenue,CAHD,Mental Health and Emotional Wellbeing,Other Small Contracts,Alzheimers Society,11142.75, 13-Apr-2018
196,Revenue,CAHD,Bed Purchasing - South,Permanent Nursing,Ambleside Nusing Home,1083.28, 10-Apr-2018
197,Revenue,CAHD,Bed Purchasing - South,Permanent Nursing,Ambleside Nusing Home,1063.08, 10-Apr-2018
198,Revenue,CAHD,Bed Purchasing - Southmead Hospital,Permanent Nursing,Amerind Grove Nursing Home,1321.44, 10-Apr-2018
199,Revenue,CAHD,Bed Purchasing - Southmead Hospital,Permanent Nursing,Amerind Grove Nursing Home,1296.8, 10-Apr-2018
200,Revenue,CAHD,CSC - Agency Fostering,Foster Parent Allowances,Amicus Foster Care Ltd,5234.56, 30-Apr-2018
201,Revenue,CAHD,CSC - Agency Fostering,Foster Parent Allowances,Amicus Foster Care Ltd,4721.61, 30-Apr-2018
202,Revenue,CAHD,Supporting People Programme,Grants to Voluntary Bodies,Anchor Housing,838.25, 06-Apr-2018
203,Revenue,CAHD,Discretionary Housing Payment,Other Supplies & Services,Individual,1723.29, 17-Apr-2018
204,Revenue,CAHD,CSC - Section 17 0-25,Preventative Assistance,Individual,2280, 24-Apr-2018
205,Revenue,CAHD,CSC - Adoption Support Fund,Post Adoption,Individual,565, 26-Apr-2018
206,Revenue,CAHD,CSC - Safeguarding Board,Training Expenses,Individual,1640, 10-Apr-2018
207,Revenue,CAHD,CSC - Safeguarding Board,Training Expenses,Individual,2587.5, 10-Apr-2018
208,Revenue,CAHD,EARLY YEARS DISABILITY  ACCES FUND,Preventative Assistance,Apple Tree Pre-School,615, 04-Apr-2018
209,Revenue,CAHD,Virtual School for Looked After Children,Conference Expenses,Aquaterra Leisure,1262.15, 23-Apr-2018
210,Revenue,CAHD,Bed Purchasing - North,Permanent Residential,Ark Care Homes Ltd,5740.46, 10-Apr-2018
211,Revenue,CAHD,Bed Purchasing - North,Permanent Residential,Ark Care Homes Ltd,5633.42, 10-Apr-2018
212,Revenue,CAHD,Bed Purchasing - South,Permanent Nursing,Ash Grove House,1445.14, 10-Apr-2018
213,Revenue,CAHD,Bed Purchasing - South,Permanent Nursing,Ash Grove House,1418.2, 10-Apr-2018
214,Revenue,CAHD,Jointly Funded H&SC Packages,Permanent Residential,Ash View House,542.68, 10-Apr-2018
215,Revenue,CAHD,Bed Purchasing - South,Permanent Residential,Ash View House,2646.98, 10-Apr-2018
216,Revenue,CAHD,Jointly Funded H&SC Packages,Permanent Residential,Ash View House,532.56, 10-Apr-2018
217,Revenue,CAHD,Bed Purchasing - South,Permanent Residential,Ash View House,2597.62, 10-Apr-2018
218,Revenue,CAHD,S117 Placements PCT,Permanent Residential,Ash View House,3689.6, 10-Apr-2018
219,Revenue,CAHD,S117 Placements PCT,Permanent Residential,Ash View House,3620.8, 10-Apr-2018
220,Revenue,CAHD,18-25 Year Olds,Permanent Residential,Ash View House,3466.56, 10-Apr-2018
221,Revenue,CAHD,18-25 Year Olds,Permanent Residential,Ash View House,3401.92, 10-Apr-2018
222,Revenue,CAHD,Section 117 Placements MH Younger,Permanent Residential,Ash View House,2404.36, 10-Apr-2018
223,Revenue,CAHD,Jointly Funded H&SC Packages,Permanent Residential,Ash View House,1030.46, 10-Apr-2018
224,Revenue,CAHD,Section 117 Placements MH Younger,Permanent Residential,Ash View House,2359.54, 10-Apr-2018
225,Revenue,CAHD,Jointly Funded H&SC Packages,Permanent Residential,Ash View House,1011.24, 10-Apr-2018
226,Revenue,CAHD,Bed purchasing - Elderly S117 - South,Permanent Residential,Ash View House,3267.96, 10-Apr-2018
227,Revenue,CAHD,Bed purchasing - Elderly S117 - South,Permanent Residential,Ash View House,3207.02, 10-Apr-2018
228,Revenue,CAHD,18-25 Year Olds,Permanent Residential,Ash View House,3230.24, 10-Apr-2018
229,Revenue,CAHD,18-25 Year Olds,Permanent Residential,Ash View House,3170, 10-Apr-2018
230,Revenue,CAHD,DAT Treatment,Electricity,Ashville Asset Management Limited,686.17, 30-Apr-2018
231,Revenue,CAHD,Bed Purchasing - North,Permanent Residential,Aspects 2 Limited,3531.2, 10-Apr-2018
232,Revenue,CAHD,Bed Purchasing - North,Permanent Residential,Aspects 2 Limited,3465.36, 10-Apr-2018
233,Revenue,CAHD,Supporting People Programme,Grants to Voluntary Bodies,Aspects and Milestones Trust,3364.07, 06-Apr-2018
234,Revenue,CAHD,Supporting People Programme,Grants to Voluntary Bodies,Aspects and Milestones Trust,1687, 06-Apr-2018
235,Revenue,CAHD,Supporting People Programme,Grants to Voluntary Bodies,Aspects and Milestones Trust,666.2, 06-Apr-2018
236,Revenue,CAHD,Supporting People Programme,Grants to Voluntary Bodies,Aspects and Milestones Trust,666.2, 06-Apr-2018
237,Revenue,CAHD,CSC - Vinney Green Secure Unit,R & M by Departments,ASSA Abloy Ltd,1338.88, 27-Apr-2018
238,Revenue,CAHD,Add cost residential care contracts,Permanent Residential,Ategi Limited,12520.02, 12-Apr-2018
239,Revenue,CAHD,Independent Special Placements - Pre 16,Other Private Contractors,Aurora Hedgeway School,15114.67, 20-Apr-2018
240,Revenue,CAHD,Independent Special Placements - Pre 16,Other Private Contractors,Aurora Hedgeway School,15154.33, 20-Apr-2018
241,Revenue,CAHD,Independent Special Placements - Pre 16,Other Private Contractors,Aurora Hedgeway School,15154.33, 20-Apr-2018
242,Revenue,CAHD,Independent Special Placements - Pre 16,Other Private Contractors,Aurora Hedgeway School,15114.67, 20-Apr-2018
243,Revenue,CAHD,Independent Special Placements - Pre 16,Other Private Contractors,Aurora Hedgeway School,15154.33, 20-Apr-2018
244,Revenue,CAHD,Independent Special Placements - Pre 16,Other Private Contractors,Aurora Hedgeway School,15154.33, 20-Apr-2018
245,Revenue,CAHD,Independent Special Placements - Pre 16,Other Private Contractors,Aurora Hedgeway School,15154.33, 20-Apr-2018
246,Revenue,CAHD,Independent Special Placements - Pre 16,Other Private Contractors,Aurora Hedgeway School,15154.33, 20-Apr-2018
247,Revenue,CAHD,Independent Special Placements - Pre 16,Other Private Contractors,Aurora Hedgeway School,15154.33, 20-Apr-2018
248,Revenue,CAHD,Independent Special Placements - Pre 16,Other Private Contractors,Aurora Hedgeway School,15154.33, 20-Apr-2018
249,Revenue,CAHD,Independent Special Placements - Pre 16,Other Private Contractors,Aurora Hedgeway School,16984, 20-Apr-2018
250,Revenue,CAHD,Bed Purchasing - South,Permanent Residential,Autism Specialised Care Homes,3177.18, 10-Apr-2018
251,Revenue,CAHD,Bed Purchasing - South,Permanent Residential,Autism Specialised Care Homes,3117.94, 10-Apr-2018
252,Revenue,CAHD,Mental Health and Emotional Wellbeing,Project Funding,Avon & Wiltshire Mental Health,2105, 13-Apr-2018
253,Revenue,CAHD,Early Years High Needs Support,Other Private Contractors,Baker Street Nursery & Pre-School,845.54, 24-Apr-2018
254,Revenue,CAHD,"Education, Learning and Skills",Agency Staff (Admin/Support Staff) Pay,Baltimore Consulting Group,7762.5, 03-Apr-2018
255,Revenue,CAHD,"Education, Learning and Skills",Agency Staff (Admin/Support Staff) Pay,Baltimore Consulting Group,5692.5, 03-Apr-2018
256,Revenue,CAHD,CSC - Legal Fees,Legal Fees,Barcan+Kirby LLP,810, 10-Apr-2018
257,Revenue,CAHD,CSC - Family Group Conferencing,Grants to Voluntary Bodies,Barnardo Services Limited,5422.75, 11-Apr-2018
258,Revenue,CAHD,Pensions - Non DSG,Annual Pension,Bath & North East Somerset Council,5908.15, 13-Apr-2018
259,Revenue,CAHD,Pensions - Non DSG,Annual Pension,Bath & North East Somerset Council,5908.15, 17-Apr-2018
260,Revenue,CAHD,Independent Special Placements - Pre 16,Other Private Contractors,Bath Road Priory,10806.15, 03-Apr-2018
261,Revenue,CAHD,Independent Special Placements - Pre 16,Other Private Contractors,Bath Road Priory,77550, 03-Apr-2018
262,Revenue,CAHD,Training - Adult Services,Training Expenses,BCS The Chartered Institute for IT,1390, 10-Apr-2018
263,Revenue,CAHD,Pathway 3 - (Complex Beds),Permanent Nursing,Beaufort Care Ltd,5339, 18-Apr-2018
264,Revenue,CAHD,Bed Purchasing - Southmead Hospital,Permanent Nursing,Beaufort Grange Care Home,2333.4, 10-Apr-2018
265,Revenue,CAHD,Bed Purchasing - Southmead Hospital,Permanent Nursing,Beaufort Grange Care Home,2289.9, 10-Apr-2018
266,Revenue,CAHD,Bed Purchasing - Southmead Hospital,Fees & Charges Income - General,Beaufort Grange Care Home,595.42, 10-Apr-2018
267,Revenue,CAHD,Bed Purchasing - Southmead Hospital,Fees & Charges Income - General,Beaufort Grange Care Home,1306.21, 10-Apr-2018
268,Revenue,CAHD,Bed Purchasing - Elderly S117- North,Permanent Nursing,Beaufort Grange Care Home,2381.36, 10-Apr-2018
269,Revenue,CAHD,Bed Purchasing - Elderly S117- North,Permanent Nursing,Beaufort Grange Care Home,2336.96, 10-Apr-2018
270,Revenue,CAHD,Bed Purchasing - North,Permanent Residential,Beaufort House,1244.9, 10-Apr-2018
271,Revenue,CAHD,Bed Purchasing - North,Permanent Residential,Beaufort House,1221.68, 10-Apr-2018
272,Revenue,CAHD,Bed Purchasing - Southmead Hospital,Permanent Residential,Beaufort House,1355.28, 10-Apr-2018
273,Revenue,CAHD,Bed Purchasing - Southmead Hospital,Permanent Residential,Beaufort House,1330, 10-Apr-2018
274,Revenue,CAHD,Bed Purchasing - North,Permanent Residential,Beaufort House,1255.56, 10-Apr-2018
275,Revenue,CAHD,Bed Purchasing - North,Permanent Residential,Beaufort House,1232.14, 10-Apr-2018
276,Revenue,CAHD,Bed Purchasing - South,Permanent Residential,Beaufort House,1238.7, 10-Apr-2018
277,Revenue,CAHD,Bed Purchasing - South,Permanent Residential,Beaufort House,1215.6, 10-Apr-2018
278,Revenue,CAHD,Bed Purchasing - South,Permanent Residential,Beaufort House,1191.92, 10-Apr-2018
279,Revenue,CAHD,Bed Purchasing - South,Permanent Residential,Beaufort House,1169.7, 10-Apr-2018
280,Revenue,CAHD,Bed Purchasing - Southmead Hospital,Respite Planned - Residential,Beaufort House,1355.28, 10-Apr-2018
281,Revenue,CAHD,Bed Purchasing - Southmead Hospital,Respite Planned - Residential,Beaufort House,1330, 10-Apr-2018
282,Revenue,CAHD,Bed Purchasing - North,Permanent Residential,Beaufort House,1226.78, 10-Apr-2018
283,Revenue,CAHD,Bed Purchasing - North,Permanent Residential,Beaufort House,1203.9, 10-Apr-2018
284,Revenue,CAHD,Bed Purchasing - Southmead Hospital,Permanent Residential,Beaufort House,1355.28, 10-Apr-2018
285,Revenue,CAHD,Bed Purchasing - Southmead Hospital,Permanent Residential,Beaufort House,1330, 10-Apr-2018
286,Revenue,CAHD,Bed Purchasing - Southmead Hospital,Permanent Residential,Beaufort House,1324.7, 10-Apr-2018
287,Revenue,CAHD,Bed Purchasing - Southmead Hospital,Permanent Residential,Beaufort House,1300, 10-Apr-2018
288,Revenue,CAHD,Bed Purchasing - North,Permanent Residential,Beaufort House,1318.32, 10-Apr-2018
289,Revenue,CAHD,Bed Purchasing - North,Permanent Residential,Beaufort House,1293.74, 10-Apr-2018
290,Revenue,CAHD,Bed Purchasing - South,Permanent Residential,Beaufort House,1324.7, 10-Apr-2018
291,Revenue,CAHD,Bed Purchasing - South,Permanent Residential,Beaufort House,1300, 10-Apr-2018
292,Revenue,CAHD,Bed Purchasing - Southmead Hospital,Permanent Residential,Beaufort House,1255.56, 10-Apr-2018
293,Revenue,CAHD,Bed Purchasing - Southmead Hospital,Permanent Residential,Beaufort House,1232.14, 10-Apr-2018
294,Revenue,CAHD,Bed Purchasing - Southmead Hospital,Permanent Residential,Beaufort House,1341.92, 10-Apr-2018
295,Revenue,CAHD,Bed Purchasing - Southmead Hospital,Permanent Residential,Beaufort House,1316.9, 10-Apr-2018
296,Revenue,CAHD,Bed Purchasing - South,Permanent Residential,Beech House,1445.14, 10-Apr-2018
297,Revenue,CAHD,Bed Purchasing - South,Permanent Residential,Beech House,1418.2, 10-Apr-2018
298,Revenue,CAHD,Bed Purchasing - North,Permanent Residential,Beech House,3000, 10-Apr-2018
299,Revenue,CAHD,Bed Purchasing - North,Permanent Residential,Beech House,2880, 10-Apr-2018
300,Revenue,CAHD,Bed Purchasing - North,Permanent Residential,Beech House,1711.92, 10-Apr-2018
301,Revenue,CAHD,Bed Purchasing - North,Permanent Residential,Beech House,1680, 10-Apr-2018
302,Revenue,CAHD,Bed Purchasing - North,Fees & Charges Income - General,Beech House,801.93, 10-Apr-2018
303,Revenue,CAHD,Bed Purchasing - North,Fees & Charges Income - General,Beech House,954.68, 10-Apr-2018
304,Revenue,CAHD,South Glos Users in South Glos Homes,Permanent Nursing,Beech House,930.3, 10-Apr-2018
305,Revenue,CAHD,Bed Purchasing - North,Permanent Nursing,Beech House,1380.62, 10-Apr-2018
306,Revenue,CAHD,Bed Purchasing - North,Permanent Nursing,Beech House,1354.88, 10-Apr-2018
307,Revenue,CAHD,Bed Purchasing - North,Permanent Nursing,Beech House,1544.32, 10-Apr-2018
308,Revenue,CAHD,Bed Purchasing - North,Permanent Nursing,Beech House,1515.52, 10-Apr-2018
309,Revenue,CAHD,Bed Purchasing - North,Permanent Nursing,Beech House,1732.3, 10-Apr-2018
310,Revenue,CAHD,Bed Purchasing - North,Permanent Nursing,Beech House,1700, 10-Apr-2018
311,Revenue,CAHD,Bed Purchasing - North,Permanent Residential,Beech House,1445.14, 10-Apr-2018
312,Revenue,CAHD,Bed Purchasing - North,Permanent Residential,Beech House,1418.2, 10-Apr-2018
313,Revenue,CAHD,South Glos Users in South Glos Homes,Permanent Nursing,Beech House,620.2, 10-Apr-2018
314,Revenue,CAHD,Bed Purchasing - Southmead Hospital,Permanent Residential,Beech House,1874.96, 10-Apr-2018
315,Revenue,CAHD,Bed Purchasing - Southmead Hospital,Permanent Residential,Beech House,1840, 10-Apr-2018
316,Revenue,CAHD,Bed Purchasing - North,Permanent Nursing,Beech House,1681.36, 10-Apr-2018
317,Revenue,CAHD,Bed Purchasing - North,Permanent Nursing,Beech House,1650, 10-Apr-2018
318,Revenue,CAHD,Bed Purchasing - North,Permanent Nursing,Beech House,1614.96, 10-Apr-2018
319,Revenue,CAHD,Bed Purchasing - North,Permanent Nursing,Beech House,1584.84, 10-Apr-2018
320,Revenue,CAHD,Statemented Support Payments to OLAs,Other L.A.'s - General,Beechen Cliff School,777.45, 27-Apr-2018
321,Revenue,CAHD,Independent Special Placements - Pre 16,Other Private Contractors,Belgrave School,5246, 11-Apr-2018
322,Revenue,CAHD,Independent Special Placements - Pre 16,Other Private Contractors,Belgrave School,6117.67, 11-Apr-2018
323,Revenue,CAHD,Bed purchasing - Elderly S117 - South,Permanent Nursing,Blossom Field,2129.6, 10-Apr-2018
324,Revenue,CAHD,Bed purchasing - Elderly S117 - South,Permanent Nursing,Blossom Field,2089.9, 10-Apr-2018
325,Revenue,CAHD,Bed Purchasing - North,Permanent Nursing,Blossom Field,1795.44, 10-Apr-2018
326,Revenue,CAHD,Bed Purchasing - North,Permanent Nursing,Blossom Field,1761.96, 10-Apr-2018
327,Revenue,CAHD,Bed Purchasing - Elderly S117- North,Permanent Nursing,Blossom Field,1803.5, 10-Apr-2018
328,Revenue,CAHD,Bed Purchasing - Elderly S117- North,Permanent Nursing,Blossom Field,1769.88, 10-Apr-2018
329,Revenue,CAHD,Bed Purchasing - North,Permanent Nursing,Blossom Field,3426.35, 10-Apr-2018
330,Revenue,CAHD,Bed Purchasing - North,Permanent Nursing,Blossom Field,2784, 10-Apr-2018
331,Revenue,CAHD,Bed Purchasing - North,Permanent Nursing,Blossom Field,1369.54, 10-Apr-2018
332,Revenue,CAHD,Bed Purchasing - North,Permanent Nursing,Blossom Field,1344, 10-Apr-2018
333,Revenue,CAHD,South Glos Users in South Glos Homes,Permanent Nursing,Blossom Field,642.35, 10-Apr-2018
334,Revenue,CAHD,Bed purchasing - Elderly S117 - South,Permanent Nursing,Blossom Field,2241.8, 10-Apr-2018
335,Revenue,CAHD,Bed purchasing - Elderly S117 - South,Permanent Nursing,Blossom Field,2200, 10-Apr-2018
336,Revenue,CAHD,Bed purchasing - Elderly S117 - South,Permanent Nursing,Blossom Field,2276.74, 10-Apr-2018
337,Revenue,CAHD,Bed purchasing - Elderly S117 - South,Permanent Nursing,Blossom Field,2234.28, 10-Apr-2018
338,Revenue,CAHD,Bed Purchasing - Southmead Hospital,Permanent Nursing,Blossom Field,5428.57, 10-Apr-2018
339,Revenue,CAHD,Bed Purchasing - Southmead Hospital,Permanent Nursing,Blossom Field,2038, 10-Apr-2018
340,Revenue,CAHD,Bed Purchasing - Southmead Hospital,Permanent Nursing,Blossom Field,2000, 10-Apr-2018
341,Revenue,CAHD,Bed Purchasing - Southmead Hospital,Fees & Charges Income - General,Blossom Field,710.66, 10-Apr-2018
342,Revenue,CAHD,Bed Purchasing - South,Permanent Nursing,Blossom Field,2154.82, 10-Apr-2018
343,Revenue,CAHD,Bed Purchasing - South,Permanent Nursing,Blossom Field,2114.64, 10-Apr-2018
344,Revenue,CAHD,Bed Purchasing - North,Permanent Nursing,Blossom Field,2129.6, 10-Apr-2018
345,Revenue,CAHD,Bed Purchasing - North,Permanent Nursing,Blossom Field,2089.9, 10-Apr-2018
346,Revenue,CAHD,Bed Purchasing - North,Permanent Nursing,Blossom Field,1948.36, 10-Apr-2018
347,Revenue,CAHD,Bed Purchasing - North,Permanent Nursing,Blossom Field,1912.04, 10-Apr-2018
348,Revenue,CAHD,Bed Purchasing - North,Permanent Nursing,Blossom Field,3426.35, 10-Apr-2018
349,Revenue,CAHD,Bed Purchasing - North,Permanent Nursing,Blossom Field,2784, 10-Apr-2018
350,Revenue,CAHD,Bed Purchasing - North,Permanent Nursing,Blossom Field,2496, 10-Apr-2018
351,Revenue,CAHD,Bed Purchasing - North,Permanent Nursing,Blossom Field,1369.54, 10-Apr-2018
352,Revenue,CAHD,Bed Purchasing - North,Permanent Nursing,Blossom Field,1344, 10-Apr-2018
353,Revenue,CAHD,South Glos Users in South Glos Homes,Permanent Nursing,Blossom Field,642.35, 10-Apr-2018
354,Revenue,CAHD,Bed Purchasing - North,Fees & Charges Income - General,Blossom Field,721.25, 10-Apr-2018
355,Revenue,CAHD,Bed Purchasing - North,Fees & Charges Income - General,Blossom Field,836.65, 10-Apr-2018
356,Revenue,CAHD,Bed Purchasing - North,Permanent Nursing,Blossom Field,1774.88, 10-Apr-2018
357,Revenue,CAHD,Bed Purchasing - North,Permanent Nursing,Blossom Field,1741.78, 10-Apr-2018
358,Revenue,CAHD,Home Care - Elderly - South,Other Small Contracts,Bluebird Care (South Gloucestershire),232.2, 18-Apr-2018
359,Revenue,CAHD,Home Care - Elderly - North,Other Small Contracts,Bluebird Care (South Gloucestershire),1320.54, 18-Apr-2018
360,Revenue,CAHD,Home Care - Elderly - South,Other Small Contracts,Bluebird Care (South Gloucestershire),232.2, 30-Apr-2018
361,Revenue,CAHD,Home Care - Elderly - North,Other Small Contracts,Bluebird Care (South Gloucestershire),1300.28, 30-Apr-2018
362,Revenue,CAHD,Home Care - Elderly - South,Other Small Contracts,Bluebird Care (South Gloucestershire),227.04, 30-Apr-2018
363,Revenue,CAHD,Home Care - Elderly - North,Other Small Contracts,Bluebird Care (South Gloucestershire),1332.87, 30-Apr-2018
364,Revenue,CAHD,Training - Adult Services,Training Expenses,Bob Dawson,1725, 23-Apr-2018
365,Revenue,CAHD,CSC - Vinney Green Secure Unit,"Provisions (Food, etc)",Booker Cash & Carry,523.88, 04-Apr-2018
366,Revenue,CAHD,CSC - Vinney Green Secure Unit,"Provisions (Food, etc)",Booker Cash & Carry,495.81, 16-Apr-2018
367,Revenue,CAHD,Bed purchasing - S28A Under 65 - South,Permanent Residential,Bradbury House,2473.2, 10-Apr-2018
368,Revenue,CAHD,Bed purchasing - S28A Under 65 - South,Permanent Residential,Bradbury House,2427.08, 10-Apr-2018
369,Revenue,CAHD,Bed Purchasing - South,Permanent Residential,Bradbury House,4267.16, 10-Apr-2018
370,Revenue,CAHD,Bed Purchasing - South,Permanent Residential,Bradbury House,4187.6, 10-Apr-2018
371,Revenue,CAHD,18-25 Year Olds,Permanent Residential,Bradbury House,4842.32, 10-Apr-2018
372,Revenue,CAHD,18-25 Year Olds,Permanent Residential,Bradbury House,4752.04, 10-Apr-2018
373,Revenue,CAHD,Bed Purchasing - North,Permanent Residential,Bradbury House,2976.42, 10-Apr-2018
374,Revenue,CAHD,Jointly Funded H&SC Packages,Permanent Residential,Bradbury House,4111.58, 10-Apr-2018
375,Revenue,CAHD,Bed Purchasing - North,Permanent Residential,Bradbury House,1375.66, 10-Apr-2018
376,Revenue,CAHD,Bed Purchasing - North,Permanent Residential,Bradbury House,1350, 10-Apr-2018
377,Revenue,CAHD,Tobacco Control,Other Small Contracts,Bradley Stoke Surgery,680, 09-Apr-2018
378,Revenue,CAHD,Home Care - Elderly - North,Other Small Contracts,Bramble Home Care Limited,717.12, 10-Apr-2018
379,Revenue,CAHD,Home Care - Elderly - North,Other Small Contracts,Bramble Home Care Limited,796.8, 13-Apr-2018
380,Revenue,CAHD,Home Care - Elderly - North,Other Small Contracts,Bramble Home Care Limited,687.24, 26-Apr-2018
381,Revenue,CAHD,Home Care - Elderly - North,Other Small Contracts,Bramble Home Care Limited,577.68, 10-Apr-2018
382,Revenue,CAHD,Home Care - Elderly - North,Other Small Contracts,Bramble Home Care Limited,1185.24, 26-Apr-2018
383,Revenue,CAHD,Home Care - Elderly - North,Other Small Contracts,Bramble Home Care Limited,766.92, 10-Apr-2018
384,Revenue,CAHD,Home Care - Elderly - North,Other Small Contracts,Bramble Home Care Limited,786.84, 13-Apr-2018
385,Revenue,CAHD,CSC - Residential Placements,Permanent Residential,Branas ISAF Ltd,20357.14, 04-Apr-2018
386,Revenue,CAHD,CSC - Residential Placements,Permanent Residential,Branas ISAF Ltd,19928.57, 18-Apr-2018
387,Revenue,CAHD,CSC - Residential Placements,Permanent Residential,Branas ISAF Ltd,21035.71, 18-Apr-2018
388,Revenue,CAHD,CSC - Residential Placements,Permanent Residential,Branas ISAF Ltd,19928.57, 18-Apr-2018
389,Revenue,CAHD,Social Lettings Agency,Fees - General,Individual,11.41, 03-Apr-2018
390,Revenue,CAHD,Social Lettings Agency,Other Supplies & Services,Individual,746.54, 03-Apr-2018
391,Revenue,CAHD,Bed Purchasing - Southmead Hospital,Permanent Residential,Bridge House Care Home,1234.56, 10-Apr-2018
392,Revenue,CAHD,Bed Purchasing - Southmead Hospital,Permanent Residential,Bridge House Care Home,1211.54, 10-Apr-2018
393,Revenue,CAHD,Bed Purchasing - North,Permanent Residential,Bridge House Care Home,1213.7, 10-Apr-2018
394,Revenue,CAHD,Bed Purchasing - North,Permanent Residential,Bridge House Care Home,1191.06, 10-Apr-2018
395,Revenue,CAHD,Bed Purchasing - Southmead Hospital,Permanent Residential,Bridge House Care Home,1255.4, 10-Apr-2018
396,Revenue,CAHD,Bed Purchasing - Southmead Hospital,Permanent Residential,Bridge House Care Home,1232, 10-Apr-2018
397,Revenue,CAHD,Bed Purchasing - North,Permanent Residential,Bridge House Care Home,1271.74, 10-Apr-2018
398,Revenue,CAHD,Bed Purchasing - North,Permanent Residential,Bridge House Care Home,1248.02, 10-Apr-2018
399,Revenue,CAHD,Bed Purchasing - North,Permanent Residential,Bridge House Care Home,1116.72, 10-Apr-2018
400,Revenue,CAHD,Bed Purchasing - North,Permanent Residential,Bridge House Care Home,1095.9, 10-Apr-2018
401,Revenue,CAHD,Bed Purchasing - North,Permanent Residential,Bridgwater Court,5260.56, 10-Apr-2018
402,Revenue,CAHD,Bed Purchasing - North,Permanent Residential,Bridgwater Court,5162.48, 10-Apr-2018
403,Revenue,CAHD,EARLY YEARS DISABILITY  ACCES FUND,Preventative Assistance,Bright Sparks,615, 04-Apr-2018
404,Revenue,CAHD,EARLY YEARS DISABILITY  ACCES FUND,Preventative Assistance,Bright Sparks Pre School Ltd,615, 04-Apr-2018
405,Revenue,CAHD,Yate Detached,Rent,Brimsham Green School,426.23, 30-Apr-2018
406,Revenue,CAHD,Health Inequalities,Other Small Contracts,Bristol & Avon Chinese Womens Group,500, 13-Apr-2018
407,Revenue,CAHD,Statemented Support Academies,Schools Funding,Bristol & South Gloucestershire UTC,7298.24, 27-Apr-2018
408,Revenue,CAHD,Older People's Commissioned Se,Grants to Voluntary Bodies,Bristol Area Stroke Foundation,19052.75, 13-Apr-2018
409,Revenue,CAHD,Training - Adult Services,Training Expenses,Bristol City Council,4350, 10-Apr-2018
410,Revenue,CAHD,Placements OLA Special Schools and RB,Other L.A.'s - General,Bristol City Council - Schools,8200.67, 24-Apr-2018
411,Revenue,CAHD,Placements OLA Special Schools and RB,Other L.A.'s - General,Bristol City Council - Schools,2578, 24-Apr-2018
412,Revenue,CAHD,Placements OLA Special Schools and RB,Other L.A.'s - General,Bristol City Council - Schools,1350.17, 24-Apr-2018
413,Revenue,CAHD,Statemented Support Payments to OLAs,Other L.A.'s - General,Bristol City Council - Schools,1744.37, 27-Apr-2018
414,Revenue,CAHD,Statemented Support Payments to OLAs,Other L.A.'s - General,Bristol City Council - Schools,1626.45, 27-Apr-2018
415,Revenue,CAHD,Placements OLA Special Schools and RB,Other L.A.'s - General,Bristol City Council - Schools,914.33, 24-Apr-2018
416,Revenue,CAHD,Placements OLA Special Schools and RB,Other L.A.'s - General,Bristol City Council - Schools,2578, 24-Apr-2018
417,Revenue,CAHD,Placements OLA Special Schools and RB,Other L.A.'s - General,Bristol City Council - Schools,1305.58, 24-Apr-2018
418,Revenue,CAHD,Placements OLA Special Schools and RB,Other L.A.'s - General,Bristol City Council - Schools,1244.17, 24-Apr-2018
419,Revenue,CAHD,Placements OLA Special Schools and RB,Other L.A.'s - General,Bristol City Council - Schools,3356.33, 24-Apr-2018
420,Revenue,CAHD,Placements OLA Special Schools and RB,Other L.A.'s - General,Bristol City Council - Schools,2578, 24-Apr-2018
421,Revenue,CAHD,Statemented Support Payments to OLAs,Other L.A.'s - General,Bristol City Council - Schools,1060.45, 27-Apr-2018
422,Revenue,CAHD,Placements OLA Special Schools and RB,Other L.A.'s - General,Bristol City Council - Schools,2578, 24-Apr-2018
423,Revenue,CAHD,Placements OLA Special Schools and RB,Other L.A.'s - General,Bristol City Council - Schools,1381, 24-Apr-2018
424,Revenue,CAHD,Placements OLA Special Schools and RB,Other L.A.'s - General,Bristol City Council - Schools,2050.17, 24-Apr-2018
425,Revenue,CAHD,Placements OLA Special Schools and RB,Other L.A.'s - General,Bristol City Council - Schools,914.33, 24-Apr-2018
426,Revenue,CAHD,Placements OLA Special Schools and RB,Other L.A.'s - General,Bristol City Council - Schools,1381, 24-Apr-2018
427,Revenue,CAHD,Placements OLA Special Schools and RB,Other L.A.'s - General,Bristol City Council - Schools,2050.17, 24-Apr-2018
428,Revenue,CAHD,Placements OLA Special Schools and RB,Other L.A.'s - General,Bristol City Council - Schools,2578, 24-Apr-2018
429,Revenue,CAHD,Placements OLA Special Schools and RB,Other L.A.'s - General,Bristol City Council - Schools,809, 24-Apr-2018
430,Revenue,CAHD,Placements OLA Special Schools and RB,Other L.A.'s - General,Bristol City Council - Schools,883.5, 24-Apr-2018
431,Revenue,CAHD,Placements OLA Special Schools and RB,Other L.A.'s - General,Bristol City Council - Schools,4107.54, 24-Apr-2018
432,Revenue,CAHD,Placements OLA Special Schools and RB,Other L.A.'s - General,Bristol City Council - Schools,1031.2, 24-Apr-2018
433,Revenue,CAHD,Placements OLA Special Schools and RB,Other L.A.'s - General,Bristol City Council - Schools,2578, 24-Apr-2018
434,Revenue,CAHD,Placements OLA Special Schools and RB,Other L.A.'s - General,Bristol City Council - Schools,809, 24-Apr-2018
435,Revenue,CAHD,Placements OLA Special Schools and RB,Other L.A.'s - General,Bristol City Council - Schools,2578, 24-Apr-2018
436,Revenue,CAHD,Placements OLA Special Schools and RB,Other L.A.'s - General,Bristol City Council - Schools,883.5, 24-Apr-2018
437,Revenue,CAHD,Placements OLA Special Schools and RB,Other L.A.'s - General,Bristol City Council - Schools,2062.4, 24-Apr-2018
438,Revenue,CAHD,Placements OLA Special Schools and RB,Other L.A.'s - General,Bristol City Council - Schools,2578, 24-Apr-2018
439,Revenue,CAHD,Placements OLA Special Schools and RB,Other L.A.'s - General,Bristol City Council - Schools,2859.33, 24-Apr-2018
440,Revenue,CAHD,Placements OLA Special Schools and RB,Other L.A.'s - General,Bristol City Council - Schools,883.5, 24-Apr-2018
441,Revenue,CAHD,Home Care - Elderly - North,Day Care / Social Activities,Bristol Community Links North,507.6, 10-Apr-2018
442,Revenue,CAHD,User Involvement,"Provisions (Food, etc)",British Youth Council,525, 17-Apr-2018
443,Revenue,CAHD,Statemented Support Payments to OLAs,Other L.A.'s - General,Broadlands Academy,1685.41, 27-Apr-2018
444,Revenue,CAHD,CSC - Care Leavers Independent Living,Independent Living,Bromford Housing Association,787.76, 06-Apr-2018
445,Revenue,CAHD,Supporting People Programme,Grants to Voluntary Bodies,Bromford Housing Group,14675.07, 06-Apr-2018
446,Revenue,CAHD,Health Inequalities,Other Small Contracts,Individual,500, 16-Apr-2018
447,Revenue,CAHD,SLA Grants - Support Serv,Grants to Voluntary Bodies,Individual,500, 16-Apr-2018
448,Revenue,CAHD,South Glos Users in South Glos Homes,Permanent Nursing,Brunelcare,686.65, 05-Apr-2018
449,Revenue,CAHD,South Glos Users in South Glos Homes,Permanent Nursing,Brunelcare,686.65, 05-Apr-2018
450,Revenue,CAHD,South Glos Users in South Glos Homes,Permanent Nursing,Brunelcare,686.65, 05-Apr-2018
451,Revenue,CAHD,South Glos Users in South Glos Homes,Permanent Nursing,Brunelcare,686.65, 05-Apr-2018
452,Revenue,CAHD,South Glos Users in South Glos Homes,Permanent Nursing,Brunelcare,686.65, 05-Apr-2018
453,Revenue,CAHD,South Glos Users in South Glos Homes,Permanent Nursing,Brunelcare,686.65, 05-Apr-2018
454,Revenue,CAHD,South Glos Users in South Glos Homes,Permanent Nursing,Brunelcare,686.65, 05-Apr-2018
455,Revenue,CAHD,South Glos Users in South Glos Homes,Permanent Nursing,Brunelcare,686.65, 05-Apr-2018
456,Revenue,CAHD,South Glos Users in South Glos Homes,Permanent Nursing,Brunelcare,686.65, 05-Apr-2018
457,Revenue,CAHD,South Glos Users in South Glos Homes,Permanent Nursing,Brunelcare,686.65, 05-Apr-2018
458,Revenue,CAHD,South Glos Users in South Glos Homes,Permanent Nursing,Brunelcare,686.65, 05-Apr-2018
459,Revenue,CAHD,South Glos Users in South Glos Homes,Permanent Nursing,Brunelcare,686.65, 05-Apr-2018
460,Revenue,CAHD,South Glos Users in South Glos Homes,Permanent Nursing,Brunelcare,686.65, 05-Apr-2018
461,Revenue,CAHD,Bed purchasing - Elderly S117 - South,Permanent Nursing,Brunelcare,3516.29, 05-Apr-2018
462,Revenue,CAHD,Bed Purchasing - Elderly S117- North,Permanent Nursing,Brunelcare,3516.29, 05-Apr-2018
463,Revenue,CAHD,Bed Purchasing - Elderly S117- North,Permanent Nursing,Brunelcare,3516.29, 05-Apr-2018
464,Revenue,CAHD,Bed Purchasing - Southmead Hospital,Permanent Nursing,Brunelcare,2398.96, 05-Apr-2018
465,Revenue,CAHD,Bed Purchasing - Southmead Hospital,Permanent Nursing,Brunelcare,1153.16, 05-Apr-2018
466,Revenue,CAHD,Bed Purchasing - Southmead Hospital,Permanent Nursing,Brunelcare,2041.71, 05-Apr-2018
467,Revenue,CAHD,Bed Purchasing - Southmead Hospital,Permanent Nursing,Brunelcare,2920.86, 05-Apr-2018
468,Revenue,CAHD,Bed Purchasing - South,Permanent Nursing,Brunelcare,2913.25, 05-Apr-2018
469,Revenue,CAHD,Bed Purchasing - South,Permanent Nursing,Brunelcare,2580.57, 05-Apr-2018
470,Revenue,CAHD,Bed Purchasing - South,Permanent Nursing,Brunelcare,2703.82, 05-Apr-2018
471,Revenue,CAHD,Bed Purchasing - South,Permanent Nursing,Brunelcare,2729.15, 05-Apr-2018
472,Revenue,CAHD,Bed Purchasing - North,Permanent Nursing,Brunelcare,2882.6, 05-Apr-2018
473,Revenue,CAHD,Bed Purchasing - North,Permanent Nursing,Brunelcare,2847.04, 05-Apr-2018
474,Revenue,CAHD,Bed Purchasing - North,Permanent Nursing,Brunelcare,1491.36, 05-Apr-2018
475,Revenue,CAHD,Bed Purchasing - North,Permanent Nursing,Brunelcare,2920.86, 05-Apr-2018
476,Revenue,CAHD,Bed Purchasing - North,Permanent Nursing,Brunelcare,3516.29, 05-Apr-2018
477,Revenue,CAHD,Bed Purchasing - North,Respite Planned - Nursing,Brunelcare,3306.22, 05-Apr-2018
478,Revenue,CAHD,Enhanced Dementia Beds,Respite Planned - Nursing,Brunelcare,2714.29, 05-Apr-2018
479,Revenue,CAHD,Pathway 2 - (Interim Beds),Permanent Nursing,Brunelcare,52137, 26-Apr-2018
480,Revenue,CAHD,Home Care - Elderly - South,Other Small Contracts,Brunelcare,1854.72, 18-Apr-2018
481,Revenue,CAHD,Home Care - Elderly - North,Other Small Contracts,Brunelcare,851.2, 18-Apr-2018
482,Revenue,CAHD,Home Care - Elderly - South,Other Small Contracts,Brunelcare,1921.92, 18-Apr-2018
483,Revenue,CAHD,Home Care - Elderly - North,Other Small Contracts,Brunelcare,1057.28, 18-Apr-2018
484,Revenue,CAHD,Home Care - Elderly - South,Other Small Contracts,Brunelcare,1939.84, 18-Apr-2018
485,Revenue,CAHD,Home Care - Elderly - North,Other Small Contracts,Brunelcare,1003.52, 18-Apr-2018
486,Revenue,CAHD,Home Care - Elderly - South,Other Small Contracts,Brunelcare,1872.64, 30-Apr-2018
487,Revenue,CAHD,Home Care - Elderly - North,Other Small Contracts,Brunelcare,716.8, 30-Apr-2018
488,Revenue,CAHD,Bed Purchasing - North,Permanent Nursing,Bupa Care Services  Bridge House,898.06, 10-Apr-2018
489,Revenue,CAHD,Jointly Funded H&SC Packages,Permanent Nursing,Bupa Care Services  Bridge House,2242.04, 10-Apr-2018
490,Revenue,CAHD,Bed Purchasing - North,Permanent Nursing,Bupa Care Services  Bridge House,881.32, 10-Apr-2018
491,Revenue,CAHD,Jointly Funded H&SC Packages,Permanent Nursing,Bupa Care Services  Bridge House,2200.24, 10-Apr-2018
492,Revenue,CAHD,South Glos Users in all other LA Homes,Permanent Nursing,Bupa Care Services  Bridge House,683.85, 10-Apr-2018
493,Revenue,CAHD,Early Years Inclusion Fund,Other Public Bodies,Busy Bees Day Nursery,900, 18-Apr-2018
494,Revenue,CAHD,Woodleaze,Mechanical & Electrical Maintenance,BWS Standfast Fire & Security Systems,4159.04, 12-Apr-2018
495,Revenue,CAHD,Academy Resource Base Funding,Other Public Bodies,Cabot Learning Federation,1137.95, 30-Apr-2018
496,Revenue,CAHD,Academy Resource Base Funding,Other Public Bodies,Cabot Learning Federation,1491.12, 30-Apr-2018
497,Revenue,CAHD,Academy Resource Base Funding,Other Public Bodies,Cabot Learning Federation,1648.03, 30-Apr-2018
498,Revenue,CAHD,Academy Resource Base Funding,Other Public Bodies,Cabot Learning Federation,1137.95, 30-Apr-2018
499,Revenue,CAHD,Academy Resource Base Funding,Other Public Bodies,Cabot Learning Federation,1491.12, 30-Apr-2018
500,Revenue,CAHD,Academy Resource Base Funding,Other Public Bodies,Cabot Learning Federation,1137.95, 30-Apr-2018
501,Revenue,CAHD,Academy Resource Base Funding,Other Public Bodies,Cabot Learning Federation,1491.12, 30-Apr-2018
502,Revenue,CAHD,Academy Resource Base Funding,Other Public Bodies,Cabot Learning Federation,1137.95, 30-Apr-2018
503,Revenue,CAHD,Academy Resource Base Funding,Other Public Bodies,Cabot Learning Federation,627.78, 30-Apr-2018
504,Revenue,CAHD,Academy Resource Base Funding,Other Public Bodies,Cabot Learning Federation,1648.03, 30-Apr-2018
505,Revenue,CAHD,Academy Resource Base Funding,Other Public Bodies,Cabot Learning Federation,1491.12, 30-Apr-2018
506,Revenue,CAHD,Academy Resource Base Funding,Other Public Bodies,Cabot Learning Federation,863.26, 30-Apr-2018
507,Revenue,CAHD,Statemented Support Academies,Schools Funding,Cabot Learning Federation,706.7, 27-Apr-2018
508,Revenue,CAHD,Statemented Support Academies,Schools Funding,Cabot Learning Federation,753.87, 27-Apr-2018
509,Revenue,CAHD,Statemented Support Academies,Schools Funding,Cabot Learning Federation,659.53, 27-Apr-2018
510,Revenue,CAHD,Statemented Support Academies,Schools Funding,Cabot Learning Federation,706.7, 27-Apr-2018
511,Revenue,CAHD,Statemented Support Academies,Schools Funding,Cabot Learning Federation,612.37, 27-Apr-2018
512,Revenue,CAHD,Statemented Support Academies,Schools Funding,Cabot Learning Federation,518.03, 27-Apr-2018
513,Revenue,CAHD,Statemented Support Academies,Schools Funding,Cabot Learning Federation,836.41, 27-Apr-2018
514,Revenue,CAHD,Statemented Support Academies,Schools Funding,Cabot Learning Federation,553.41, 27-Apr-2018
515,Revenue,CAHD,Statemented Support Academies,Schools Funding,Cabot Learning Federation,553.41, 27-Apr-2018
516,Revenue,CAHD,Statemented Support Academies,Schools Funding,Cabot Learning Federation,576.99, 27-Apr-2018
517,Revenue,CAHD,Statemented Support Academies,Schools Funding,Cabot Learning Federation,753.87, 27-Apr-2018
518,Revenue,CAHD,Statemented Support Academies,Schools Funding,Cabot Learning Federation,954.33, 27-Apr-2018
519,Revenue,CAHD,Statemented Support Academies,Schools Funding,Cabot Learning Federation,706.7, 27-Apr-2018
520,Revenue,CAHD,Statemented Support Academies,Schools Funding,Cabot Learning Federation,553.41, 27-Apr-2018
521,Revenue,CAHD,Statemented Support Academies,Schools Funding,Cabot Learning Federation,694.91, 27-Apr-2018
522,Revenue,CAHD,Statemented Support Academies,Schools Funding,Cabot Learning Federation,529.83, 27-Apr-2018
523,Revenue,CAHD,Statemented Support Academies,Schools Funding,Cabot Learning Federation,883.58, 27-Apr-2018
524,Revenue,CAHD,Statemented Support Academies,Schools Funding,Cabot Learning Federation,694.91, 27-Apr-2018
525,Revenue,CAHD,Statemented Support Academies,Schools Funding,Cabot Learning Federation,1084.03, 27-Apr-2018
526,Revenue,CAHD,Statemented Support Academies,Schools Funding,Cabot Learning Federation,954.33, 27-Apr-2018
527,Revenue,CAHD,Statemented Support Payments to OLAs,Other L.A.'s - General,Cabot Learning Federation,600.58, 27-Apr-2018
528,Revenue,CAHD,Statemented Support Academies,Schools Funding,Cabot Learning Federation,859.99, 27-Apr-2018
529,Revenue,CAHD,Statemented Support Academies,Schools Funding,Cabot Learning Federation,1048.66, 27-Apr-2018
530,Revenue,CAHD,Statemented Support Academies,Schools Funding,Cabot Learning Federation,506.24, 27-Apr-2018
531,Revenue,CAHD,Statemented Support Academies,Schools Funding,Cabot Learning Federation,1048.66, 27-Apr-2018
532,Revenue,CAHD,Statemented Support Payments to OLAs,Other L.A.'s - General,Cabot Learning Federation,612.37, 27-Apr-2018
533,Revenue,CAHD,Statemented Support Payments to OLAs,Other L.A.'s - General,Cabot Learning Federation,1308.08, 27-Apr-2018
534,Revenue,CAHD,Statemented Support Payments to OLAs,Other L.A.'s - General,Cabot Learning Federation,588.78, 27-Apr-2018
535,Revenue,CAHD,Statemented Support Academies,Schools Funding,Cabot Learning Federation,918.95, 27-Apr-2018
536,Revenue,CAHD,Youth Centres South Locality,Other Supplies & Services,Cambridge Skip Hire,650, 20-Apr-2018
537,Revenue,CAHD,Home Care - Elderly - North,Day Care / Social Activities,Camphill Communities Thornbury Limited,1076.9, 13-Apr-2018
538,Revenue,CAHD,Home Care - Elderly - North,Supported Living,Camphill Communities Thornbury Limited,965.65, 13-Apr-2018
539,Revenue,CAHD,Home Care - Elderly - North,Day Care / Social Activities,Camphill Communities Thornbury Limited,1094.7, 13-Apr-2018
540,Revenue,CAHD,Home Care - Elderly - North,Other Small Contracts,Camphill Communities Thornbury Limited,53.4, 13-Apr-2018
541,Revenue,CAHD,Home Care - Elderly - North,Supported Living,Camphill Communities Thornbury Limited,983.45, 13-Apr-2018
542,Revenue,CAHD,Home Care - Elderly - North,Day Care / Social Activities,Camphill Communities Thornbury Limited,947.85, 20-Apr-2018
543,Revenue,CAHD,Home Care - Elderly - North,Other Small Contracts,Camphill Communities Thornbury Limited,160.2, 20-Apr-2018
544,Revenue,CAHD,Home Care - Elderly - North,Supported Living,Camphill Communities Thornbury Limited,979, 20-Apr-2018
545,Revenue,CAHD,Home Care - Elderly - North,Day Care / Social Activities,Camphill Communities Thornbury Limited,938.95, 27-Apr-2018
546,Revenue,CAHD,Home Care - Elderly - North,Other Small Contracts,Camphill Communities Thornbury Limited,160.2, 27-Apr-2018
547,Revenue,CAHD,Home Care - Elderly - North,Supported Living,Camphill Communities Thornbury Limited,987.9, 27-Apr-2018
548,Revenue,CAHD,Bed Purchasing - Elderly S117- North,Permanent Residential,Canjayor,1234.22, 10-Apr-2018
549,Revenue,CAHD,Bed Purchasing - Elderly S117- North,Permanent Residential,Canjayor,1211.2, 10-Apr-2018
550,Revenue,CAHD,Transitional Team,Personal Needs of Clients,Cannon Hygiene Limited,618.68, 26-Apr-2018
551,Revenue,CAHD,CSC - Agency Fostering,Foster Parent Allowances,Capstone Foster Care (South West) Limited,3634.62, 03-Apr-2018
552,Revenue,CAHD,CSC - Agency Fostering,Foster Parent Allowances,Capstone Foster Care (South West) Limited,3498.66, 03-Apr-2018
553,Revenue,CAHD,CSC - Agency Fostering,Foster Parent Allowances,Capstone Foster Care (South West) Limited,3498.66, 03-Apr-2018
554,Revenue,CAHD,CSC - Agency Fostering,Foster Parent Allowances,Capstone Foster Care (South West) Limited,3634.62, 03-Apr-2018
555,Revenue,CAHD,CSC - OT Equipment - Children,Daily Living Equipment,Care & Independence Ltd,1580, 11-Apr-2018
556,Revenue,CAHD,Home Care - Elderly - South,Other Small Contracts,Care 1st Homecare,2618, 24-Apr-2018
557,Revenue,CAHD,Home Care - Elderly - North,Other Small Contracts,Care 1st Homecare,3290.96, 24-Apr-2018
558,Revenue,CAHD,Younger MH non-res purchasing,Other Small Contracts,Care 1st Homecare,107.52, 24-Apr-2018
559,Revenue,CAHD,Home Care - Elderly - South,Other Small Contracts,Care 1st Homecare,2513.36, 24-Apr-2018
560,Revenue,CAHD,Home Care - Elderly - North,Other Small Contracts,Care 1st Homecare,3344.32, 24-Apr-2018
561,Revenue,CAHD,Younger MH non-res purchasing,Other Small Contracts,Care 1st Homecare,125.44, 24-Apr-2018
562,Revenue,CAHD,Home Care - Elderly - South,Other Small Contracts,Care Horizons Limited,840.84, 04-Apr-2018
563,Revenue,CAHD,Home Care - Elderly - North,Day Care / Social Activities,Care Horizons Limited,258.72, 04-Apr-2018
564,Revenue,CAHD,Home Care - Elderly - North,Other Small Contracts,Care Horizons Limited,332.64, 04-Apr-2018
565,Revenue,CAHD,Younger MH non-res purchasing,Other Small Contracts,Care Horizons Limited,184.8, 04-Apr-2018
566,Revenue,CAHD,Home Care - Elderly - South,Other Small Contracts,Care Horizons Limited,660.66, 11-Apr-2018
567,Revenue,CAHD,Home Care - Elderly - North,Day Care / Social Activities,Care Horizons Limited,263.34, 11-Apr-2018
568,Revenue,CAHD,Home Care - Elderly - North,Other Small Contracts,Care Horizons Limited,203.28, 11-Apr-2018
569,Revenue,CAHD,Younger MH non-res purchasing,Other Small Contracts,Care Horizons Limited,203.28, 11-Apr-2018
570,Revenue,CAHD,Home Care - Elderly - South,Other Small Contracts,Care Horizons Limited,554.4, 18-Apr-2018
571,Revenue,CAHD,Home Care - Elderly - North,Day Care / Social Activities,Care Horizons Limited,369.6, 18-Apr-2018
572,Revenue,CAHD,Home Care - Elderly - North,Other Small Contracts,Care Horizons Limited,277.2, 18-Apr-2018
573,Revenue,CAHD,Younger MH non-res purchasing,Other Small Contracts,Care Horizons Limited,180.18, 18-Apr-2018
574,Revenue,CAHD,Home Care - Elderly - South,Other Small Contracts,Care Horizons Limited,876.06, 24-Apr-2018
575,Revenue,CAHD,Home Care - Elderly - North,Day Care / Social Activities,Care Horizons Limited,405.06, 24-Apr-2018
576,Revenue,CAHD,Home Care - Elderly - North,Other Small Contracts,Care Horizons Limited,362.67, 24-Apr-2018
577,Revenue,CAHD,Younger MH non-res purchasing,Other Small Contracts,Care Horizons Limited,188.4, 24-Apr-2018
578,Revenue,CAHD,Home care - Elderly MH - North,Other Small Contracts,Care Horizons Limited,75.36, 24-Apr-2018
579,Revenue,CAHD,Home Care - Elderly - South,Other Small Contracts,Care Horizons Limited,894.9, 30-Apr-2018
580,Revenue,CAHD,Home Care - Elderly - North,Day Care / Social Activities,Care Horizons Limited,395.64, 30-Apr-2018
581,Revenue,CAHD,Home Care - Elderly - North,Other Small Contracts,Care Horizons Limited,339.12, 30-Apr-2018
582,Revenue,CAHD,Younger MH non-res purchasing,Other Small Contracts,Care Horizons Limited,287.31, 30-Apr-2018
583,Revenue,CAHD,Home care - Elderly MH - North,Other Small Contracts,Care Horizons Limited,75.36, 30-Apr-2018
584,Revenue,CAHD,General EPH budgets,Other Supplies & Services,Care Quality Commission,14033, 24-Apr-2018
585,Revenue,CAHD,SLA Grants - Support Serv,Grants to Voluntary Bodies,Carers Support Centre,12275, 13-Apr-2018
586,Revenue,CAHD,SLA Grants - Support Serv,Grants to Voluntary Bodies,Carers Support Centre,23636.25, 13-Apr-2018
587,Revenue,CAHD,Health Inequalities,Other Small Contracts,Carers Support Centre,59727, 13-Apr-2018
588,Revenue,CAHD,Home Care - Elderly - South,Other Small Contracts,Caring Comes 1st Ltd,1276.5, 10-Apr-2018
589,Revenue,CAHD,Home Care - Elderly - South,Other Small Contracts,Caring Comes 1st Ltd,616.05, 10-Apr-2018
590,Revenue,CAHD,Home Care - Elderly - South,Other Small Contracts,Caring Comes 1st Ltd,952.75, 10-Apr-2018
591,Revenue,CAHD,Home Care - Elderly - South,Other Small Contracts,Caring Comes 1st Ltd,666, 10-Apr-2018
592,Revenue,CAHD,Home Care - Elderly - South,Other Small Contracts,Caring Comes 1st Ltd,1276.5, 10-Apr-2018
593,Revenue,CAHD,Home Care - Elderly - South,Other Small Contracts,Caring Comes 1st Ltd,932.4, 10-Apr-2018
594,Revenue,CAHD,Home Care - Elderly - South,Other Small Contracts,Caring Comes 1st Ltd,899.1, 10-Apr-2018
595,Revenue,CAHD,Home Care - Elderly - South,Other Small Contracts,Caring Comes 1st Ltd,1093.35, 12-Apr-2018
596,Revenue,CAHD,Home Care - Elderly - South,Other Small Contracts,Caring Comes 1st Ltd,810.3, 12-Apr-2018
597,Revenue,CAHD,Home Care - Elderly - South,Other Small Contracts,Caring Comes 1st Ltd,538.35, 12-Apr-2018
598,Revenue,CAHD,Home Care - Elderly - South,Other Small Contracts,Caring Comes 1st Ltd,2175.6, 12-Apr-2018
599,Revenue,CAHD,Home Care - Elderly - South,Other Small Contracts,Caring Comes 1st Ltd,666, 10-Apr-2018
600,Revenue,CAHD,Home Care - Elderly - South,Other Small Contracts,Caring Comes 1st Ltd,1298.7, 10-Apr-2018
601,Revenue,CAHD,Home Care - Elderly - South,Other Small Contracts,Caring Comes 1st Ltd,777, 10-Apr-2018
602,Revenue,CAHD,Home Care - Elderly - North,Other Small Contracts,Caring Comes 1st Ltd,677.1, 12-Apr-2018
603,Revenue,CAHD,Home Care - Elderly - South,Other Small Contracts,Caring Comes 1st Ltd,555, 04-Apr-2018
604,Revenue,CAHD,Home Care - Elderly - South,Other Small Contracts,Caring Comes 1st Ltd,3152.4, 04-Apr-2018
605,Revenue,CAHD,Home Care - Elderly - South,Other Small Contracts,Caring Comes 1st Ltd,3152.4, 04-Apr-2018
606,Revenue,CAHD,Home Care - Elderly - South,Other Small Contracts,Caring Comes 1st Ltd,532.8, 13-Apr-2018
607,Revenue,CAHD,Statemented Support Academies,Schools Funding,Castle School Education Trust,635.95, 27-Apr-2018
608,Revenue,CAHD,Statemented Support Academies,Schools Funding,Castle School Education Trust,918.95, 27-Apr-2018
609,Revenue,CAHD,Statemented Support Academies,Schools Funding,Castle School Education Trust,1072.24, 27-Apr-2018
610,Revenue,CAHD,Statemented Support Academies,Schools Funding,Castle School Education Trust,683.12, 27-Apr-2018
611,Revenue,CAHD,Statemented Support Academies,Schools Funding,Castle School Education Trust,588.78, 27-Apr-2018
612,Revenue,CAHD,Statemented Support Academies,Schools Funding,Castle School Education Trust,1602.87, 27-Apr-2018
613,Revenue,CAHD,Statemented Support Academies,Schools Funding,Castle School Education Trust,1142.99, 27-Apr-2018
614,Revenue,CAHD,Statemented Support Academies,Schools Funding,Castle School Education Trust,1260.91, 27-Apr-2018
615,Revenue,CAHD,Statemented Support Academies,Schools Funding,Castle School Education Trust,647.74, 27-Apr-2018
616,Revenue,CAHD,Statemented Support Academies,Schools Funding,Castle School Education Trust,730.28, 27-Apr-2018
617,Revenue,CAHD,Statemented Support Academies,Schools Funding,Castle School Education Trust,1095.83, 27-Apr-2018
618,Revenue,CAHD,Statemented Support Academies,Schools Funding,Castle School Education Trust,718.49, 27-Apr-2018
619,Revenue,CAHD,Statemented Support Academies,Schools Funding,Castle School Education Trust,812.83, 27-Apr-2018
620,Revenue,CAHD,Statemented Support Academies,Schools Funding,Castle School Education Trust,553.41, 27-Apr-2018
621,Revenue,CAHD,Statemented Support Academies,Schools Funding,Castle School Education Trust,765.66, 27-Apr-2018
622,Revenue,CAHD,Statemented Support Academies,Schools Funding,Castle School Education Trust,966.12, 27-Apr-2018
623,Revenue,CAHD,Statemented Support Academies,Schools Funding,Castle School Education Trust,989.7, 27-Apr-2018
624,Revenue,CAHD,Statemented Support Academies,Schools Funding,Castle School Education Trust,576.99, 27-Apr-2018
625,Revenue,CAHD,Statemented Support Academies,Schools Funding,Castle School Education Trust,1378.83, 27-Apr-2018
626,Revenue,CAHD,Statemented Support Academies,Schools Funding,Castle School Education Trust,1201.95, 27-Apr-2018
627,Revenue,CAHD,Statemented Support Academies,Schools Funding,Castle School Education Trust,659.53, 27-Apr-2018
628,Revenue,CAHD,Statemented Support Academies,Schools Funding,Castle School Education Trust,718.49, 27-Apr-2018
629,Revenue,CAHD,Academy Resource Base Funding,Other Public Bodies,Castle School Education Trust,1648.03, 30-Apr-2018
630,Revenue,CAHD,Academy Resource Base Funding,Other Public Bodies,Castle School Education Trust,2118.9, 30-Apr-2018
631,Revenue,CAHD,Academy Resource Base Funding,Other Public Bodies,Castle School Education Trust,1648.03, 30-Apr-2018
632,Revenue,CAHD,Academy Resource Base Funding,Other Public Bodies,Castle School Education Trust,1648.03, 30-Apr-2018
633,Revenue,CAHD,Statemented Support Academies,Schools Funding,Castle School Education Trust,612.37, 27-Apr-2018
634,Revenue,CAHD,Statemented Support Academies,Schools Funding,Castle School Education Trust,1626.45, 27-Apr-2018
635,Revenue,CAHD,Statemented Support Academies,Schools Funding,Castle School Education Trust,812.83, 27-Apr-2018
636,Revenue,CAHD,Statemented Support Academies,Schools Funding,Castle School Education Trust,706.7, 27-Apr-2018
637,Revenue,CAHD,Statemented Support Academies,Schools Funding,Castle School Education Trust,989.7, 27-Apr-2018
638,Revenue,CAHD,Statemented Support Academies,Schools Funding,Castle School Education Trust,1331.66, 27-Apr-2018
639,Revenue,CAHD,Statemented Support Academies,Schools Funding,Castle School Education Trust,1697.2, 27-Apr-2018
640,Revenue,CAHD,Statemented Support Academies,Schools Funding,Castle School Education Trust,1166.58, 27-Apr-2018
641,Revenue,CAHD,Statemented Support Academies,Schools Funding,Castle School Education Trust,918.95, 27-Apr-2018
642,Revenue,CAHD,CSC - Fostering Carer Support,Advertising - General,Individual,876, 18-Apr-2018
643,Revenue,CAHD,Home Care - Elderly - North,Day Care / Social Activities,Causeway House,590.2, 10-Apr-2018
644,Revenue,CAHD,Home Care - Elderly - North,Day Care / Social Activities,Causeway House,601.4, 10-Apr-2018
645,Revenue,CAHD,Home Care - Elderly - South,Day Care / Social Activities,Causeway House,2517.44, 10-Apr-2018
646,Revenue,CAHD,Home Care - Elderly - South,Day Care / Social Activities,Causeway House,2565.26, 10-Apr-2018
647,Revenue,CAHD,Home Care - Elderly - North,Day Care / Social Activities,Causeway House,2155.8, 10-Apr-2018
648,Revenue,CAHD,Home Care - Elderly - North,Day Care / Social Activities,Causeway House,2196.76, 10-Apr-2018
649,Revenue,CAHD,Home Care - Elderly - North,Day Care / Social Activities,Causeway House,1864.96, 10-Apr-2018
650,Revenue,CAHD,Home Care - Elderly - North,Day Care / Social Activities,Causeway House,1900.38, 10-Apr-2018
651,Revenue,CAHD,Home Care - Elderly - North,Day Care / Social Activities,Causeway House,995.68, 10-Apr-2018
652,Revenue,CAHD,Home Care - Elderly - North,Day Care / Social Activities,Causeway House,1014.58, 10-Apr-2018
653,Revenue,CAHD,Home Care - Elderly - North,Day Care / Social Activities,Causeway House,1546.08, 10-Apr-2018
654,Revenue,CAHD,Home Care - Elderly - North,Day Care / Social Activities,Causeway House,1575.44, 10-Apr-2018
655,Revenue,CAHD,Home Care - Elderly - North,Day Care / Social Activities,Causeway House,2303.36, 10-Apr-2018
656,Revenue,CAHD,Home Care - Elderly - North,Day Care / Social Activities,Causeway House,2347.12, 10-Apr-2018
657,Revenue,CAHD,Home Care - Elderly - North,Day Care / Social Activities,Causeway House,1750.2, 10-Apr-2018
658,Revenue,CAHD,Home Care - Elderly - North,Day Care / Social Activities,Causeway House,1783.44, 10-Apr-2018
659,Revenue,CAHD,Home Care - Elderly - North,Day Care / Social Activities,Causeway House,1509.12, 10-Apr-2018
660,Revenue,CAHD,Home Care - Elderly - North,Day Care / Social Activities,Causeway House,1537.78, 10-Apr-2018
661,Revenue,CAHD,Bed Purchasing - Elderly S117- North,Permanent Nursing,Cedar Care Homes Limited,2217.34, 10-Apr-2018
662,Revenue,CAHD,Bed Purchasing - Elderly S117- North,Permanent Nursing,Cedar Care Homes Limited,2176, 10-Apr-2018
663,Revenue,CAHD,Home Care - Elderly - South,Other Small Contracts,Cherish Able Care Limited,7518.13, 04-Apr-2018
664,Revenue,CAHD,Home Care - Elderly - North,Other Small Contracts,Cherish Able Care Limited,3019.36, 04-Apr-2018
665,Revenue,CAHD,Home Care - Elderly - South,Other Small Contracts,Cherish Able Care Limited,7934.77, 12-Apr-2018
666,Revenue,CAHD,Home Care - Elderly - North,Other Small Contracts,Cherish Able Care Limited,3564.36, 12-Apr-2018
667,Revenue,CAHD,Home Care - Elderly - South,Other Small Contracts,Cherish Able Care Limited,7724.21, 20-Apr-2018
668,Revenue,CAHD,Home Care - Elderly - North,Other Small Contracts,Cherish Able Care Limited,3204.94, 20-Apr-2018
669,Revenue,CAHD,Home Care - Elderly - South,Other Small Contracts,Cherish Able Care Limited,7719.73, 27-Apr-2018
670,Revenue,CAHD,Home Care - Elderly - North,Other Small Contracts,Cherish Able Care Limited,3289.15, 27-Apr-2018
671,Revenue,CAHD,Home Care - Elderly - South,Supported Living,Cherry Orchards,4408, 25-Apr-2018
672,Revenue,CAHD,EARLY YEARS DISABILITY  ACCES FUND,Preventative Assistance,Cherry Tree Day Nursery,1230, 05-Apr-2018
673,Revenue,CAHD,Early Years High Needs Support,Other Private Contractors,Cherry Tree Day Nursery,880.77, 24-Apr-2018
674,Revenue,CAHD,Bed purchasing -S28A  Under 65 - North,Permanent Residential,Chescombe Lodge,4767.8, 10-Apr-2018
675,Revenue,CAHD,Bed purchasing -S28A  Under 65 - North,Permanent Residential,Chescombe Lodge,4678.9, 10-Apr-2018
676,Revenue,CAHD,CSC - Agency Fostering,Foster Parent Allowances,ChildCare Bureau,2660.91, 30-Apr-2018
677,Revenue,CAHD,18-25 Year Olds,Permanent Residential,Chosen Care Ltd  Citibase Watford,3917.92, 10-Apr-2018
678,Revenue,CAHD,18-25 Year Olds,Permanent Residential,Chosen Care Ltd  Citibase Watford,3844.86, 10-Apr-2018
679,Revenue,CAHD,Bed Purchasing - Elderly S117- North,Permanent Residential,Chosen Care Ltd  Citibase Watford,2530.32, 10-Apr-2018
680,Revenue,CAHD,Jointly Funded H&SC Packages,Permanent Residential,Chosen Care Ltd  Citibase Watford,2530.32, 10-Apr-2018
681,Revenue,CAHD,18-25 Year Olds,Permanent Residential,Chosen Care Ltd  Citibase Watford,3094.42, 10-Apr-2018
682,Revenue,CAHD,18-25 Year Olds,Permanent Residential,Chosen Care Ltd  Citibase Watford,3036.72, 10-Apr-2018
683,Revenue,CAHD,Tobacco Control,Other Small Contracts,Christchurch Family Medical  Centre,580, 09-Apr-2018
684,Revenue,CAHD,Early Years Inclusion Fund,Other Public Bodies,Christchurch Pre School,1050, 26-Apr-2018
685,Revenue,CAHD,Early Years Inclusion Fund,Other Public Bodies,Christchurch Pre School,1350, 26-Apr-2018
686,Revenue,CAHD,Home Care - Elderly - South,Other Small Contracts,Cintre,154.11, 11-Apr-2018
687,Revenue,CAHD,Home Care - Elderly - North,Day Care / Social Activities,Cintre,102.74, 11-Apr-2018
688,Revenue,CAHD,Home Care - Elderly - North,Other Small Contracts,Cintre,723.85, 11-Apr-2018
689,Revenue,CAHD,Home Care - Elderly - South,Other Small Contracts,Cintre,144.77, 16-Apr-2018
690,Revenue,CAHD,Home Care - Elderly - North,Day Care / Social Activities,Cintre,37.36, 16-Apr-2018
691,Revenue,CAHD,Home Care - Elderly - North,Other Small Contracts,Cintre,560.4, 16-Apr-2018
692,Revenue,CAHD,Home Care - Elderly - South,Other Small Contracts,Cintre,74.72, 18-Apr-2018
693,Revenue,CAHD,Home Care - Elderly - North,Day Care / Social Activities,Cintre,84.06, 18-Apr-2018
694,Revenue,CAHD,Home Care - Elderly - North,Other Small Contracts,Cintre,607.1, 18-Apr-2018
695,Revenue,CAHD,Home Care - Elderly - South,Other Small Contracts,Cintre,233.24, 24-Apr-2018
696,Revenue,CAHD,Home Care - Elderly - North,Day Care / Social Activities,Cintre,66.64, 24-Apr-2018
697,Revenue,CAHD,Home Care - Elderly - North,Other Small Contracts,Cintre,599.76, 24-Apr-2018
698,Revenue,CAHD,Learning Difficulties,Premises Hire,Circadian Trust,896, 03-Apr-2018
699,Revenue,CAHD,Learning Difficulties,Premises Hire,Circadian Trust,640, 03-Apr-2018
700,Revenue,CAHD,Learning Difficulties,Premises Hire,Circadian Trust,896, 04-Apr-2018
701,Revenue,CAHD,MH Purchasing - Younger,Permanent Residential,Claro Homes,1124.7, 10-Apr-2018
702,Revenue,CAHD,MH Purchasing - Younger,Permanent Residential,Claro Homes,1103.72, 10-Apr-2018
703,Revenue,CAHD,Section 117 Placements MH Younger,Permanent Residential,Claro Homes,1735.64, 10-Apr-2018
704,Revenue,CAHD,Section 117 Placements MH Younger,Permanent Residential,Claro Homes,1703.28, 10-Apr-2018
705,Revenue,CAHD,Bed Purchasing - Southmead Hospital,Respite Planned - Nursing,Claro Homes,1620.22, 10-Apr-2018
706,Revenue,CAHD,Bed Purchasing - Southmead Hospital,Respite Planned - Nursing,Claro Homes,1590, 10-Apr-2018
707,Revenue,CAHD,Bed Purchasing - South,Permanent Residential,Cleeve Lodge,638.88, 10-Apr-2018
708,Revenue,CAHD,Bed Purchasing - South,Permanent Residential,Cleeve Lodge,616.08, 10-Apr-2018
709,Revenue,CAHD,Bed Purchasing - Southmead Hospital,Permanent Residential,Cleeve Lodge,1426.6, 10-Apr-2018
710,Revenue,CAHD,Bed Purchasing - Southmead Hospital,Permanent Residential,Cleeve Lodge,1400, 10-Apr-2018
711,Revenue,CAHD,Bed Purchasing - South,Permanent Residential,Cleeve Lodge,1507.08, 10-Apr-2018
712,Revenue,CAHD,Bed Purchasing - South,Permanent Residential,Cleeve Lodge,1478.98, 10-Apr-2018
713,Revenue,CAHD,Bed Purchasing - South,Permanent Residential,Cleeve Lodge,2735.12, 10-Apr-2018
714,Revenue,CAHD,Bed Purchasing - South,Permanent Residential,Cleeve Lodge,1393.54, 10-Apr-2018
715,Revenue,CAHD,Bed Purchasing - South,Permanent Residential,Cleeve Lodge,1367.56, 10-Apr-2018
716,Revenue,CAHD,Bed Purchasing - South,Permanent Residential,Cleeve Lodge,1286.92, 10-Apr-2018
717,Revenue,CAHD,Bed Purchasing - South,Permanent Residential,Cleeve Lodge,1262.92, 10-Apr-2018
718,Revenue,CAHD,Bed Purchasing - South,Permanent Residential,Cleeve Lodge,1267, 10-Apr-2018
719,Revenue,CAHD,Bed Purchasing - South,Permanent Residential,Cleeve Lodge,1243.38, 10-Apr-2018
720,Revenue,CAHD,Bed Purchasing - South,Permanent Residential,Clerkenleap Barn,3097.66, 10-Apr-2018
721,Revenue,CAHD,Bed Purchasing - South,Permanent Residential,Clerkenleap Barn,3039.9, 10-Apr-2018
722,Revenue,CAHD,Independent Special Placements - Pre 16,Other Private Contractors,Clifton College,5655, 26-Apr-2018
723,Revenue,CAHD,Home Care - Elderly - North,Other Small Contracts,Clover Health and Home Care Ltd,502.43, 16-Apr-2018
724,Revenue,CAHD,Home Care - Elderly - North,Other Small Contracts,Clover Health and Home Care Ltd,2876.6, 12-Apr-2018
725,Revenue,CAHD,Home Care - Elderly - North,Other Small Contracts,Clover Health and Home Care Ltd,2919.6, 26-Apr-2018
726,Revenue,CAHD,Home Care - Elderly - North,Other Small Contracts,Clover Health and Home Care Ltd,1268.75, 26-Apr-2018
727,Revenue,CAHD,Home Care - Elderly - North,Other Small Contracts,Clover Health and Home Care Ltd,1360.1, 16-Apr-2018
728,Revenue,CAHD,CSC - Vinney Green Secure Unit,R & M by Departments,Co Channel Electronics Limited,4026.04, 19-Apr-2018
729,Revenue,CAHD,CSC - Vinney Green Secure Unit,R & M by Departments,Co Channel Electronics Limited,3082.5, 17-Apr-2018
730,Revenue,CAHD,Training - Adult Services,Training Expenses,College of Occupational Therapists Ltd,673, 03-Apr-2018
731,Revenue,CAHD,Bed Purchasing - South,Permanent Residential,Collingwood Residential Home,1094.38, 10-Apr-2018
732,Revenue,CAHD,Bed Purchasing - South,Permanent Residential,Collingwood Residential Home,1073.98, 10-Apr-2018
733,Revenue,CAHD,Bed Purchasing - Southmead Hospital,Permanent Residential,Collingwood Residential Home,1238.7, 10-Apr-2018
734,Revenue,CAHD,Bed Purchasing - Southmead Hospital,Permanent Residential,Collingwood Residential Home,1215.6, 10-Apr-2018
735,Revenue,CAHD,Bed Purchasing - South,Permanent Residential,Collingwood Residential Home,1187.1, 10-Apr-2018
736,Revenue,CAHD,Bed Purchasing - South,Permanent Residential,Collingwood Residential Home,1164.96, 10-Apr-2018
737,Revenue,CAHD,Bed Purchasing - South,Permanent Residential,Collingwood Residential Home,1182.04, 10-Apr-2018
738,Revenue,CAHD,Bed Purchasing - South,Permanent Residential,Collingwood Residential Home,1160, 10-Apr-2018
739,Revenue,CAHD,Bed Purchasing - Southmead Hospital,Permanent Residential,Collingwood Residential Home,1197.4, 10-Apr-2018
740,Revenue,CAHD,Bed Purchasing - Southmead Hospital,Permanent Residential,Collingwood Residential Home,1175.08, 10-Apr-2018
741,Revenue,CAHD,Bed Purchasing - South,Permanent Residential,Collingwood Residential Home,4107.14, 10-Apr-2018
742,Revenue,CAHD,Bed Purchasing - South,Permanent Residential,Collingwood Residential Home,1273.76, 10-Apr-2018
743,Revenue,CAHD,Bed Purchasing - South,Permanent Residential,Collingwood Residential Home,1250, 10-Apr-2018
744,Revenue,CAHD,Bed Purchasing - South,Fees & Charges Income - General,Collingwood Residential Home,1622, 10-Apr-2018
745,Revenue,CAHD,Bed Purchasing - Southmead Hospital,Respite Planned - Residential,Collingwood Residential Home,1222.8, 10-Apr-2018
746,Revenue,CAHD,Bed Purchasing - Southmead Hospital,Respite Planned - Residential,Collingwood Residential Home,1200, 10-Apr-2018
747,Revenue,CAHD,Home Care - Elderly - North,Other Small Contracts,Complimenting Care and Training Services (CCTS) Lt,6401.1, 06-Apr-2018
748,Revenue,CAHD,Home Care - Elderly - North,Other Small Contracts,Complimenting Care and Training Services (CCTS) Lt,5614.21, 06-Apr-2018
749,Revenue,CAHD,Home Care - Elderly - North,Other Small Contracts,Complimenting Care and Training Services (CCTS) Lt,6303.56, 11-Apr-2018
750,Revenue,CAHD,Home Care - Elderly - North,Other Small Contracts,Complimenting Care and Training Services (CCTS) Lt,6297.27, 18-Apr-2018
751,Revenue,CAHD,Home Care - Elderly - North,Other Small Contracts,Complimenting Care and Training Services (CCTS) Lt,6225.88, 26-Apr-2018
752,Revenue,CAHD,Bed and Breakfast,Bed & Breakfast,Connolly & Callaghan Limited,581, 13-Apr-2018
753,Revenue,CAHD,Bed and Breakfast,Bed & Breakfast,Connolly & Callaghan Limited,581, 13-Apr-2018
754,Revenue,CAHD,Bed and Breakfast,Bed & Breakfast,Connolly & Callaghan Limited,490, 06-Apr-2018
755,Revenue,CAHD,Bed and Breakfast,Bed & Breakfast,Connolly & Callaghan Limited,448, 16-Apr-2018
756,Revenue,CAHD,Bed and Breakfast,Bed & Breakfast,Connolly & Callaghan Limited,490, 16-Apr-2018
757,Revenue,CAHD,Bed and Breakfast,Bed & Breakfast,Connolly & Callaghan Limited,539, 20-Apr-2018
758,Revenue,CAHD,Bed and Breakfast,Bed & Breakfast,Connolly & Callaghan Limited,679, 16-Apr-2018
759,Revenue,CAHD,Bed and Breakfast,Bed & Breakfast,Connolly & Callaghan Limited,539, 20-Apr-2018
760,Revenue,CAHD,Bed and Breakfast,Bed & Breakfast,Connolly & Callaghan Limited,498, 16-Apr-2018
761,Revenue,CAHD,Bed and Breakfast,Bed & Breakfast,Connolly & Callaghan Limited,490, 16-Apr-2018
762,Revenue,CAHD,Bed and Breakfast,Bed & Breakfast,Connolly & Callaghan Limited,623, 16-Apr-2018
763,Revenue,CAHD,Bed and Breakfast,Bed & Breakfast,Connolly & Callaghan Limited,497, 16-Apr-2018
764,Revenue,CAHD,Bed and Breakfast,Bed & Breakfast,Connolly & Callaghan Limited,448, 18-Apr-2018
765,Revenue,CAHD,Bed and Breakfast,Bed & Breakfast,Connolly & Callaghan Limited,679, 18-Apr-2018
766,Revenue,CAHD,Bed and Breakfast,Bed & Breakfast,Connolly & Callaghan Limited,539, 18-Apr-2018
767,Revenue,CAHD,Bed and Breakfast,Bed & Breakfast,Connolly & Callaghan Limited,581, 18-Apr-2018
768,Revenue,CAHD,Bed and Breakfast,Bed & Breakfast,Connolly & Callaghan Limited,490, 18-Apr-2018
769,Revenue,CAHD,Bed and Breakfast,Bed & Breakfast,Connolly & Callaghan Limited,623, 18-Apr-2018
770,Revenue,CAHD,Bed and Breakfast,Bed & Breakfast,Connolly & Callaghan Limited,497, 18-Apr-2018
771,Revenue,CAHD,Bed and Breakfast,Bed & Breakfast,Connolly & Callaghan Limited,448, 19-Apr-2018
772,Revenue,CAHD,Bed and Breakfast,Bed & Breakfast,Connolly & Callaghan Limited,679, 19-Apr-2018
773,Revenue,CAHD,Bed and Breakfast,Bed & Breakfast,Connolly & Callaghan Limited,539, 24-Apr-2018
774,Revenue,CAHD,Bed and Breakfast,Bed & Breakfast,Connolly & Callaghan Limited,581, 19-Apr-2018
775,Revenue,CAHD,Bed and Breakfast,Bed & Breakfast,Connolly & Callaghan Limited,581, 19-Apr-2018
776,Revenue,CAHD,Bed and Breakfast,Bed & Breakfast,Connolly & Callaghan Limited,490, 19-Apr-2018
777,Revenue,CAHD,Bed and Breakfast,Bed & Breakfast,Connolly & Callaghan Limited,420, 19-Apr-2018
778,Revenue,CAHD,Bed and Breakfast,Bed & Breakfast,Connolly & Callaghan Limited,623, 23-Apr-2018
779,Revenue,CAHD,Bed and Breakfast,Bed & Breakfast,Connolly & Callaghan Limited,497, 19-Apr-2018
780,Revenue,CAHD,Bed and Breakfast,Bed & Breakfast,Connolly & Callaghan Limited,490, 25-Apr-2018
781,Revenue,CAHD,Bed and Breakfast,Bed & Breakfast,Connolly & Callaghan Limited,679, 27-Apr-2018
782,Revenue,CAHD,Bed and Breakfast,Bed & Breakfast,Connolly & Callaghan Limited,539, 25-Apr-2018
783,Revenue,CAHD,Bed and Breakfast,Bed & Breakfast,Connolly & Callaghan Limited,581, 25-Apr-2018
784,Revenue,CAHD,Bed and Breakfast,Bed & Breakfast,Connolly & Callaghan Limited,581, 27-Apr-2018
785,Revenue,CAHD,Bed and Breakfast,Bed & Breakfast,Connolly & Callaghan Limited,490, 25-Apr-2018
786,Revenue,CAHD,Bed and Breakfast,Bed & Breakfast,Connolly & Callaghan Limited,539, 30-Apr-2018
787,Revenue,CAHD,CSC - Allowances,Membership Fees,CoramBAAF Ltd t/a Coram Academy Ltd,1088.1, 16-Apr-2018
788,Revenue,CAHD,Bed Purchasing - Southmead Hospital,Permanent Nursing,Cranhill Nursing Home,14750, 10-Apr-2018
789,Revenue,CAHD,Bed Purchasing - Southmead Hospital,Permanent Nursing,Cranhill Nursing Home,1783.26, 10-Apr-2018
790,Revenue,CAHD,Bed Purchasing - Southmead Hospital,Permanent Nursing,Cranhill Nursing Home,1750, 10-Apr-2018
791,Revenue,CAHD,Bed Purchasing - Southmead Hospital,Fees & Charges Income - General,Cranhill Nursing Home,1114.01, 10-Apr-2018
792,Revenue,CAHD,Bed Purchasing - North,Permanent Residential,Cream Iii Ltd,4220.7, 10-Apr-2018
793,Revenue,CAHD,Bed Purchasing - North,Permanent Residential,Cream Iii Ltd,4142, 10-Apr-2018
794,Revenue,CAHD,18-25 Year Olds,Permanent Residential,Cream Iii Ltd,4921.78, 10-Apr-2018
795,Revenue,CAHD,18-25 Year Olds,Respite Planned - Residential,Cream Iii Ltd,4830, 10-Apr-2018
796,Revenue,CAHD,Bed purchasing -S28A  Under 65 - North,Permanent Residential,Creedy Court,5174.78, 10-Apr-2018
797,Revenue,CAHD,Bed purchasing -S28A  Under 65 - North,Permanent Residential,Creedy Court,5078.3, 10-Apr-2018
798,Revenue,CAHD,Bed Purchasing - S28A - Over 65- North,Permanent Residential,Creedy Court,4348.1, 10-Apr-2018
799,Revenue,CAHD,Bed Purchasing - S28A - Over 65- North,Permanent Residential,Creedy Court,4267.02, 10-Apr-2018
800,Revenue,CAHD,Bed Purchasing - North,Permanent Residential,Creedy Court,6862.3, 10-Apr-2018
801,Revenue,CAHD,Bed Purchasing - North,Permanent Residential,Creedy Court,6734.34, 10-Apr-2018
802,Revenue,CAHD,EARLY YEARS DISABILITY  ACCES FUND,Preventative Assistance,Crossbow Pre School,615, 04-Apr-2018
803,Revenue,CAHD,Early Years Inclusion Fund,Other Public Bodies,Crossbows pre-school,900, 18-Apr-2018
804,Revenue,CAHD,Brokerage and Information Service,Grants to Voluntary Bodies,Curo Care & Support,32098.75, 13-Apr-2018
805,Revenue,CAHD,Public Health Project Funding - OffSH,Consultants Fees,D Harvey Consulting Limited,889.2, 03-Apr-2018
806,Revenue,CAHD,Bed Purchasing - South,Permanent Residential,Daneswood,5990.62, 10-Apr-2018
807,Revenue,CAHD,Bed Purchasing - South,Permanent Residential,Daneswood,5878.92, 10-Apr-2018
808,Revenue,CAHD,Home Care - Elderly - South,Day Care / Social Activities,Daneswood,677.28, 10-Apr-2018
809,Revenue,CAHD,Home Care - Elderly - South,Day Care / Social Activities,Daneswood,690.16, 10-Apr-2018
810,Revenue,CAHD,Bed Purchasing - North,Permanent Residential,Daneswood,5011.72, 10-Apr-2018
811,Revenue,CAHD,Bed Purchasing - North,Permanent Residential,Daneswood,4918.28, 10-Apr-2018
812,Revenue,CAHD,Bed Purchasing - Elderly S117- North,Permanent Nursing,Danshell Healthcare Group,5308.72, 10-Apr-2018
813,Revenue,CAHD,Jointly Funded H&SC Packages,Permanent Nursing,Danshell Healthcare Group,787.74, 10-Apr-2018
814,Revenue,CAHD,Bed Purchasing - Elderly S117- North,Permanent Nursing,Danshell Healthcare Group,5209.72, 10-Apr-2018
815,Revenue,CAHD,Jointly Funded H&SC Packages,Permanent Nursing,Danshell Healthcare Group,773.06, 10-Apr-2018
816,Revenue,CAHD,Learning Difficulties PSL,Other Supplies & Services,Individual,2267.91, 20-Apr-2018
817,Revenue,CAHD,Children Centres - North Locality,Printing & Stationery,De Lage Landen Leasing Ltd,1142.23, 06-Apr-2018
818,Revenue,CAHD,Children Centres - South Locality,Printing & Stationery,De Lage Landen Leasing Ltd,1142.22, 06-Apr-2018
819,Revenue,CAHD,SLA Grants - Support Serv,Grants to Voluntary Bodies,Delia Robins,500, 13-Apr-2018
820,Revenue,CAHD,Post 16 High Needs Placements,Other Private Contractors,Derwen College,17224.37, 20-Apr-2018
821,Revenue,CAHD,Home Care - Elderly - South,Supported Living,Design House,1399.22, 10-Apr-2018
822,Revenue,CAHD,Home Care - Elderly - South,Supported Living,Design House,1373.14, 10-Apr-2018
823,Revenue,CAHD,Home Care - Elderly - South,Supported Living,Design House,1495.76, 10-Apr-2018
824,Revenue,CAHD,Home Care - Elderly - South,Supported Living,Design House,1467.88, 10-Apr-2018
825,Revenue,CAHD,Home Care - Elderly - South,Supported Living,Design House,1529.82, 10-Apr-2018
826,Revenue,CAHD,Home Care - Elderly - South,Supported Living,Design House,1501.3, 10-Apr-2018
827,Revenue,CAHD,Home Care - Elderly - South,Supported Living,Design House,1461.7, 10-Apr-2018
828,Revenue,CAHD,Home Care - Elderly - South,Supported Living,Design House,1434.44, 10-Apr-2018
829,Revenue,CAHD,Home Care - Elderly - North,Day Care / Social Activities,Design House,1169.72, 10-Apr-2018
830,Revenue,CAHD,Home Care - Elderly - North,Day Care / Social Activities,Design House,1191.94, 10-Apr-2018
831,Revenue,CAHD,Home Care - Elderly - South,Day Care / Social Activities,Design House,735.8, 10-Apr-2018
832,Revenue,CAHD,Home Care - Elderly - South,Day Care / Social Activities,Design House,749.78, 10-Apr-2018
833,Revenue,CAHD,Home Care - Elderly - South,Supported Living,Design House,1288.5, 10-Apr-2018
834,Revenue,CAHD,Home Care - Elderly - South,Supported Living,Design House,1264.48, 10-Apr-2018
835,Revenue,CAHD,Home Care - Elderly - South,Supported Living,Design House,1288.5, 10-Apr-2018
836,Revenue,CAHD,Home Care - Elderly - South,Supported Living,Design House,1264.48, 10-Apr-2018
837,Revenue,CAHD,Home Care - Elderly - South,Supported Living,Design House,1049.58, 10-Apr-2018
838,Revenue,CAHD,Home Care - Elderly - South,Supported Living,Design House,1030, 10-Apr-2018
839,Revenue,CAHD,Home Care - Elderly - South,Supported Living,Design House,926.12, 10-Apr-2018
840,Revenue,CAHD,Home Care - Elderly - South,Supported Living,Design House,908.86, 10-Apr-2018
841,Revenue,CAHD,Home Care - Elderly - South,Supported Living,Design House,1228.92, 10-Apr-2018
842,Revenue,CAHD,Home Care - Elderly - South,Supported Living,Design House,1206, 10-Apr-2018
843,Revenue,CAHD,Home Care - Elderly - South,Supported Living,Design House,2103.3, 10-Apr-2018
844,Revenue,CAHD,Home Care - Elderly - South,Supported Living,Design House,2064.08, 10-Apr-2018
845,Revenue,CAHD,Home Care - Elderly - South,Supported Living,Design House,1491.48, 10-Apr-2018
846,Revenue,CAHD,Home Care - Elderly - South,Supported Living,Design House,1463.68, 10-Apr-2018
847,Revenue,CAHD,Home Care - Elderly - South,Day Care / Social Activities,Design House,715.8, 10-Apr-2018
848,Revenue,CAHD,Home Care - Elderly - South,Day Care / Social Activities,Design House,735.4, 10-Apr-2018
849,Revenue,CAHD,Home Care - Elderly - South,Supported Living,Design House,1416.26, 10-Apr-2018
850,Revenue,CAHD,Home Care - Elderly - South,Supported Living,Design House,1389.86, 10-Apr-2018
851,Revenue,CAHD,Home Care - Elderly - South,Supported Living,Design House,1241.72, 10-Apr-2018
852,Revenue,CAHD,Home Care - Elderly - South,Supported Living,Design House,1218.56, 10-Apr-2018
853,Revenue,CAHD,Home Care - Elderly - South,Supported Living,Design House,1102.4, 10-Apr-2018
854,Revenue,CAHD,Home Care - Elderly - South,Supported Living,Design House,1081.84, 10-Apr-2018
855,Revenue,CAHD,Home Care - Elderly - South,Supported Living,Design House,926.12, 10-Apr-2018
856,Revenue,CAHD,Home Care - Elderly - South,Supported Living,Design House,908.86, 10-Apr-2018
857,Revenue,CAHD,Home Care - Elderly - South,Supported Living,Design House,1102.4, 10-Apr-2018
858,Revenue,CAHD,Home Care - Elderly - South,Supported Living,Design House,1081.84, 10-Apr-2018
859,Revenue,CAHD,Bed Purchasing - South,Permanent Residential,Devon & Cornwall Autistic Community Trus,4853.52, 10-Apr-2018
860,Revenue,CAHD,Bed Purchasing - South,Permanent Residential,Devon & Cornwall Autistic Community Trus,4763.02, 10-Apr-2018
861,Revenue,CAHD,Home Care - Elderly - South,Other Small Contracts,Dhek Bhal,443.52, 11-Apr-2018
862,Revenue,CAHD,Home Care - Elderly - North,Other Small Contracts,Dhek Bhal,120.96, 11-Apr-2018
863,Revenue,CAHD,Home Care - Elderly - South,Other Small Contracts,Dhek Bhal,559.44, 11-Apr-2018
864,Revenue,CAHD,Home Care - Elderly - North,Other Small Contracts,Dhek Bhal,120.96, 11-Apr-2018
865,Revenue,CAHD,Home Care - Elderly - South,Other Small Contracts,Dhek Bhal,569.52, 30-Apr-2018
866,Revenue,CAHD,Home Care - Elderly - North,Other Small Contracts,Dhek Bhal,120.96, 30-Apr-2018
867,Revenue,CAHD,Health Inequalities,Other Small Contracts,Dhek Bhal,500, 13-Apr-2018
868,Revenue,CAHD,Home Care - Elderly - North,Supported Living,Dimensions  Suite 2,9308.94, 10-Apr-2018
869,Revenue,CAHD,Home Care - Elderly - North,Supported Living,Dimensions  Suite 2,911.62, 10-Apr-2018
870,Revenue,CAHD,Home Care - Elderly - South,Supported Living,Dimensions  Suite 2,928.94, 10-Apr-2018
871,Revenue,CAHD,Home Care - Elderly - South,Supported Living,Dimensions  Suite 2,911.62, 10-Apr-2018
872,Revenue,CAHD,Home Care - Elderly - South,Supported Living,Dimensions  Suite 2,928.94, 10-Apr-2018
873,Revenue,CAHD,Home Care - Elderly - South,Supported Living,Dimensions  Suite 2,911.62, 10-Apr-2018
874,Revenue,CAHD,Home Care - Elderly - South,Supported Living,Dimensions  Suite 2,928.94, 10-Apr-2018
875,Revenue,CAHD,Home Care - Elderly - South,Supported Living,Dimensions  Suite 2,911.62, 10-Apr-2018
876,Revenue,CAHD,Home Care - Elderly - North,Supported Living,Dimensions  Suite 2,928.94, 10-Apr-2018
877,Revenue,CAHD,Home Care - Elderly - North,Supported Living,Dimensions  Suite 2,911.62, 10-Apr-2018
878,Revenue,CAHD,Bed Purchasing - South,Permanent Residential,Dimensions  Suite 2,2749.4, 10-Apr-2018
879,Revenue,CAHD,Bed Purchasing - South,Permanent Residential,Dimensions  Suite 2,2698.14, 10-Apr-2018
880,Revenue,CAHD,Bed Purchasing - South,Permanent Residential,Dimensions  Suite 2,1370.18, 10-Apr-2018
881,Revenue,CAHD,Bed Purchasing - South,Permanent Residential,Dimensions  Suite 2,1344.64, 10-Apr-2018
882,Revenue,CAHD,CSC - Section 17 SOUTH,Other Supplies & Services,DNA Worldwide Group,649, 13-Apr-2018
883,Revenue,CAHD,Training - Adult Services,Training Expenses,Do The Write Thing,850, 13-Apr-2018
884,Revenue,CAHD,Community Support - South,Preventative Assistance,Dobbins Industrial Cleaning Limited,680, 17-Apr-2018
885,Revenue,CAHD,Home Care - Elderly - South,Day Care / Social Activities,DoCare Limited,72.38, 16-Apr-2018
886,Revenue,CAHD,Home Care - Elderly - South,Other Small Contracts,DoCare Limited,917.57, 16-Apr-2018
887,Revenue,CAHD,Home Care - Elderly - North,Other Small Contracts,DoCare Limited,6828.36, 16-Apr-2018
888,Revenue,CAHD,Home Care - Elderly - South,Day Care / Social Activities,DoCare Limited,31.02, 16-Apr-2018
889,Revenue,CAHD,Home Care - Elderly - South,Other Small Contracts,DoCare Limited,1062.33, 16-Apr-2018
890,Revenue,CAHD,Home Care - Elderly - North,Other Small Contracts,DoCare Limited,6662.41, 16-Apr-2018
891,Revenue,CAHD,Home Care - Elderly - South,Day Care / Social Activities,DoCare Limited,31.02, 16-Apr-2018
892,Revenue,CAHD,Home Care - Elderly - South,Other Small Contracts,DoCare Limited,1025.63, 16-Apr-2018
893,Revenue,CAHD,Home Care - Elderly - North,Other Small Contracts,DoCare Limited,6763.77, 16-Apr-2018
894,Revenue,CAHD,Home Care - Elderly - South,Day Care / Social Activities,DoCare Limited,73.78, 24-Apr-2018
895,Revenue,CAHD,Home Care - Elderly - South,Other Small Contracts,DoCare Limited,850.78, 24-Apr-2018
896,Revenue,CAHD,Home Care - Elderly - North,Other Small Contracts,DoCare Limited,6452.57, 24-Apr-2018
897,Revenue,CAHD,Personnel Costs,Legal Fees,Douglas Leach,1480, 16-Apr-2018
898,Revenue,CAHD,Early Years Inclusion Fund,Other Public Bodies,Downend Folk House Association,500, 26-Apr-2018
899,Revenue,CAHD,Statemented Support Academies,Schools Funding,Downend School,553.41, 27-Apr-2018
900,Revenue,CAHD,Statemented Support Academies,Schools Funding,Downend School,1119.41, 27-Apr-2018
901,Revenue,CAHD,Statemented Support Academies,Schools Funding,Downend School,541.62, 27-Apr-2018
902,Revenue,CAHD,Statemented Support Academies,Schools Funding,Downend School,565.2, 27-Apr-2018
903,Revenue,CAHD,Statemented Support Academies,Schools Funding,Downend School,1154.78, 27-Apr-2018
904,Revenue,CAHD,Statemented Support Academies,Schools Funding,Downend School,671.33, 27-Apr-2018
905,Revenue,CAHD,Statemented Support Academies,Schools Funding,Downend School,612.37, 27-Apr-2018
906,Revenue,CAHD,Statemented Support Academies,Schools Funding,Downend School,553.41, 27-Apr-2018
907,Revenue,CAHD,Statemented Support Academies,Schools Funding,Downend School,553.41, 27-Apr-2018
908,Revenue,CAHD,Social Lettings Agency,Other Supplies & Services,Individual,596.04, 24-Apr-2018
909,Revenue,CAHD,Bed Purchasing - North,Permanent Nursing,Drakes Court,1166.2, 10-Apr-2018
910,Revenue,CAHD,Bed Purchasing - North,Permanent Nursing,Drakes Court,1144.46, 10-Apr-2018
911,Revenue,CAHD,Bed Purchasing - Southmead Hospital,Permanent Nursing,Drakes Court,1416.42, 10-Apr-2018
912,Revenue,CAHD,Bed Purchasing - Southmead Hospital,Permanent Nursing,Drakes Court,1390, 10-Apr-2018
913,Revenue,CAHD,South Glos Users in South Glos Homes,Permanent Nursing,Drakes Court,3233.9, 10-Apr-2018
914,Revenue,CAHD,Bed Purchasing - North,Permanent Nursing,Drakes Court,1375.66, 10-Apr-2018
915,Revenue,CAHD,Bed Purchasing - North,Permanent Nursing,Drakes Court,1350, 10-Apr-2018
916,Revenue,CAHD,Bed Purchasing - Southmead Hospital,Permanent Nursing,Drakes Court,1008.62, 10-Apr-2018
917,Revenue,CAHD,Bed Purchasing - Southmead Hospital,Permanent Nursing,Drakes Court,972.64, 10-Apr-2018
918,Revenue,CAHD,Bed Purchasing - South,Permanent Nursing,Drakes Court,1416.42, 10-Apr-2018
919,Revenue,CAHD,Bed Purchasing - South,Permanent Nursing,Drakes Court,1390, 10-Apr-2018
920,Revenue,CAHD,Bed Purchasing - Southmead Hospital,Permanent Nursing,Drakes Court,1416.42, 10-Apr-2018
921,Revenue,CAHD,Bed Purchasing - Southmead Hospital,Permanent Nursing,Drakes Court,1390, 10-Apr-2018
922,Revenue,CAHD,Bed Purchasing - North,Permanent Nursing,Drakes Court,1008.62, 10-Apr-2018
923,Revenue,CAHD,Bed Purchasing - North,Permanent Nursing,Drakes Court,972.64, 10-Apr-2018
924,Revenue,CAHD,Bed Purchasing - Southmead Hospital,Permanent Nursing,Drakes Court,1008.62, 10-Apr-2018
925,Revenue,CAHD,Bed Purchasing - Southmead Hospital,Permanent Nursing,Drakes Court,972.64, 10-Apr-2018
926,Revenue,CAHD,South Glos Users in South Glos Homes,Permanent Nursing,Drakes Court,2192.85, 10-Apr-2018
927,Revenue,CAHD,Bed Purchasing - North,Permanent Residential,Drakes Court,978.02, 10-Apr-2018
928,Revenue,CAHD,Bed Purchasing - North,Permanent Residential,Drakes Court,943.12, 10-Apr-2018
929,Revenue,CAHD,Bed Purchasing - North,Permanent Nursing,Drakes Court,1341.92, 10-Apr-2018
930,Revenue,CAHD,Bed Purchasing - North,Permanent Nursing,Drakes Court,1316.9, 10-Apr-2018
931,Revenue,CAHD,MH Purchasing - Younger,Permanent Residential,Dunraven House,1158.08, 10-Apr-2018
932,Revenue,CAHD,MH Purchasing - Younger,Permanent Residential,Dunraven House,1136.48, 10-Apr-2018
933,Revenue,CAHD,Bed and Breakfast,Bed & Breakfast,E J Bartlett,532, 10-Apr-2018
934,Revenue,CAHD,Bed and Breakfast,Bed & Breakfast,E J Bartlett,532, 10-Apr-2018
935,Revenue,CAHD,Bed and Breakfast,Bed & Breakfast,E J Bartlett,602, 11-Apr-2018
936,Revenue,CAHD,Bed and Breakfast,Bed & Breakfast,E J Bartlett,532, 10-Apr-2018
937,Revenue,CAHD,Bed and Breakfast,Bed & Breakfast,E J Bartlett,602, 11-Apr-2018
938,Revenue,CAHD,Bed and Breakfast,Bed & Breakfast,E J Bartlett,532, 10-Apr-2018
939,Revenue,CAHD,Bed and Breakfast,Bed & Breakfast,E J Bartlett,532, 18-Apr-2018
940,Revenue,CAHD,Bed and Breakfast,Bed & Breakfast,E J Bartlett,602, 17-Apr-2018
941,Revenue,CAHD,Bed and Breakfast,Bed & Breakfast,E J Bartlett,532, 18-Apr-2018
942,Revenue,CAHD,Bed and Breakfast,Bed & Breakfast,E J Bartlett,532, 23-Apr-2018
943,Revenue,CAHD,Bed and Breakfast,Bed & Breakfast,E J Bartlett,1290, 23-Apr-2018
944,Revenue,CAHD,Bed and Breakfast,Bed & Breakfast,E J Bartlett,602, 30-Apr-2018
945,Revenue,CAHD,Bed and Breakfast,Bed & Breakfast,E J Bartlett,532, 23-Apr-2018
946,Revenue,CAHD,Homelessness Grant,Other Supplies & Services,East Cambridge District Council,2010, 24-Apr-2018
947,Revenue,CAHD,Homelessness Grant,Other Supplies & Services,East Cambridge District Council,2010, 12-Apr-2018
948,Revenue,CAHD,Bed Purchasing - North,Permanent Residential,East Court,1349.4, 10-Apr-2018
949,Revenue,CAHD,Bed Purchasing - North,Permanent Residential,East Court,1324.24, 10-Apr-2018
950,Revenue,CAHD,General EPH budgets,Long Service Awards,Edenred UK Group Ltd,561, 30-Apr-2018
951,Revenue,CAHD,Transitional Team,Long Service Awards,Edenred UK Group Ltd,449, 30-Apr-2018
952,Revenue,CAHD,Mental Capacity Act / DOLS,Grants to Voluntary Bodies,Edge Training & Consultancy Limited,1105, 03-Apr-2018
953,Revenue,CAHD,Training - Adult Services,Training Expenses,Edge Training & Consultancy Limited,925, 03-Apr-2018
954,Revenue,CAHD,Bed Purchasing - Southmead Hospital,Permanent Residential,Edgecumbe Lodge,1074.34, 10-Apr-2018
955,Revenue,CAHD,Bed Purchasing - Southmead Hospital,Permanent Residential,Edgecumbe Lodge,1036, 10-Apr-2018
956,Revenue,CAHD,Bed Purchasing - North,Respite Planned - Residential,Edgecumbe Lodge,1548.88, 10-Apr-2018
957,Revenue,CAHD,Bed Purchasing - North,Respite Planned - Residential,Edgecumbe Lodge,1520, 10-Apr-2018
958,Revenue,CAHD,Bed Purchasing - Southmead Hospital,Permanent Residential,Edgecumbe Lodge,1238.7, 10-Apr-2018
959,Revenue,CAHD,Bed Purchasing - Southmead Hospital,Permanent Residential,Edgecumbe Lodge,1215.6, 10-Apr-2018
960,Revenue,CAHD,Bed Purchasing - South,Permanent Residential,Edgecumbe Lodge,1110, 10-Apr-2018
961,Revenue,CAHD,Bed Purchasing - South,Permanent Residential,Edgecumbe Lodge,1078.12, 10-Apr-2018
962,Revenue,CAHD,Bed Purchasing - North,Permanent Residential,Edgecumbe Lodge,1182.28, 10-Apr-2018
963,Revenue,CAHD,Bed Purchasing - North,Permanent Residential,Edgecumbe Lodge,1160.24, 10-Apr-2018
964,Revenue,CAHD,Bed Purchasing - South,Permanent Residential,Edgecumbe Lodge,1110, 10-Apr-2018
965,Revenue,CAHD,Bed Purchasing - South,Permanent Residential,Edgecumbe Lodge,1078.12, 10-Apr-2018
966,Revenue,CAHD,Bed Purchasing - South,Permanent Residential,Edgecumbe Lodge,1238.7, 10-Apr-2018
967,Revenue,CAHD,Bed Purchasing - South,Permanent Residential,Edgecumbe Lodge,1215.6, 10-Apr-2018
968,Revenue,CAHD,Bed Purchasing - South,Permanent Residential,Edgecumbe Lodge,1222.8, 10-Apr-2018
969,Revenue,CAHD,Bed Purchasing - South,Permanent Residential,Edgecumbe Lodge,1200, 10-Apr-2018
970,Revenue,CAHD,Bed Purchasing - Southmead Hospital,Permanent Residential,Edgecumbe Lodge,1238.7, 10-Apr-2018
971,Revenue,CAHD,Bed Purchasing - Southmead Hospital,Permanent Residential,Edgecumbe Lodge,1215.6, 10-Apr-2018
972,Revenue,CAHD,Bed Purchasing - North,Permanent Residential,Edgecumbe Lodge,1098.6, 10-Apr-2018
973,Revenue,CAHD,Bed Purchasing - North,Permanent Residential,Edgecumbe Lodge,1078.12, 10-Apr-2018
974,Revenue,CAHD,Bed Purchasing - Southmead Hospital,Permanent Residential,Edgemont House Ltd,974.36, 10-Apr-2018
975,Revenue,CAHD,Bed Purchasing - Southmead Hospital,Permanent Residential,Edgemont House Ltd,939.6, 10-Apr-2018
976,Revenue,CAHD,Bed Purchasing - South,Permanent Residential,Edgemont House Ltd,1114.82, 10-Apr-2018
977,Revenue,CAHD,Bed Purchasing - South,Permanent Residential,Edgemont House Ltd,1094.04, 10-Apr-2018
978,Revenue,CAHD,Bed Purchasing - South,Permanent Nursing,Edgemont View Nursing Home,1732.3, 10-Apr-2018
979,Revenue,CAHD,Bed Purchasing - South,Permanent Nursing,Edgemont View Nursing Home,1700, 10-Apr-2018
980,Revenue,CAHD,Bed Purchasing - South,Permanent Nursing,Edgemont View Nursing Home,1486.44, 10-Apr-2018
981,Revenue,CAHD,Bed Purchasing - South,Permanent Nursing,Edgemont View Nursing Home,1458.72, 10-Apr-2018
982,Revenue,CAHD,Bed Purchasing - South,Permanent Nursing,Edgemont View Nursing Home,1467.36, 10-Apr-2018
983,Revenue,CAHD,Bed Purchasing - South,Permanent Nursing,Edgemont View Nursing Home,1440, 10-Apr-2018
984,Revenue,CAHD,South Glos Users in South Glos Homes,Permanent Nursing,Edgemont View Nursing Home,3411.1, 10-Apr-2018
985,Revenue,CAHD,Bed Purchasing - South,Permanent Nursing,Edgemont View Nursing Home,1467.36, 10-Apr-2018
986,Revenue,CAHD,Bed Purchasing - South,Permanent Nursing,Edgemont View Nursing Home,1440, 10-Apr-2018
987,Revenue,CAHD,Bed Purchasing - South,Permanent Nursing,Edgemont View Nursing Home,1155.22, 10-Apr-2018
988,Revenue,CAHD,Bed Purchasing - South,Permanent Nursing,Edgemont View Nursing Home,1114, 10-Apr-2018
989,Revenue,CAHD,South Glos Users in South Glos Homes,Permanent Nursing,Edgemont View Nursing Home,3411.1, 10-Apr-2018
990,Revenue,CAHD,Planning and Partnerships Procurement,Other Supplies & Services,Eldercare,2960.94, 30-Apr-2018
991,Revenue,CAHD,Planning and Partnerships Procurement,Other Supplies & Services,Eldercare,2224.35, 30-Apr-2018
992,Revenue,CAHD,Supporting People Programme,Grants to Voluntary Bodies,Elim Housing Association Limited,5245.73, 06-Apr-2018
993,Revenue,CAHD,Home Care - Elderly - South,Other Small Contracts,Elite Home Care Ltd,9034.42, 04-Apr-2018
994,Revenue,CAHD,Home Care - Elderly - South,Supported Living,Elite Home Care Ltd,54.48, 04-Apr-2018
995,Revenue,CAHD,Home Care - Elderly - North,Other Small Contracts,Elite Home Care Ltd,1334.76, 04-Apr-2018
996,Revenue,CAHD,Home Care - Elderly - South,Other Small Contracts,Elite Home Care Ltd,8874.98, 18-Apr-2018
997,Revenue,CAHD,Home Care - Elderly - South,Supported Living,Elite Home Care Ltd,54.48, 18-Apr-2018
998,Revenue,CAHD,Home Care - Elderly - North,Other Small Contracts,Elite Home Care Ltd,1194.02, 18-Apr-2018
999,Revenue,CAHD,Home Care - Elderly - South,Other Small Contracts,Elite Home Care Ltd,8640.44, 18-Apr-2018
1000,Revenue,CAHD,Home Care - Elderly - South,Supported Living,Elite Home Care Ltd,54.48, 18-Apr-2018
1001,Revenue,CAHD,Home Care - Elderly - North,Other Small Contracts,Elite Home Care Ltd,1189.48, 18-Apr-2018
1002,Revenue,CAHD,Home Care - Elderly - South,Other Small Contracts,Elite Home Care Ltd,8121.52, 24-Apr-2018
1003,Revenue,CAHD,Home Care - Elderly - South,Supported Living,Elite Home Care Ltd,55.56, 24-Apr-2018
1004,Revenue,CAHD,Home Care - Elderly - North,Other Small Contracts,Elite Home Care Ltd,1365.85, 24-Apr-2018
1005,Revenue,CAHD,Home Care - Elderly - South,Other Small Contracts,Elite Home Care Ltd,7571.32, 30-Apr-2018
1006,Revenue,CAHD,Home Care - Elderly - South,Supported Living,Elite Home Care Ltd,55.56, 30-Apr-2018
1007,Revenue,CAHD,Home Care - Elderly - North,Other Small Contracts,Elite Home Care Ltd,1305.66, 30-Apr-2018
1008,Revenue,CAHD,CSC - Legal Fees,Legal Fees,Individual,500, 09-Apr-2018
1009,Revenue,CAHD,Hospital Tuition,Other Private Contractors,Ellern Mede School,8060, 10-Apr-2018
1010,Revenue,CAHD,Hospital Tuition,Other Private Contractors,Ellern Mede School,11470, 10-Apr-2018
1011,Revenue,CAHD,CSC - Legal Fees,Legal Fees,Individual,500, 30-Apr-2018
1012,Revenue,CAHD,CSC - Legal Fees,Legal Fees,Individual,500, 06-Apr-2018
1013,Revenue,CAHD,CSC - Agency Fostering,Foster Parent Allowances,Enhanced Foster Care Ltd,4500, 26-Apr-2018
1014,Revenue,CAHD,Bed Purchasing - Southmead Hospital,Permanent Nursing,Fairview Court,1732.3, 10-Apr-2018
1015,Revenue,CAHD,Bed Purchasing - Southmead Hospital,Permanent Nursing,Fairview Court,1700, 10-Apr-2018
1016,Revenue,CAHD,Bed Purchasing - Southmead Hospital,Permanent Nursing,Fairview Court,1711.92, 10-Apr-2018
1017,Revenue,CAHD,Bed Purchasing - Southmead Hospital,Permanent Nursing,Fairview Court,1680, 10-Apr-2018
1018,Revenue,CAHD,Bed purchasing - Elderly S117 - South,Permanent Nursing,Fairview Court,2038, 10-Apr-2018
1019,Revenue,CAHD,Bed purchasing - Elderly S117 - South,Permanent Nursing,Fairview Court,2000, 10-Apr-2018
1020,Revenue,CAHD,Bed Purchasing - South,Permanent Nursing,Fairview Court,1651.6, 10-Apr-2018
1021,Revenue,CAHD,Bed Purchasing - South,Permanent Nursing,Fairview Court,1620.8, 10-Apr-2018
1022,Revenue,CAHD,Bed Purchasing - Southmead Hospital,Fees & Charges Income - General,Fairview Court,552.85, 10-Apr-2018
1023,Revenue,CAHD,Bed Purchasing - Southmead Hospital,Permanent Nursing,Fairview Court,1732.3, 10-Apr-2018
1024,Revenue,CAHD,Bed Purchasing - Southmead Hospital,Permanent Nursing,Fairview Court,1700, 10-Apr-2018
1025,Revenue,CAHD,Bed Purchasing - Southmead Hospital,Permanent Nursing,Fairview Court,1732.3, 10-Apr-2018
1026,Revenue,CAHD,Bed Purchasing - Southmead Hospital,Permanent Nursing,Fairview Court,1700, 10-Apr-2018
1027,Revenue,CAHD,Bed Purchasing - Southmead Hospital,Permanent Nursing,Fairview Court,1732.3, 10-Apr-2018
1028,Revenue,CAHD,Bed Purchasing - Southmead Hospital,Permanent Nursing,Fairview Court,1700, 10-Apr-2018
1029,Revenue,CAHD,South Glos Users in South Glos Homes,Permanent Nursing,Fairview Court,620.2, 10-Apr-2018
1030,Revenue,CAHD,South Glos Users in South Glos Homes,Permanent Nursing,Fairview Court,1461.9, 10-Apr-2018
1031,Revenue,CAHD,Bed Purchasing - North,Permanent Nursing,Fairview Court,1732.3, 10-Apr-2018
1032,Revenue,CAHD,Bed Purchasing - North,Permanent Nursing,Fairview Court,1700, 10-Apr-2018
1033,Revenue,CAHD,Bed Purchasing - Southmead Hospital,Permanent Nursing,Fairview Court,1732.3, 10-Apr-2018
1034,Revenue,CAHD,Bed Purchasing - Southmead Hospital,Permanent Nursing,Fairview Court,1700, 10-Apr-2018
1035,Revenue,CAHD,Bed Purchasing - Southmead Hospital,Fees & Charges Income - General,Fairview Court,595.42, 10-Apr-2018
1036,Revenue,CAHD,Bed Purchasing - Southmead Hospital,Permanent Nursing,Fairview Court,2307.14, 10-Apr-2018
1037,Revenue,CAHD,Bed Purchasing - Southmead Hospital,Permanent Nursing,Fairview Court,1732.3, 10-Apr-2018
1038,Revenue,CAHD,Bed Purchasing - Southmead Hospital,Permanent Nursing,Fairview Court,1700, 10-Apr-2018
1039,Revenue,CAHD,Bed Purchasing - South,Permanent Nursing,Fairview Court,1528.5, 10-Apr-2018
1040,Revenue,CAHD,Bed Purchasing - South,Permanent Nursing,Fairview Court,1500, 10-Apr-2018
1041,Revenue,CAHD,Bed Purchasing - Southmead Hospital,Permanent Nursing,Fairview Court,1732.3, 10-Apr-2018
1042,Revenue,CAHD,Bed Purchasing - Southmead Hospital,Permanent Nursing,Fairview Court,1700, 10-Apr-2018
1043,Revenue,CAHD,Bed purchasing - Elderly S117 - South,Permanent Residential,Fairview House,1109.6, 10-Apr-2018
1044,Revenue,CAHD,Bed purchasing - Elderly S117 - South,Permanent Residential,Fairview House,1070, 10-Apr-2018
1045,Revenue,CAHD,Bed Purchasing - Southmead Hospital,Permanent Residential,Fairview House,1200, 10-Apr-2018
1046,Revenue,CAHD,Bed Purchasing - Southmead Hospital,Permanent Residential,Fairview House,1222.8, 10-Apr-2018
1047,Revenue,CAHD,Bed Purchasing - South,Permanent Residential,Fairview House,1074.8, 10-Apr-2018
1048,Revenue,CAHD,Bed Purchasing - South,Permanent Residential,Fairview House,1047.32, 10-Apr-2018
1049,Revenue,CAHD,Bed Purchasing - South,Permanent Residential,Fairview House,1109.6, 10-Apr-2018
1050,Revenue,CAHD,Bed Purchasing - South,Permanent Residential,Fairview House,1070, 10-Apr-2018
1051,Revenue,CAHD,Bed Purchasing - Southmead Hospital,Permanent Residential,Fairview House,1375.66, 10-Apr-2018
1052,Revenue,CAHD,Bed Purchasing - Southmead Hospital,Permanent Residential,Fairview House,1350, 10-Apr-2018
1053,Revenue,CAHD,Bed Purchasing - South,Permanent Residential,Fairview House,1074.34, 10-Apr-2018
1054,Revenue,CAHD,Bed Purchasing - South,Permanent Residential,Fairview House,1036, 10-Apr-2018
1055,Revenue,CAHD,Bed Purchasing - South,Permanent Residential,Fairview House,1109.6, 10-Apr-2018
1056,Revenue,CAHD,Bed Purchasing - South,Permanent Residential,Fairview House,1070, 10-Apr-2018
1057,Revenue,CAHD,Bed Purchasing - South,Permanent Residential,Fairview House,1074.34, 10-Apr-2018
1058,Revenue,CAHD,Bed Purchasing - South,Permanent Residential,Fairview House,1036, 10-Apr-2018
1059,Revenue,CAHD,Bed Purchasing - South,Permanent Residential,Fairview House,1078.74, 10-Apr-2018
1060,Revenue,CAHD,Bed Purchasing - South,Permanent Residential,Fairview House,1058.62, 10-Apr-2018
1061,Revenue,CAHD,Bed Purchasing - Southmead Hospital,Permanent Residential,Fairview House,1273.76, 10-Apr-2018
1062,Revenue,CAHD,Bed Purchasing - Southmead Hospital,Permanent Residential,Fairview House,1250, 10-Apr-2018
1063,Revenue,CAHD,Bed Purchasing - Southmead Hospital,Respite Planned - Residential,Faith House,2740, 10-Apr-2018
1064,Revenue,CAHD,Bed Purchasing - Southmead Hospital,Respite Planned - Residential,Faith House,587.14, 10-Apr-2018
1065,Revenue,CAHD,Bed Purchasing - North,Permanent Residential,Faith House,1396.04, 10-Apr-2018
1066,Revenue,CAHD,Bed Purchasing - North,Permanent Residential,Faith House,1370, 10-Apr-2018
1067,Revenue,CAHD,Bed Purchasing - Southmead Hospital,Permanent Residential,Faith House,1396.04, 10-Apr-2018
1068,Revenue,CAHD,Bed Purchasing - Southmead Hospital,Permanent Residential,Faith House,1370, 10-Apr-2018
1069,Revenue,CAHD,18-25 Year Olds,Permanent Residential,Farleigh FEC-Frome Priory,6549.21, 25-Apr-2018
1070,Revenue,CAHD,Post 16 High Needs Placements,Other Private Contractors,Farleigh FEC-Frome Priory,6549.2, 25-Apr-2018
1071,Revenue,CAHD,Post 16 High Needs Placements,Other Private Contractors,Farleigh FEC-Frome Priory,21646.16, 25-Apr-2018
1072,Revenue,CAHD,Bed Purchasing - Southmead Hospital,Permanent Nursing,Field House Care Home,1661.92, 10-Apr-2018
1073,Revenue,CAHD,Bed Purchasing - Southmead Hospital,Permanent Nursing,Field House Care Home,1630.94, 10-Apr-2018
1074,Revenue,CAHD,Bed Purchasing - Southmead Hospital,Permanent Nursing,Field House Care Home,1671.16, 10-Apr-2018
1075,Revenue,CAHD,Bed Purchasing - Southmead Hospital,Permanent Nursing,Field House Care Home,1640, 10-Apr-2018
1076,Revenue,CAHD,Bed Purchasing - Southmead Hospital,Respite Planned - Nursing,Field House Care Home,1671.16, 10-Apr-2018
1077,Revenue,CAHD,Bed Purchasing - Southmead Hospital,Respite Planned - Nursing,Field House Care Home,1640, 10-Apr-2018
1078,Revenue,CAHD,Bed Purchasing - North,Permanent Nursing,Field House Care Home,1671.16, 10-Apr-2018
1079,Revenue,CAHD,Bed Purchasing - North,Permanent Nursing,Field House Care Home,1640, 10-Apr-2018
1080,Revenue,CAHD,Bed Purchasing - Southmead Hospital,Permanent Nursing,Field House Care Home,1711.92, 10-Apr-2018
1081,Revenue,CAHD,Bed Purchasing - Southmead Hospital,Permanent Nursing,Field House Care Home,1680, 10-Apr-2018
1082,Revenue,CAHD,Bed Purchasing - South,Permanent Nursing,Field House Care Home,20878.57, 10-Apr-2018
1083,Revenue,CAHD,Bed Purchasing - South,Fees & Charges Income - General,Field House Care Home,2290.04, 10-Apr-2018
1084,Revenue,CAHD,Bed Purchasing - North,Permanent Nursing,Field House Care Home,1711.92, 10-Apr-2018
1085,Revenue,CAHD,Bed Purchasing - North,Permanent Nursing,Field House Care Home,1680, 10-Apr-2018
1086,Revenue,CAHD,Bed Purchasing - North,Permanent Residential,Fieldview,1445.14, 10-Apr-2018
1087,Revenue,CAHD,Bed Purchasing - North,Permanent Residential,Fieldview,1418.2, 10-Apr-2018
1088,Revenue,CAHD,Bed Purchasing - North,Permanent Residential,Fieldview,1834.2, 10-Apr-2018
1089,Revenue,CAHD,Bed Purchasing - North,Permanent Residential,Fieldview,1800, 10-Apr-2018
1090,Revenue,CAHD,Bed Purchasing - Southmead Hospital,Permanent Residential,Fieldview,1426.6, 10-Apr-2018
1091,Revenue,CAHD,Bed Purchasing - Southmead Hospital,Permanent Residential,Fieldview,1400, 10-Apr-2018
1092,Revenue,CAHD,MH Purchasing - Younger,Permanent Nursing,Fieldview,2683.84, 10-Apr-2018
1093,Revenue,CAHD,MH Purchasing - Younger,Permanent Nursing,Fieldview,2633.8, 10-Apr-2018
1094,Revenue,CAHD,Bed Purchasing - South,Permanent Residential,Fig House,1445.14, 10-Apr-2018
1095,Revenue,CAHD,Bed Purchasing - South,Permanent Residential,Fig House,1418.2, 10-Apr-2018
1096,Revenue,CAHD,Statemented Support Payments to OLAs,Other L.A.'s - General,Filton Avenue Primary School,1378.83, 27-Apr-2018
1097,Revenue,CAHD,Early Years Inclusion Fund,Other Public Bodies,First Friends (Mangotsfield),1800, 18-Apr-2018
1098,Revenue,CAHD,Home Care - Elderly - South,Other Small Contracts,Firstpoint Homecare Ltd,642.4, 11-Apr-2018
1099,Revenue,CAHD,Home Care - Elderly - South,Other Small Contracts,Firstpoint Homecare Ltd,633.6, 11-Apr-2018
1100,Revenue,CAHD,CSC - Agency Fostering,Foster Parent Allowances,Five Rivers Child Care Limited,3676, 05-Apr-2018
1101,Revenue,CAHD,CSC - Agency Fostering,Foster Parent Allowances,Five Rivers Child Care Limited,3177.72, 05-Apr-2018
1102,Revenue,CAHD,CSC - Agency Fostering,Foster Parent Allowances,Five Rivers Child Care Limited,3114.16, 05-Apr-2018
1103,Revenue,CAHD,CSC - Agency Fostering,Foster Parent Allowances,Five Rivers Child Care Limited,3114.16, 05-Apr-2018
1104,Revenue,CAHD,CSC - Agency Fostering,Foster Parent Allowances,Five Rivers Child Care Limited,3447.82, 10-Apr-2018
1105,Revenue,CAHD,CSC - Agency Fostering,Foster Parent Allowances,Five Rivers Child Care Limited,3447.82, 10-Apr-2018
1106,Revenue,CAHD,CSC - Agency Fostering,Foster Parent Allowances,Five Rivers Child Care Limited,3518.19, 03-Apr-2018
1107,Revenue,CAHD,CSC - Agency Fostering,Foster Parent Allowances,Five Rivers Child Care Limited,4291.29, 20-Apr-2018
1108,Revenue,CAHD,Early Years Inclusion Fund,Other Public Bodies,Footprints Pre School Playgroup,500, 27-Apr-2018
1109,Revenue,CAHD,CSC - Care Leavers Support Costs,Adults - Family Support,Fortis Living Ltd,559.78, 06-Apr-2018
1110,Revenue,CAHD,Leadership and Business Support,Other Supplies & Services,Foster & Brown Research LTD,6905, 12-Apr-2018
1111,Revenue,CAHD,CSC - Asylum Seekers - Unaccompanied,Foster Parent Allowances,Foster Care Associates Limited,2550.68, 09-Apr-2018
1112,Revenue,CAHD,CSC - Fostering Carer Support,Membership Fees,Fostering Network,3910, 20-Apr-2018
1113,Revenue,CAHD,CSC - Parent & Child Assessments,Foster Parent Allowances,Fostering Solutions Limited,4133.22, 11-Apr-2018
1114,Revenue,CAHD,Home Care - Elderly - South,Day Care / Social Activities,Fourways Care Limited,39.12, 04-Apr-2018
1115,Revenue,CAHD,Home Care - Elderly - South,Other Small Contracts,Fourways Care Limited,6282.87, 04-Apr-2018
1116,Revenue,CAHD,Home Care - Elderly - North,Other Small Contracts,Fourways Care Limited,4268.97, 04-Apr-2018
1117,Revenue,CAHD,Younger MH non-res purchasing,Other Small Contracts,Fourways Care Limited,283.62, 04-Apr-2018
1118,Revenue,CAHD,Home care - Elderly MH - North,Other Small Contracts,Fourways Care Limited,684.6, 04-Apr-2018
1119,Revenue,CAHD,Home Care - Elderly - South,Day Care / Social Activities,Fourways Care Limited,39.12, 11-Apr-2018
1120,Revenue,CAHD,Home Care - Elderly - South,Other Small Contracts,Fourways Care Limited,6414.22, 11-Apr-2018
1121,Revenue,CAHD,Home Care - Elderly - North,Other Small Contracts,Fourways Care Limited,5154.63, 11-Apr-2018
1122,Revenue,CAHD,Younger MH non-res purchasing,Other Small Contracts,Fourways Care Limited,303.18, 11-Apr-2018
1123,Revenue,CAHD,Home care - Elderly MH - North,Other Small Contracts,Fourways Care Limited,625.92, 11-Apr-2018
1124,Revenue,CAHD,Home Care - Elderly - South,Day Care / Social Activities,Fourways Care Limited,39.12, 18-Apr-2018
1125,Revenue,CAHD,Home Care - Elderly - South,Other Small Contracts,Fourways Care Limited,6287.76, 18-Apr-2018
1126,Revenue,CAHD,Home Care - Elderly - North,Other Small Contracts,Fourways Care Limited,5804.43, 18-Apr-2018
1127,Revenue,CAHD,Younger MH non-res purchasing,Other Small Contracts,Fourways Care Limited,88.02, 18-Apr-2018
1128,Revenue,CAHD,Home care - Elderly MH - North,Other Small Contracts,Fourways Care Limited,694.38, 18-Apr-2018
1129,Revenue,CAHD,Home Care - Elderly - South,Day Care / Social Activities,Fourways Care Limited,35.04, 24-Apr-2018
1130,Revenue,CAHD,Home Care - Elderly - South,Other Small Contracts,Fourways Care Limited,6075.06, 24-Apr-2018
1131,Revenue,CAHD,Home Care - Elderly - North,Other Small Contracts,Fourways Care Limited,6534.96, 24-Apr-2018
1132,Revenue,CAHD,Younger MH non-res purchasing,Other Small Contracts,Fourways Care Limited,61.32, 24-Apr-2018
1133,Revenue,CAHD,Home care - Elderly MH - North,Other Small Contracts,Fourways Care Limited,578.16, 24-Apr-2018
1134,Revenue,CAHD,Health Inequalities,Other Small Contracts,Frampton Cotterell Carers Group,500, 13-Apr-2018
1135,Revenue,CAHD,Supporting People Programme,Grants to Voluntary Bodies,Freeways Trust Limited,6495.64, 06-Apr-2018
1136,Revenue,CAHD,Freeways,Permanent Residential,Freeways Trust Limited,3692.72, 25-Apr-2018
1137,Revenue,CAHD,Freeways,Permanent Residential,Freeways Trust Limited,2374.53, 25-Apr-2018
1138,Revenue,CAHD,Freeways,Permanent Residential,Freeways Trust Limited,2374.53, 25-Apr-2018
1139,Revenue,CAHD,Freeways,Permanent Residential,Freeways Trust Limited,3455.4, 25-Apr-2018
1140,Revenue,CAHD,Freeways,Permanent Residential,Freeways Trust Limited,2374.53, 25-Apr-2018
1141,Revenue,CAHD,Freeways,Permanent Residential,Freeways Trust Limited,3504.85, 25-Apr-2018
1142,Revenue,CAHD,Freeways,Permanent Residential,Freeways Trust Limited,2638.89, 25-Apr-2018
1143,Revenue,CAHD,Freeways,Permanent Residential,Freeways Trust Limited,3664.2, 25-Apr-2018
1144,Revenue,CAHD,Freeways,Permanent Residential,Freeways Trust Limited,2237.57, 25-Apr-2018
1145,Revenue,CAHD,Freeways,Permanent Residential,Freeways Trust Limited,2804.44, 25-Apr-2018
1146,Revenue,CAHD,Freeways,Permanent Residential,Freeways Trust Limited,2778.5, 25-Apr-2018
1147,Revenue,CAHD,Freeways,Permanent Residential,Freeways Trust Limited,3135.74, 25-Apr-2018
1148,Revenue,CAHD,Freeways,Permanent Residential,Freeways Trust Limited,2374.53, 25-Apr-2018
1149,Revenue,CAHD,Freeways,Respite Planned - Residential,Freeways Trust Limited,7494.66, 25-Apr-2018
1150,Revenue,CAHD,Home Care - Elderly - North,Other Small Contracts,Freeways Trust Limited,700.72, 18-Apr-2018
1151,Revenue,CAHD,Home Care - Elderly - South,Other Small Contracts,Freeways Trust Limited,1180.16, 18-Apr-2018
1152,Revenue,CAHD,Home Care - Elderly - South,Other Small Contracts,Freeways Trust Limited,995.76, 23-Apr-2018
1153,Revenue,CAHD,Home Care - Elderly - South,Other Small Contracts,Freeways Trust Limited,1106.4, 23-Apr-2018
1154,Revenue,CAHD,Home Care - Elderly - South,Other Small Contracts,Freeways Trust Limited,1143.28, 23-Apr-2018
1155,Revenue,CAHD,Home Care - Elderly - North,Other Small Contracts,Freeways Trust Limited,811.36, 18-Apr-2018
1156,Revenue,CAHD,Bed purchasing - S28A Under 65 - South,Permanent Residential,Freeways Trust Ltd,1897.78, 10-Apr-2018
1157,Revenue,CAHD,Bed purchasing - S28A Under 65 - South,Permanent Residential,Freeways Trust Ltd,1862.4, 10-Apr-2018
1158,Revenue,CAHD,Bed Purchasing - North,Permanent Residential,Freeways Trust Ltd,1837.6, 10-Apr-2018
1159,Revenue,CAHD,Bed Purchasing - North,Permanent Residential,Freeways Trust Ltd,1803.34, 10-Apr-2018
1160,Revenue,CAHD,Bed Purchasing - South,Permanent Residential,Freeways Trust Ltd,1948.92, 10-Apr-2018
1161,Revenue,CAHD,Bed Purchasing - South,Permanent Residential,Freeways Trust Ltd,1912.58, 10-Apr-2018
1162,Revenue,CAHD,Bed Purchasing - North,Permanent Residential,Freeways Trust Ltd,1471.6, 10-Apr-2018
1163,Revenue,CAHD,Bed Purchasing - North,Permanent Residential,Freeways Trust Ltd,1444.16, 10-Apr-2018
1164,Revenue,CAHD,Bed Purchasing - South,Permanent Residential,Freeways Trust Ltd,1550.74, 10-Apr-2018
1165,Revenue,CAHD,Bed Purchasing - South,Permanent Residential,Freeways Trust Ltd,1521.82, 10-Apr-2018
1166,Revenue,CAHD,Bed Purchasing - North,Permanent Residential,Freeways Trust Ltd,1625.3, 10-Apr-2018
1167,Revenue,CAHD,Bed Purchasing - North,Permanent Residential,Freeways Trust Ltd,1595, 10-Apr-2018
1168,Revenue,CAHD,Bed Purchasing - North,Permanent Residential,Freeways Trust Ltd,1945.38, 10-Apr-2018
1169,Revenue,CAHD,Bed Purchasing - North,Permanent Residential,Freeways Trust Ltd,1909.1, 10-Apr-2018
1170,Revenue,CAHD,18-25 Year Olds,Permanent Residential,Freeways Trust Ltd,1797.1, 10-Apr-2018
1171,Revenue,CAHD,18-25 Year Olds,Permanent Residential,Freeways Trust Ltd,1763.6, 10-Apr-2018
1172,Revenue,CAHD,Section 117 Placements MH Younger,Permanent Residential,Freeways Trust Ltd,1630.4, 10-Apr-2018
1173,Revenue,CAHD,Section 117 Placements MH Younger,Permanent Residential,Freeways Trust Ltd,1600, 10-Apr-2018
1174,Revenue,CAHD,Home Care - Elderly - North,Day Care / Social Activities,Frenchay Beckspool Building,508.23, 10-Apr-2018
1175,Revenue,CAHD,Pathway 3 - (Complex Beds),Permanent Nursing,Frenchay House,3236, 24-Apr-2018
1176,Revenue,CAHD,Bed Purchasing - Southmead Hospital,Permanent Nursing,Frenchay Park Nursing Home,1630.4, 10-Apr-2018
1177,Revenue,CAHD,Bed Purchasing - Southmead Hospital,Permanent Nursing,Frenchay Park Nursing Home,1600, 10-Apr-2018
1178,Revenue,CAHD,Early Years High Needs Support,Other Private Contractors,Frenchay Pre School Playgroup,880.77, 24-Apr-2018
1179,Revenue,CAHD,Bed Purchasing - South,Permanent Nursing,Fshc  1St Floor,1310.58, 10-Apr-2018
1180,Revenue,CAHD,Bed Purchasing - South,Permanent Nursing,Fshc  1St Floor,1335.48, 10-Apr-2018
1181,Revenue,CAHD,Bed Purchasing - South,Permanent Nursing,Fshc  1St Floor,1155.22, 10-Apr-2018
1182,Revenue,CAHD,Bed Purchasing - South,Permanent Nursing,Fshc  1St Floor,1114, 10-Apr-2018
1183,Revenue,CAHD,Bed Purchasing - Southmead Hospital,Permanent Nursing,Fshc  1St Floor,1162.32, 10-Apr-2018
1184,Revenue,CAHD,Bed Purchasing - Southmead Hospital,Permanent Nursing,Fshc  1St Floor,1140.64, 10-Apr-2018
1185,Revenue,CAHD,Bed Purchasing - South,Permanent Nursing,Fshc  1St Floor,1155.22, 10-Apr-2018
1186,Revenue,CAHD,Bed Purchasing - South,Permanent Nursing,Fshc  1St Floor,1114, 10-Apr-2018
1187,Revenue,CAHD,Bed Purchasing - Southmead Hospital,Permanent Nursing,Fshc  1St Floor,1218.06, 10-Apr-2018
1188,Revenue,CAHD,Bed Purchasing - Southmead Hospital,Permanent Nursing,Fshc  1St Floor,1195.34, 10-Apr-2018
1189,Revenue,CAHD,Bed Purchasing - Southmead Hospital,Permanent Nursing,Fshc  1St Floor,1155.22, 10-Apr-2018
1190,Revenue,CAHD,Bed Purchasing - Southmead Hospital,Permanent Nursing,Fshc  1St Floor,1114, 10-Apr-2018
1191,Revenue,CAHD,Bed Purchasing - South,Permanent Residential,Fshc  1St Floor,1202.42, 10-Apr-2018
1192,Revenue,CAHD,Bed Purchasing - South,Permanent Residential,Fshc  1St Floor,758.57, 10-Apr-2018
1193,Revenue,CAHD,Bed Purchasing - Southmead Hospital,Respite Planned - Nursing,Fshc  1St Floor,2171.43, 10-Apr-2018
1194,Revenue,CAHD,Bed Purchasing - Southmead Hospital,Respite Planned - Nursing,Fshc  1St Floor,1520, 10-Apr-2018
1195,Revenue,CAHD,Bed Purchasing - Southmead Hospital,Respite Planned - Nursing,Fshc  1St Floor,885.07, 10-Apr-2018
1196,Revenue,CAHD,Bed Purchasing - Southmead Hospital,Respite Planned - Residential,Fshc  1St Floor,2057.14, 10-Apr-2018
1197,Revenue,CAHD,Bed Purchasing - Southmead Hospital,Respite Planned - Residential,Fshc  1St Floor,1440, 10-Apr-2018
1198,Revenue,CAHD,Bed Purchasing - Southmead Hospital,Respite Planned - Residential,Fshc  1St Floor,838.49, 10-Apr-2018
1199,Revenue,CAHD,Bed Purchasing - Southmead Hospital,Permanent Nursing,Fshc  1St Floor,1162.32, 10-Apr-2018
1200,Revenue,CAHD,Bed Purchasing - Southmead Hospital,Permanent Nursing,Fshc  1St Floor,1140.64, 10-Apr-2018
1201,Revenue,CAHD,Bed Purchasing - South,Permanent Nursing,Fshc  1St Floor,1304.32, 10-Apr-2018
1202,Revenue,CAHD,Bed Purchasing - South,Permanent Nursing,Fshc  1St Floor,1280, 10-Apr-2018
1203,Revenue,CAHD,Bed Purchasing - Southmead Hospital,Permanent Nursing,Fshc  1St Floor,1155.22, 10-Apr-2018
1204,Revenue,CAHD,Bed Purchasing - Southmead Hospital,Permanent Nursing,Fshc  1St Floor,1114, 10-Apr-2018
1205,Revenue,CAHD,Bed Purchasing - Southmead Hospital,Permanent Nursing,Fshc  1St Floor,1202.42, 10-Apr-2018
1206,Revenue,CAHD,Bed Purchasing - Southmead Hospital,Permanent Nursing,Fshc  1St Floor,1180, 10-Apr-2018
1207,Revenue,CAHD,Bed Purchasing - South,Permanent Nursing,Fshc  1St Floor,1331.6, 10-Apr-2018
1208,Revenue,CAHD,Bed Purchasing - South,Permanent Nursing,Fshc  1St Floor,1306.78, 10-Apr-2018
1209,Revenue,CAHD,Bed Purchasing - Southmead Hospital,Respite Planned - Nursing,Fshc  1St Floor,1520, 10-Apr-2018
1210,Revenue,CAHD,Bed Purchasing - Southmead Hospital,Respite Planned - Nursing,Fshc  1St Floor,885.07, 10-Apr-2018
1211,Revenue,CAHD,South Glos Users in South Glos Homes,Permanent Nursing,Fshc  1St Floor,2281.45, 10-Apr-2018
1212,Revenue,CAHD,Bed Purchasing - South,Permanent Nursing,Fshc  1St Floor,1202.42, 10-Apr-2018
1213,Revenue,CAHD,Bed Purchasing - South,Permanent Nursing,Fshc  1St Floor,1180, 10-Apr-2018
1214,Revenue,CAHD,Bed Purchasing - Southmead Hospital,Permanent Nursing,Fshc  1St Floor,1162.32, 10-Apr-2018
1215,Revenue,CAHD,Bed Purchasing - Southmead Hospital,Permanent Nursing,Fshc  1St Floor,1140.64, 10-Apr-2018
1216,Revenue,CAHD,Bed Purchasing - Southmead Hospital,Permanent Nursing,Fshc  1St Floor,1202.42, 10-Apr-2018
1217,Revenue,CAHD,Bed Purchasing - Southmead Hospital,Permanent Nursing,Fshc  1St Floor,1180, 10-Apr-2018
1218,Revenue,CAHD,Bed Purchasing - South,Permanent Nursing,Fshc  1St Floor,1155.22, 10-Apr-2018
1219,Revenue,CAHD,Bed Purchasing - South,Permanent Nursing,Fshc  1St Floor,1114, 10-Apr-2018
1220,Revenue,CAHD,Bed Purchasing - Southmead Hospital,Permanent Nursing,Fshc  1St Floor,1155.22, 10-Apr-2018
1221,Revenue,CAHD,Bed Purchasing - Southmead Hospital,Permanent Nursing,Fshc  1St Floor,1114, 10-Apr-2018
1222,Revenue,CAHD,Bed Purchasing - South,Permanent Nursing,Fshc  1St Floor,1155.22, 10-Apr-2018
1223,Revenue,CAHD,Bed Purchasing - South,Permanent Nursing,Fshc  1St Floor,1114, 10-Apr-2018
1224,Revenue,CAHD,Bed Purchasing - South,Permanent Nursing,Fshc  1St Floor,1162.32, 10-Apr-2018
1225,Revenue,CAHD,Bed Purchasing - South,Permanent Nursing,Fshc  1St Floor,1140.64, 10-Apr-2018
1226,Revenue,CAHD,Bed Purchasing - North,Respite Planned - Residential,Fshc  1St Floor,1337.14, 10-Apr-2018
1227,Revenue,CAHD,Bed Purchasing - Southmead Hospital,Respite Planned - Nursing,Fshc  1St Floor,1280, 10-Apr-2018
1228,Revenue,CAHD,Bed Purchasing - Southmead Hospital,Permanent Nursing,Fshc  1St Floor,1222.8, 10-Apr-2018
1229,Revenue,CAHD,Bed Purchasing - Southmead Hospital,Permanent Nursing,Fshc  1St Floor,1200, 10-Apr-2018
1230,Revenue,CAHD,Bed Purchasing - North,Permanent Nursing,Fshc  1St Floor,1178.12, 10-Apr-2018
1231,Revenue,CAHD,Bed Purchasing - North,Permanent Nursing,Fshc  1St Floor,1156.16, 10-Apr-2018
1232,Revenue,CAHD,Bed Purchasing - South,Permanent Nursing,Fshc  1St Floor,1202.42, 10-Apr-2018
1233,Revenue,CAHD,Bed Purchasing - South,Permanent Nursing,Fshc  1St Floor,1180, 10-Apr-2018
1234,Revenue,CAHD,Bed Purchasing - Southmead Hospital,Permanent Nursing,Fshc  1St Floor,1432.12, 10-Apr-2018
1235,Revenue,CAHD,Bed Purchasing - Southmead Hospital,Permanent Nursing,Fshc  1St Floor,1405.42, 10-Apr-2018
1236,Revenue,CAHD,Bed Purchasing - Southmead Hospital,Fees & Charges Income - General,Fshc  1St Floor,557.36, 10-Apr-2018
1237,Revenue,CAHD,Bed Purchasing - Southmead Hospital,Permanent Nursing,Fshc  1St Floor,1155.22, 10-Apr-2018
1238,Revenue,CAHD,Bed Purchasing - Southmead Hospital,Permanent Nursing,Fshc  1St Floor,1114, 10-Apr-2018
1239,Revenue,CAHD,Bed Purchasing - Southmead Hospital,Permanent Nursing,Fshc  1St Floor,1169.82, 10-Apr-2018
1240,Revenue,CAHD,Bed Purchasing - Southmead Hospital,Permanent Nursing,Fshc  1St Floor,1148, 10-Apr-2018
1241,Revenue,CAHD,Bed Purchasing - Southmead Hospital,Permanent Nursing,Fshc  1St Floor,1169.82, 10-Apr-2018
1242,Revenue,CAHD,Bed Purchasing - Southmead Hospital,Permanent Nursing,Fshc  1St Floor,1148, 10-Apr-2018
1243,Revenue,CAHD,Bed Purchasing - Southmead Hospital,Permanent Nursing,Fshc  1St Floor,1155.22, 10-Apr-2018
1244,Revenue,CAHD,Bed Purchasing - Southmead Hospital,Permanent Nursing,Fshc  1St Floor,1114, 10-Apr-2018
1245,Revenue,CAHD,Bed Purchasing - Southmead Hospital,Permanent Residential,Fshc  1St Floor,1074.34, 10-Apr-2018
1246,Revenue,CAHD,Bed Purchasing - Southmead Hospital,Permanent Residential,Fshc  1St Floor,1036, 10-Apr-2018
1247,Revenue,CAHD,Bed Purchasing - North,Permanent Residential,Fshc  1St Floor,1416.42, 10-Apr-2018
1248,Revenue,CAHD,Bed Purchasing - North,Permanent Residential,Fshc  1St Floor,1390, 10-Apr-2018
1249,Revenue,CAHD,Bed Purchasing - South,Permanent Residential,Fshc  1St Floor,1375.66, 10-Apr-2018
1250,Revenue,CAHD,Bed Purchasing - South,Permanent Residential,Fshc  1St Floor,1350, 10-Apr-2018
1251,Revenue,CAHD,Bed Purchasing - North,Permanent Nursing,Fshc  1St Floor,1169.82, 10-Apr-2018
1252,Revenue,CAHD,Bed Purchasing - North,Permanent Nursing,Fshc  1St Floor,1148, 10-Apr-2018
1253,Revenue,CAHD,Bed Purchasing - Southmead Hospital,Permanent Nursing,Fshc  1St Floor,1155.6, 10-Apr-2018
1254,Revenue,CAHD,Bed Purchasing - Southmead Hospital,Permanent Nursing,Fshc  1St Floor,1128.48, 10-Apr-2018
1255,Revenue,CAHD,Bed Purchasing - Southmead Hospital,Permanent Nursing,Fshc  1St Floor,1155.22, 10-Apr-2018
1256,Revenue,CAHD,Bed Purchasing - Southmead Hospital,Permanent Nursing,Fshc  1St Floor,1114, 10-Apr-2018
1257,Revenue,CAHD,Bed Purchasing - North,Permanent Nursing,Fshc  1St Floor,1155.22, 10-Apr-2018
1258,Revenue,CAHD,Bed Purchasing - North,Permanent Nursing,Fshc  1St Floor,1114, 10-Apr-2018
1259,Revenue,CAHD,Bed Purchasing - North,Permanent Nursing,Fshc  1St Floor,1155.22, 10-Apr-2018
1260,Revenue,CAHD,Bed Purchasing - North,Permanent Nursing,Fshc  1St Floor,1114, 10-Apr-2018
1261,Revenue,CAHD,Bed Purchasing - North,Permanent Nursing,Fshc  1St Floor,1169.82, 10-Apr-2018
1262,Revenue,CAHD,Bed Purchasing - North,Permanent Nursing,Fshc  1St Floor,1148, 10-Apr-2018
1263,Revenue,CAHD,Bed Purchasing - North,Permanent Nursing,Fshc  1St Floor,1155.22, 10-Apr-2018
1264,Revenue,CAHD,Bed Purchasing - North,Permanent Nursing,Fshc  1St Floor,1114, 10-Apr-2018
1265,Revenue,CAHD,Bed Purchasing - North,Permanent Residential,Fshc  1St Floor,1375.66, 10-Apr-2018
1266,Revenue,CAHD,Bed Purchasing - North,Permanent Residential,Fshc  1St Floor,1350, 10-Apr-2018
1267,Revenue,CAHD,South Glos Users in South Glos Homes,Permanent Nursing,Fshc  1St Floor,930.3, 10-Apr-2018
1268,Revenue,CAHD,Bed Purchasing - Southmead Hospital,Permanent Nursing,Fshc  1St Floor,5095.12, 10-Apr-2018
1269,Revenue,CAHD,Bed Purchasing - North,Permanent Nursing,Fshc  1St Floor,1558, 10-Apr-2018
1270,Revenue,CAHD,Bed Purchasing - Southmead Hospital,Fees & Charges Income - General,Fshc  1St Floor,865.57, 10-Apr-2018
1271,Revenue,CAHD,Bed Purchasing - North,Permanent Nursing,Fshc  1St Floor,1155.22, 10-Apr-2018
1272,Revenue,CAHD,Bed Purchasing - North,Permanent Nursing,Fshc  1St Floor,1114, 10-Apr-2018
1273,Revenue,CAHD,Bed Purchasing - Southmead Hospital,Permanent Nursing,Fshc  1St Floor,1155.22, 10-Apr-2018
1274,Revenue,CAHD,Bed Purchasing - Southmead Hospital,Permanent Nursing,Fshc  1St Floor,1114, 10-Apr-2018
1275,Revenue,CAHD,Bed Purchasing - North,Permanent Nursing,Fshc  1St Floor,1155.22, 10-Apr-2018
1276,Revenue,CAHD,Bed Purchasing - North,Permanent Nursing,Fshc  1St Floor,1114, 10-Apr-2018
1277,Revenue,CAHD,Bed Purchasing - North,Permanent Nursing,Fshc  1St Floor,1155.22, 10-Apr-2018
1278,Revenue,CAHD,Bed Purchasing - North,Permanent Nursing,Fshc  1St Floor,1114, 10-Apr-2018
1279,Revenue,CAHD,Bed Purchasing - North,Permanent Nursing,Fshc  1St Floor,1155.22, 10-Apr-2018
1280,Revenue,CAHD,Bed Purchasing - North,Permanent Nursing,Fshc  1St Floor,1114, 10-Apr-2018
1281,Revenue,CAHD,Bed Purchasing - North,Permanent Nursing,Fshc  1St Floor,1155.22, 10-Apr-2018
1282,Revenue,CAHD,Bed Purchasing - North,Permanent Nursing,Fshc  1St Floor,1114, 10-Apr-2018
1283,Revenue,CAHD,Bed Purchasing - North,Permanent Nursing,Fshc  1St Floor,1155.22, 10-Apr-2018
1284,Revenue,CAHD,Bed Purchasing - North,Permanent Nursing,Fshc  1St Floor,1114, 10-Apr-2018
1285,Revenue,CAHD,Bed Purchasing - North,Permanent Nursing,Fshc  1St Floor,1155.22, 10-Apr-2018
1286,Revenue,CAHD,Bed Purchasing - North,Permanent Nursing,Fshc  1St Floor,1114, 10-Apr-2018
1287,Revenue,CAHD,South Glos Users in South Glos Homes,Permanent Nursing,Fshc  1St Floor,620.2, 10-Apr-2018
1288,Revenue,CAHD,Bed Purchasing - Southmead Hospital,Permanent Nursing,Fshc  1St Floor,1155.22, 10-Apr-2018
1289,Revenue,CAHD,Bed Purchasing - Southmead Hospital,Permanent Nursing,Fshc  1St Floor,1114, 10-Apr-2018
1290,Revenue,CAHD,Bed Purchasing - North,Permanent Nursing,Fshc  1St Floor,1190.48, 10-Apr-2018
1291,Revenue,CAHD,Bed Purchasing - North,Permanent Nursing,Fshc  1St Floor,1148, 10-Apr-2018
1292,Revenue,CAHD,Bed Purchasing - North,Permanent Nursing,Fshc  1St Floor,1190.48, 10-Apr-2018
1293,Revenue,CAHD,Bed Purchasing - North,Permanent Nursing,Fshc  1St Floor,1148, 10-Apr-2018
1294,Revenue,CAHD,South Glos Users in South Glos Homes,Permanent Nursing,Fshc  1St Floor,1852.68, 10-Apr-2018
1295,Revenue,CAHD,Bed Purchasing - Southmead Hospital,Permanent Nursing,Fshc  1St Floor,1213.92, 10-Apr-2018
1296,Revenue,CAHD,Bed Purchasing - Southmead Hospital,Permanent Nursing,Fshc  1St Floor,1191.28, 10-Apr-2018
1297,Revenue,CAHD,Bed Purchasing - North,Permanent Nursing,Fshc  1St Floor,1155.22, 10-Apr-2018
1298,Revenue,CAHD,Bed Purchasing - North,Permanent Nursing,Fshc  1St Floor,1114, 10-Apr-2018
1299,Revenue,CAHD,Bed Purchasing - North,Permanent Nursing,Fshc  1St Floor,1155.22, 10-Apr-2018
1300,Revenue,CAHD,Bed Purchasing - North,Permanent Nursing,Fshc  1St Floor,1114, 10-Apr-2018
1301,Revenue,CAHD,Bed Purchasing - Southmead Hospital,Permanent Nursing,Fshc  1St Floor,1579.46, 10-Apr-2018
1302,Revenue,CAHD,Bed Purchasing - Southmead Hospital,Permanent Nursing,Fshc  1St Floor,1550, 10-Apr-2018
1303,Revenue,CAHD,Bed Purchasing - North,Permanent Nursing,Fshc  1St Floor,1872.69, 10-Apr-2018
1304,Revenue,CAHD,Bed Purchasing - North,Permanent Nursing,Fshc  1St Floor,1872.69, 10-Apr-2018
1305,Revenue,CAHD,Bed Purchasing - North,Permanent Nursing,Fshc  1St Floor,1161.56, 10-Apr-2018
1306,Revenue,CAHD,Bed Purchasing - North,Permanent Nursing,Fshc  1St Floor,1139.9, 10-Apr-2018
1307,Revenue,CAHD,South Glos Users in South Glos Homes,Permanent Nursing,Fshc  1St Floor,1661.25, 10-Apr-2018
1308,Revenue,CAHD,Bed Purchasing - South,Permanent Nursing,Fshc  1St Floor,1277.4, 10-Apr-2018
1309,Revenue,CAHD,Bed Purchasing - South,Permanent Nursing,Fshc  1St Floor,1253.58, 10-Apr-2018
1310,Revenue,CAHD,Bed Purchasing - North,Permanent Nursing,Fshc  1St Floor,1161.56, 10-Apr-2018
1311,Revenue,CAHD,Bed Purchasing - North,Permanent Nursing,Fshc  1St Floor,1139.9, 10-Apr-2018
1312,Revenue,CAHD,South Glos Users in South Glos Homes,Permanent Nursing,Fshc  1St Floor,686.65, 10-Apr-2018
1313,Revenue,CAHD,Bed Purchasing - North,Respite Planned - Nursing,Fshc  1St Floor,1263.46, 10-Apr-2018
1314,Revenue,CAHD,Bed Purchasing - North,Respite Planned - Nursing,Fshc  1St Floor,1239.9, 10-Apr-2018
1315,Revenue,CAHD,Bed Purchasing - Southmead Hospital,Permanent Nursing,Fshc  1St Floor,1225.8, 10-Apr-2018
1316,Revenue,CAHD,Bed Purchasing - Southmead Hospital,Permanent Nursing,Fshc  1St Floor,1202.94, 10-Apr-2018
1317,Revenue,CAHD,Bed Purchasing - Southmead Hospital,Permanent Nursing,Fshc  1St Floor,1273.76, 10-Apr-2018
1318,Revenue,CAHD,Bed Purchasing - Southmead Hospital,Permanent Nursing,Fshc  1St Floor,1250, 10-Apr-2018
1319,Revenue,CAHD,Bed Purchasing - North,Fees & Charges Income - General,Fshc  1St Floor,1959.13, 10-Apr-2018
1320,Revenue,CAHD,Bed Purchasing - Southmead Hospital,Permanent Nursing,Fshc  1St Floor,1277.4, 10-Apr-2018
1321,Revenue,CAHD,Bed Purchasing - Southmead Hospital,Permanent Nursing,Fshc  1St Floor,1253.58, 10-Apr-2018
1322,Revenue,CAHD,Bed Purchasing - Southmead Hospital,Permanent Nursing,Fshc  1St Floor,1130.22, 10-Apr-2018
1323,Revenue,CAHD,Bed Purchasing - Southmead Hospital,Permanent Nursing,Fshc  1St Floor,1089.9, 10-Apr-2018
1324,Revenue,CAHD,Bed Purchasing - Southmead Hospital,Fees & Charges Income - General,Fshc  1St Floor,1017.98, 10-Apr-2018
1325,Revenue,CAHD,Bed Purchasing - North,Permanent Nursing,Fshc  1St Floor,1190.48, 10-Apr-2018
1326,Revenue,CAHD,Bed Purchasing - North,Permanent Nursing,Fshc  1St Floor,1148, 10-Apr-2018
1327,Revenue,CAHD,Bed Purchasing - Southmead Hospital,Permanent Nursing,Fshc  1St Floor,1579.46, 10-Apr-2018
1328,Revenue,CAHD,Bed Purchasing - Southmead Hospital,Permanent Nursing,Fshc  1St Floor,1550, 10-Apr-2018
1329,Revenue,CAHD,Bed Purchasing - North,Permanent Nursing,Fshc  1St Floor,1228.26, 10-Apr-2018
1330,Revenue,CAHD,Bed Purchasing - North,Permanent Nursing,Fshc  1St Floor,1205.36, 10-Apr-2018
1331,Revenue,CAHD,Bed Purchasing - North,Permanent Nursing,Fshc  1St Floor,1155.22, 10-Apr-2018
1332,Revenue,CAHD,Bed Purchasing - North,Permanent Nursing,Fshc  1St Floor,1114, 10-Apr-2018
1333,Revenue,CAHD,Bed Purchasing - South,Permanent Nursing,Fshc  1St Floor,1277.4, 10-Apr-2018
1334,Revenue,CAHD,Bed Purchasing - South,Permanent Nursing,Fshc  1St Floor,1253.58, 10-Apr-2018
1335,Revenue,CAHD,Bed Purchasing - Southmead Hospital,Permanent Nursing,Fshc  1St Floor,1190.48, 10-Apr-2018
1336,Revenue,CAHD,Bed Purchasing - Southmead Hospital,Permanent Nursing,Fshc  1St Floor,1148, 10-Apr-2018
1337,Revenue,CAHD,Bed Purchasing - South,Permanent Nursing,Fshc  1St Floor,1238.7, 10-Apr-2018
1338,Revenue,CAHD,Bed Purchasing - South,Permanent Nursing,Fshc  1St Floor,1215.6, 10-Apr-2018
1339,Revenue,CAHD,Bed Purchasing - South,Permanent Nursing,Fshc  1St Floor,1273.76, 10-Apr-2018
1340,Revenue,CAHD,Bed Purchasing - South,Permanent Nursing,Fshc  1St Floor,1250, 10-Apr-2018
1341,Revenue,CAHD,Bed Purchasing - Southmead Hospital,Permanent Nursing,Fshc  1St Floor,1155.22, 10-Apr-2018
1342,Revenue,CAHD,Bed Purchasing - Southmead Hospital,Permanent Nursing,Fshc  1St Floor,1114, 10-Apr-2018
1343,Revenue,CAHD,Bed Purchasing - South,Permanent Nursing,Fshc  1St Floor,1150, 10-Apr-2018
1344,Revenue,CAHD,Bed Purchasing - South,Permanent Nursing,Fshc  1St Floor,1171.86, 10-Apr-2018
1345,Revenue,CAHD,Bed Purchasing - Southmead Hospital,Permanent Residential,Fshc  1St Floor,1074.34, 10-Apr-2018
1346,Revenue,CAHD,Bed Purchasing - Southmead Hospital,Permanent Residential,Fshc  1St Floor,1036, 10-Apr-2018
1347,Revenue,CAHD,Bed Purchasing - South,Permanent Nursing,Fshc  1St Floor,1155.22, 10-Apr-2018
1348,Revenue,CAHD,Bed Purchasing - South,Permanent Nursing,Fshc  1St Floor,1114, 10-Apr-2018
1349,Revenue,CAHD,Bed Purchasing - Southmead Hospital,Permanent Nursing,Fshc  1St Floor,1222.8, 10-Apr-2018
1350,Revenue,CAHD,Bed Purchasing - Southmead Hospital,Permanent Nursing,Fshc  1St Floor,1200, 10-Apr-2018
1351,Revenue,CAHD,Bed Purchasing - Southmead Hospital,Fees & Charges Income - General,Fshc  1St Floor,8655.62, 10-Apr-2018
1352,Revenue,CAHD,Bed Purchasing - Southmead Hospital,Fees & Charges Income - General,Fshc  1St Floor,3706.98, 10-Apr-2018
1353,Revenue,CAHD,Bed Purchasing - Southmead Hospital,Permanent Nursing,Fshc  1St Floor,1155.6, 10-Apr-2018
1354,Revenue,CAHD,Bed Purchasing - Southmead Hospital,Permanent Nursing,Fshc  1St Floor,1129.46, 10-Apr-2018
1355,Revenue,CAHD,Bed Purchasing - Southmead Hospital,Permanent Residential,Fshc  1St Floor,1171.86, 10-Apr-2018
1356,Revenue,CAHD,Bed Purchasing - Southmead Hospital,Permanent Residential,Fshc  1St Floor,1150, 10-Apr-2018
1357,Revenue,CAHD,Bed Purchasing - South,Permanent Residential,Fshc  1St Floor,1090.34, 10-Apr-2018
1358,Revenue,CAHD,Bed Purchasing - South,Permanent Residential,Fshc  1St Floor,1070, 10-Apr-2018
1359,Revenue,CAHD,Bed Purchasing - Southmead Hospital,Permanent Nursing,Fshc  1St Floor,1190.48, 10-Apr-2018
1360,Revenue,CAHD,Bed Purchasing - Southmead Hospital,Permanent Nursing,Fshc  1St Floor,1148, 10-Apr-2018
1361,Revenue,CAHD,Bed Purchasing - Southmead Hospital,Permanent Nursing,Fshc  1St Floor,1155.22, 10-Apr-2018
1362,Revenue,CAHD,Bed Purchasing - Southmead Hospital,Permanent Nursing,Fshc  1St Floor,1114, 10-Apr-2018
1363,Revenue,CAHD,Bed Purchasing - South,Permanent Nursing,Fshc  1St Floor,1341.92, 10-Apr-2018
1364,Revenue,CAHD,Bed Purchasing - South,Permanent Nursing,Fshc  1St Floor,1316.9, 10-Apr-2018
1365,Revenue,CAHD,Bed Purchasing - South,Fees & Charges Income - General,Fshc  1St Floor,1050.38, 10-Apr-2018
1366,Revenue,CAHD,Bed Purchasing - South,Permanent Nursing,Fshc  1St Floor,1199.5, 10-Apr-2018
1367,Revenue,CAHD,Bed Purchasing - South,Permanent Nursing,Fshc  1St Floor,1177.14, 10-Apr-2018
1368,Revenue,CAHD,Bed Purchasing - South,Permanent Nursing,Fshc  1St Floor,1155.22, 10-Apr-2018
1369,Revenue,CAHD,Bed Purchasing - South,Permanent Nursing,Fshc  1St Floor,1114, 10-Apr-2018
1370,Revenue,CAHD,Bed Purchasing - South,Permanent Residential,Fshc  1St Floor,1111.92, 10-Apr-2018
1371,Revenue,CAHD,Bed Purchasing - South,Permanent Residential,Fshc  1St Floor,1091.18, 10-Apr-2018
1372,Revenue,CAHD,Bed Purchasing - South,Permanent Nursing,Fshc  1St Floor,1116.88, 10-Apr-2018
1373,Revenue,CAHD,Bed Purchasing - South,Permanent Nursing,Fshc  1St Floor,1096.06, 10-Apr-2018
1374,Revenue,CAHD,Bed Purchasing - Southmead Hospital,Permanent Nursing,Fshc  1St Floor,1464.8, 10-Apr-2018
1375,Revenue,CAHD,Bed Purchasing - Southmead Hospital,Permanent Nursing,Fshc  1St Floor,1437.48, 10-Apr-2018
1376,Revenue,CAHD,Bed purchasing - Elderly S117 - South,Permanent Nursing,Fshc  1St Floor,1116.88, 10-Apr-2018
1377,Revenue,CAHD,Bed purchasing - Elderly S117 - South,Permanent Nursing,Fshc  1St Floor,1096.06, 10-Apr-2018
1378,Revenue,CAHD,Bed Purchasing - South,Permanent Nursing,Fshc  1St Floor,1754.82, 10-Apr-2018
1379,Revenue,CAHD,Bed Purchasing - South,Permanent Nursing,Fshc  1St Floor,1722.1, 10-Apr-2018
1380,Revenue,CAHD,Bed Purchasing - South,Permanent Nursing,Fshc  1St Floor,1961.26, 10-Apr-2018
1381,Revenue,CAHD,Bed Purchasing - South,Permanent Nursing,Fshc  1St Floor,1924.7, 10-Apr-2018
1382,Revenue,CAHD,Bed Purchasing - Southmead Hospital,Permanent Nursing,Fshc  1St Floor,1116.88, 10-Apr-2018
1383,Revenue,CAHD,Bed Purchasing - Southmead Hospital,Permanent Nursing,Fshc  1St Floor,1096.06, 10-Apr-2018
1384,Revenue,CAHD,Bed Purchasing - Southmead Hospital,Respite Planned - Residential,Fshc  1St Floor,5528.58, 10-Apr-2018
1385,Revenue,CAHD,Bed Purchasing - Southmead Hospital,Permanent Nursing,Fshc  1St Floor,3985.71, 10-Apr-2018
1386,Revenue,CAHD,Bed Purchasing - Southmead Hospital,Permanent Nursing,Fshc  1St Floor,3985.71, 10-Apr-2018
1387,Revenue,CAHD,Bed Purchasing - Southmead Hospital,Permanent Nursing,Fshc  1St Floor,1834.2, 10-Apr-2018
1388,Revenue,CAHD,Bed Purchasing - Southmead Hospital,Permanent Nursing,Fshc  1St Floor,1800, 10-Apr-2018
1389,Revenue,CAHD,Bed Purchasing - Southmead Hospital,Fees & Charges Income - General,Fshc  1St Floor,576.21, 10-Apr-2018
1390,Revenue,CAHD,Bed Purchasing - Southmead Hospital,Permanent Nursing,Fshc  1St Floor,1579.46, 10-Apr-2018
1391,Revenue,CAHD,Bed Purchasing - Southmead Hospital,Permanent Nursing,Fshc  1St Floor,1550, 10-Apr-2018
1392,Revenue,CAHD,Bed Purchasing - Southmead Hospital,Permanent Nursing,Fshc  1St Floor,1116.88, 10-Apr-2018
1393,Revenue,CAHD,Bed Purchasing - Southmead Hospital,Permanent Nursing,Fshc  1St Floor,1096.06, 10-Apr-2018
1394,Revenue,CAHD,Bed Purchasing - South,Permanent Nursing,Fshc  1St Floor,1116.88, 10-Apr-2018
1395,Revenue,CAHD,Bed Purchasing - South,Permanent Nursing,Fshc  1St Floor,1096.06, 10-Apr-2018
1396,Revenue,CAHD,Bed Purchasing - South,Permanent Residential,Fshc  1St Floor,1828.14, 10-Apr-2018
1397,Revenue,CAHD,Bed Purchasing - South,Permanent Residential,Fshc  1St Floor,1794.06, 10-Apr-2018
1398,Revenue,CAHD,Bed Purchasing - Southmead Hospital,Permanent Residential,Fshc  1St Floor,1007.32, 10-Apr-2018
1399,Revenue,CAHD,Bed Purchasing - Southmead Hospital,Permanent Residential,Fshc  1St Floor,1026.46, 10-Apr-2018
1400,Revenue,CAHD,Bed Purchasing - North,Permanent Nursing,Fshc  1St Floor,1117.94, 10-Apr-2018
1401,Revenue,CAHD,Bed Purchasing - North,Permanent Nursing,Fshc  1St Floor,1097.1, 10-Apr-2018
1402,Revenue,CAHD,Bed Purchasing - North,Permanent Nursing,Fshc  1St Floor,1052.62, 10-Apr-2018
1403,Revenue,CAHD,Bed Purchasing - North,Permanent Nursing,Fshc  1St Floor,1033, 10-Apr-2018
1404,Revenue,CAHD,Bed Purchasing - Southmead Hospital,Permanent Nursing,Fshc  1St Floor,2038, 10-Apr-2018
1405,Revenue,CAHD,Bed Purchasing - Southmead Hospital,Permanent Nursing,Fshc  1St Floor,2000, 10-Apr-2018
1406,Revenue,CAHD,Bed Purchasing - North,Permanent Nursing,Fshc  1St Floor,1132.48, 10-Apr-2018
1407,Revenue,CAHD,Bed Purchasing - North,Permanent Nursing,Fshc  1St Floor,1111.36, 10-Apr-2018
1408,Revenue,CAHD,Bed Purchasing - North,Permanent Nursing,Fshc  1St Floor,1154.52, 10-Apr-2018
1409,Revenue,CAHD,Bed Purchasing - North,Permanent Nursing,Fshc  1St Floor,1133, 10-Apr-2018
1410,Revenue,CAHD,Bed Purchasing - North,Permanent Residential,Fshc  1St Floor,945.18, 10-Apr-2018
1411,Revenue,CAHD,Bed Purchasing - North,Permanent Residential,Fshc  1St Floor,927.56, 10-Apr-2018
1412,Revenue,CAHD,CSC - Corporate Parenting Manager,Agency Staff (Admin/Support Staff) Pay,Gatenby Sanderson Limited,2900, 20-Apr-2018
1413,Revenue,CAHD,CSC - Corporate Parenting Manager,Agency Staff (Admin/Support Staff) Pay,Gatenby Sanderson Limited,5800, 20-Apr-2018
1414,Revenue,CAHD,CSC - Corporate Parenting Manager,Agency Staff (Admin/Support Staff) Pay,Gatenby Sanderson Limited,2610, 20-Apr-2018
1415,Revenue,CAHD,CSC - Corporate Parenting Manager,Agency Staff (Admin/Support Staff) Pay,Gatenby Sanderson Limited,2900, 20-Apr-2018
1416,Revenue,CAHD,CSC - Corporate Parenting Manager,Agency Staff (Admin/Support Staff) Pay,Gatenby Sanderson Limited,2900, 20-Apr-2018
1417,Revenue,CAHD,CSC - Corporate Parenting Manager,Agency Staff (Admin/Support Staff) Pay,Gatenby Sanderson Limited,2900, 24-Apr-2018
1418,Revenue,CAHD,CSC - Corporate Parenting Manager,Agency Staff (Admin/Support Staff) Pay,Gatenby Sanderson Limited,2900, 30-Apr-2018
1419,Revenue,CAHD,Bed Purchasing - South,Permanent Residential,Gladstone House,2929.6, 10-Apr-2018
1420,Revenue,CAHD,Bed Purchasing - South,Permanent Residential,Gladstone House,2874.98, 10-Apr-2018
1421,Revenue,CAHD,Bed Purchasing - North,Permanent Residential,Glan Y Felin,3321.98, 10-Apr-2018
1422,Revenue,CAHD,Bed Purchasing - North,Permanent Residential,Glan Y Felin,3260.04, 10-Apr-2018
1423,Revenue,CAHD,Bed Purchasing - South,Permanent Residential,Glasallt Fawr,2609.58, 10-Apr-2018
1424,Revenue,CAHD,Bed Purchasing - South,Permanent Residential,Glasallt Fawr,2560.92, 10-Apr-2018
1425,Revenue,CAHD,Bed Purchasing - North,Permanent Nursing,Glebe House Nursing Home,1789.14, 10-Apr-2018
1426,Revenue,CAHD,Bed Purchasing - North,Permanent Nursing,Glebe House Nursing Home,1755.78, 10-Apr-2018
1427,Revenue,CAHD,South Glos Users in South Glos Homes,Permanent Nursing,Glebe House Nursing Home,1772, 10-Apr-2018
1428,Revenue,CAHD,Bed Purchasing - North,Permanent Residential,Glebe House Nursing Home,1872, 10-Apr-2018
1429,Revenue,CAHD,Bed Purchasing - North,Permanent Residential,Glebe House Nursing Home,1837.1, 10-Apr-2018
1430,Revenue,CAHD,Bed Purchasing - North,Fees & Charges Income - General,Glebe House Nursing Home,609.57, 10-Apr-2018
1431,Revenue,CAHD,South Glos Users in South Glos Homes,Permanent Nursing,Glebe House Nursing Home,1971.35, 10-Apr-2018
1432,Revenue,CAHD,South Glos Users in South Glos Homes,Permanent Nursing,Glebe House Nursing Home,686.65, 10-Apr-2018
1433,Revenue,CAHD,South Glos Users in South Glos Homes,Permanent Nursing,Glebe House Nursing Home,1661.25, 10-Apr-2018
1434,Revenue,CAHD,Bed Purchasing - Southmead Hospital,Permanent Nursing,Glebe House Nursing Home,1874.96, 10-Apr-2018
1435,Revenue,CAHD,Bed Purchasing - Southmead Hospital,Permanent Nursing,Glebe House Nursing Home,1840, 10-Apr-2018
1436,Revenue,CAHD,Bed Purchasing - South,Permanent Residential,Goldcare House,2312.76, 10-Apr-2018
1437,Revenue,CAHD,Bed Purchasing - South,Permanent Residential,Goldcare House,2269.64, 10-Apr-2018
1438,Revenue,CAHD,Bed Purchasing - Southmead Hospital,Permanent Residential,Gordena Care Home,1962.84, 10-Apr-2018
1439,Revenue,CAHD,Bed Purchasing - Southmead Hospital,Permanent Residential,Gordena Care Home,1926.24, 10-Apr-2018
1440,Revenue,CAHD,Bed Purchasing - South,Permanent Residential,Gordena Care Home,560, 10-Apr-2018
1441,Revenue,CAHD,Bed Purchasing - South,Permanent Residential,Gordena Care Home,1317.98, 10-Apr-2018
1442,Revenue,CAHD,Bed Purchasing - South,Permanent Residential,Gordena Care Home,1293.4, 10-Apr-2018
1443,Revenue,CAHD,Bed Purchasing - South,Permanent Residential,Gordena Care Home,1876.4, 10-Apr-2018
1444,Revenue,CAHD,Bed Purchasing - South,Permanent Residential,Gordena Care Home,1841.42, 10-Apr-2018
1445,Revenue,CAHD,Bed Purchasing - South,Permanent Residential,Gordena Care Home,1882.12, 10-Apr-2018
1446,Revenue,CAHD,Bed Purchasing - South,Permanent Residential,Gordena Care Home,1847.02, 10-Apr-2018
1447,Revenue,CAHD,Bed Purchasing - South,Permanent Residential,Gordena Care Limited,2459.3, 10-Apr-2018
1448,Revenue,CAHD,Bed Purchasing - South,Permanent Residential,Gordena Care Limited,2413.44, 10-Apr-2018
1449,Revenue,CAHD,Bed purchasing - S28A Under 65 - South,Permanent Residential,Gordena Care Limited,2391.8, 10-Apr-2018
1450,Revenue,CAHD,Bed purchasing - S28A Under 65 - South,Permanent Residential,Gordena Care Limited,2347.2, 10-Apr-2018
1451,Revenue,CAHD,Bed Purchasing - North,Permanent Residential,Gordena Care Limited,2492.8, 10-Apr-2018
1452,Revenue,CAHD,Bed Purchasing - North,Permanent Residential,Gordena Care Limited,2446.32, 10-Apr-2018
1453,Revenue,CAHD,Bed Purchasing - South,Permanent Nursing,Gracefields Nursing Home,1266.88, 10-Apr-2018
1454,Revenue,CAHD,Bed Purchasing - South,Permanent Nursing,Gracefields Nursing Home,1243.26, 10-Apr-2018
1455,Revenue,CAHD,Bed Purchasing - Southmead Hospital,Permanent Nursing,Gracefields Nursing Home,1783.26, 10-Apr-2018
1456,Revenue,CAHD,Bed Purchasing - Southmead Hospital,Permanent Nursing,Gracefields Nursing Home,1750, 10-Apr-2018
1457,Revenue,CAHD,Bed purchasing - Elderly S117 - South,Permanent Nursing,Gracefields Nursing Home,1246.08, 10-Apr-2018
1458,Revenue,CAHD,Bed purchasing - Elderly S117 - South,Permanent Nursing,Gracefields Nursing Home,1222.84, 10-Apr-2018
1459,Revenue,CAHD,Bed Purchasing - South,Permanent Nursing,Gracefields Nursing Home,1834.2, 10-Apr-2018
1460,Revenue,CAHD,Bed Purchasing - South,Permanent Nursing,Gracefields Nursing Home,1800, 10-Apr-2018
1461,Revenue,CAHD,Bed Purchasing - South,Permanent Nursing,Gracefields Nursing Home,1576.76, 10-Apr-2018
1462,Revenue,CAHD,Bed Purchasing - South,Permanent Nursing,Gracefields Nursing Home,1547.36, 10-Apr-2018
1463,Revenue,CAHD,Bed Purchasing - South,Permanent Nursing,Gracefields Nursing Home,1732.3, 10-Apr-2018
1464,Revenue,CAHD,Bed Purchasing - South,Permanent Nursing,Gracefields Nursing Home,1700, 10-Apr-2018
1465,Revenue,CAHD,South Glos Users in South Glos Homes,Permanent Nursing,Gracefields Nursing Home,2724.45, 10-Apr-2018
1466,Revenue,CAHD,Bed Purchasing - Southmead Hospital,Permanent Nursing,Gracefields Nursing Home,1732.3, 10-Apr-2018
1467,Revenue,CAHD,Bed Purchasing - Southmead Hospital,Permanent Nursing,Gracefields Nursing Home,1700, 10-Apr-2018
1468,Revenue,CAHD,Bed Purchasing - Southmead Hospital,Permanent Nursing,Gracefields Nursing Home,1783.26, 10-Apr-2018
1469,Revenue,CAHD,Bed Purchasing - Southmead Hospital,Permanent Nursing,Gracefields Nursing Home,1750, 10-Apr-2018
1470,Revenue,CAHD,Bed Purchasing - Southmead Hospital,Permanent Nursing,Gracefields Nursing Home,1783.26, 10-Apr-2018
1471,Revenue,CAHD,Bed Purchasing - Southmead Hospital,Permanent Nursing,Gracefields Nursing Home,1750, 10-Apr-2018
1472,Revenue,CAHD,Bed Purchasing - Southmead Hospital,Permanent Nursing,Gracefields Nursing Home,1783.26, 10-Apr-2018
1473,Revenue,CAHD,Bed Purchasing - Southmead Hospital,Permanent Nursing,Gracefields Nursing Home,1750, 10-Apr-2018
1474,Revenue,CAHD,Bed Purchasing - South,Permanent Nursing,Gracefields Nursing Home,1564.88, 10-Apr-2018
1475,Revenue,CAHD,Bed Purchasing - South,Permanent Nursing,Gracefields Nursing Home,1535.7, 10-Apr-2018
1476,Revenue,CAHD,Bed Purchasing - Southmead Hospital,Permanent Nursing,Gracefields Nursing Home,1732.3, 10-Apr-2018
1477,Revenue,CAHD,Bed Purchasing - Southmead Hospital,Permanent Nursing,Gracefields Nursing Home,1700, 10-Apr-2018
1478,Revenue,CAHD,Bed Purchasing - Southmead Hospital,Fees & Charges Income - General,Gracefields Nursing Home,1586.64, 10-Apr-2018
1479,Revenue,CAHD,Bed Purchasing - Southmead Hospital,Permanent Nursing,Gracefields Nursing Home,1576.76, 10-Apr-2018
1480,Revenue,CAHD,Bed Purchasing - Southmead Hospital,Permanent Nursing,Gracefields Nursing Home,1547.36, 10-Apr-2018
1481,Revenue,CAHD,Bed Purchasing - South,Permanent Nursing,Gracefields Nursing Home,1513.28, 10-Apr-2018
1482,Revenue,CAHD,Bed Purchasing - South,Permanent Nursing,Gracefields Nursing Home,1485.06, 10-Apr-2018
1483,Revenue,CAHD,South Glos Users in South Glos Homes,Permanent Nursing,Gracefields Nursing Home,1772, 10-Apr-2018
1484,Revenue,CAHD,Bed Purchasing - South,Permanent Nursing,Gracefields Nursing Home,1246.08, 10-Apr-2018
1485,Revenue,CAHD,Bed Purchasing - South,Permanent Nursing,Gracefields Nursing Home,1222.84, 10-Apr-2018
1486,Revenue,CAHD,Bed Purchasing - South,Permanent Nursing,Gracefields Nursing Home,1732.3, 10-Apr-2018
1487,Revenue,CAHD,Bed Purchasing - South,Permanent Nursing,Gracefields Nursing Home,1700, 10-Apr-2018
1488,Revenue,CAHD,Bed Purchasing - South,Permanent Nursing,Gracefields Nursing Home,1834.2, 10-Apr-2018
1489,Revenue,CAHD,Bed Purchasing - South,Permanent Nursing,Gracefields Nursing Home,1928.57, 10-Apr-2018
1490,Revenue,CAHD,Bed Purchasing - South,Permanent Nursing,Gracefields Nursing Home,1800, 10-Apr-2018
1491,Revenue,CAHD,South Glos Users in South Glos Homes,Permanent Nursing,Gracefields Nursing Home,620.2, 10-Apr-2018
1492,Revenue,CAHD,South Glos Users in South Glos Homes,Permanent Nursing,Gracefields Nursing Home,620.2, 10-Apr-2018
1493,Revenue,CAHD,Bed Purchasing - Southmead Hospital,Permanent Nursing,Gracefields Nursing Home,1668.1, 10-Apr-2018
1494,Revenue,CAHD,Bed Purchasing - Southmead Hospital,Permanent Nursing,Gracefields Nursing Home,1637, 10-Apr-2018
1495,Revenue,CAHD,CSC - Residential Placements,Permanent Residential,Greenfields Adolecent Development Limited,4422.73, 30-Apr-2018
1496,Revenue,CAHD,Academy Resource Base Funding,Other Public Bodies,Greenshaw Learning Trust T/A Yate Academy,981.04, 30-Apr-2018
1497,Revenue,CAHD,Academy Resource Base Funding,Other Public Bodies,Greenshaw Learning Trust T/A Yate Academy,1648.03, 30-Apr-2018
1498,Revenue,CAHD,Academy Resource Base Funding,Other Public Bodies,Greenshaw Learning Trust T/A Yate Academy,1491.12, 30-Apr-2018
1499,Revenue,CAHD,Academy Resource Base Funding,Other Public Bodies,Greenshaw Learning Trust T/A Yate Academy,1137.95, 30-Apr-2018
1500,Revenue,CAHD,Academy Resource Base Funding,Other Public Bodies,Greenshaw Learning Trust T/A Yate Academy,1137.95, 30-Apr-2018
1501,Revenue,CAHD,Academy Resource Base Funding,Other Public Bodies,Greenshaw Learning Trust T/A Yate Academy,627.78, 30-Apr-2018
1502,Revenue,CAHD,Academy Resource Base Funding,Other Public Bodies,Greenshaw Learning Trust T/A Yate Academy,1648.03, 30-Apr-2018
1503,Revenue,CAHD,Academy Resource Base Funding,Other Public Bodies,Greenshaw Learning Trust T/A Yate Academy,1491.12, 30-Apr-2018
1504,Revenue,CAHD,Statemented Support Academies,Schools Funding,Greenshaw Learning Trust T/A Yate Academy,694.91, 27-Apr-2018
1505,Revenue,CAHD,Statemented Support Academies,Schools Funding,Greenshaw Learning Trust T/A Yate Academy,1685.41, 27-Apr-2018
1506,Revenue,CAHD,Statemented Support Academies,Schools Funding,Greenshaw Learning Trust T/A Yate Academy,1213.74, 27-Apr-2018
1507,Revenue,CAHD,Statemented Support Academies,Schools Funding,Greenshaw Learning Trust T/A Yate Academy,848.2, 27-Apr-2018
1508,Revenue,CAHD,Statemented Support Academies,Schools Funding,Greenshaw Learning Trust T/A Yate Academy,1461.37, 27-Apr-2018
1509,Revenue,CAHD,Statemented Support Academies,Schools Funding,Greenshaw Learning Trust T/A Yate Academy,1213.74, 27-Apr-2018
1510,Revenue,CAHD,Statemented Support Academies,Schools Funding,Greenshaw Learning Trust T/A Yate Academy,1213.74, 27-Apr-2018
1511,Revenue,CAHD,Statemented Support Academies,Schools Funding,Greenshaw Learning Trust T/A Yate Academy,977.91, 27-Apr-2018
1512,Revenue,CAHD,Statemented Support Academies,Schools Funding,Greenshaw Learning Trust T/A Yate Academy,942.53, 27-Apr-2018
1513,Revenue,CAHD,Statemented Support Academies,Schools Funding,Greenshaw Learning Trust T/A Yate Academy,883.58, 27-Apr-2018
1514,Revenue,CAHD,Statemented Support Academies,Schools Funding,Greenshaw Learning Trust T/A Yate Academy,730.28, 27-Apr-2018
1515,Revenue,CAHD,Statemented Support Academies,Schools Funding,Greenshaw Learning Trust T/A Yate Academy,765.66, 27-Apr-2018
1516,Revenue,CAHD,Statemented Support Academies,Schools Funding,Greenshaw Learning Trust T/A Yate Academy,694.91, 27-Apr-2018
1517,Revenue,CAHD,Bed Purchasing - North,Permanent Residential,Greensleeves,1037.7, 10-Apr-2018
1518,Revenue,CAHD,Bed Purchasing - North,Permanent Residential,Greensleeves,1018.36, 10-Apr-2018
1519,Revenue,CAHD,Bed Purchasing - South,Permanent Residential,Gwendoline House,1306.98, 10-Apr-2018
1520,Revenue,CAHD,Bed Purchasing - South,Permanent Residential,Gwendoline House,1282.62, 10-Apr-2018
1521,Revenue,CAHD,Bed Purchasing - South,Permanent Residential,Gwendoline House,9344.8, 10-Apr-2018
1522,Revenue,CAHD,Bed Purchasing - South,Permanent Residential,Gwendoline House,2565.24, 10-Apr-2018
1523,Revenue,CAHD,Bed Purchasing - South,Permanent Residential,Gwendoline House,1190, 10-Apr-2018
1524,Revenue,CAHD,Bed Purchasing - South,Permanent Residential,Gwendoline House,1039.39, 10-Apr-2018
1525,Revenue,CAHD,Bed Purchasing - South,Permanent Residential,Gwendoline House,1207.72, 10-Apr-2018
1526,Revenue,CAHD,Bed Purchasing - South,Permanent Residential,Gwendoline House,1185.2, 10-Apr-2018
1527,Revenue,CAHD,Bed Purchasing - South,Permanent Residential,Gwendoline House,1212.62, 10-Apr-2018
1528,Revenue,CAHD,Bed Purchasing - South,Permanent Residential,Gwendoline House,1190, 10-Apr-2018
1529,Revenue,CAHD,Bed Purchasing - Southmead Hospital,Permanent Residential,Gwendoline House,1072.38, 10-Apr-2018
1530,Revenue,CAHD,Bed Purchasing - Southmead Hospital,Permanent Residential,Gwendoline House,1034.12, 10-Apr-2018
1531,Revenue,CAHD,Home Care - Elderly - North,Other Small Contracts,H F T,744, 10-Apr-2018
1532,Revenue,CAHD,Supporting People Programme,Grants to Voluntary Bodies,Habinteg Housing Association,685.84, 06-Apr-2018
1533,Revenue,CAHD,Early Years Inclusion Fund,Other Public Bodies,Halley Nursery Frenchay T/A The Students Union,500, 10-Apr-2018
1534,Revenue,CAHD,Social Lettings Agency,Fees - General,Individual,13.13, 27-Apr-2018
1535,Revenue,CAHD,Social Lettings Agency,Other Supplies & Services,Individual,577.72, 27-Apr-2018
1536,Revenue,CAHD,Supporting People Programme,Grants to Voluntary Bodies,Hanover Housing Association,1016.12, 06-Apr-2018
1537,Revenue,CAHD,Section 117 Placements MH Younger,Permanent Residential,Harefield Hall,1548.38, 10-Apr-2018
1538,Revenue,CAHD,Section 117 Placements MH Younger,Permanent Residential,Harefield Hall,1519.5, 10-Apr-2018
1539,Revenue,CAHD,Bed Purchasing - South,Permanent Residential,Harefield Hall,1147.88, 10-Apr-2018
1540,Revenue,CAHD,Bed Purchasing - South,Permanent Residential,Harefield Hall,1126.48, 10-Apr-2018
1541,Revenue,CAHD,Bed Purchasing - South,Permanent Residential,Harefield Hall,1244.96, 10-Apr-2018
1542,Revenue,CAHD,Bed Purchasing - South,Permanent Residential,Harefield Hall,1221.74, 10-Apr-2018
1543,Revenue,CAHD,Bed Purchasing - South,Permanent Residential,Harefield Hall,1321.96, 10-Apr-2018
1544,Revenue,CAHD,Bed Purchasing - South,Permanent Residential,Harefield Hall,1297.32, 10-Apr-2018
1545,Revenue,CAHD,TSG Practice Placements,Training Expenses,Individual,500, 16-Apr-2018
1546,Revenue,CAHD,Home Care - Elderly - South,Other Supplies & Services,HAS Technology Limited T/A CM2000,39034.5, 16-Apr-2018
1547,Revenue,CAHD,Home Care - Elderly - North,Other Supplies & Services,HAS Technology Limited T/A CM2000,39034.5, 16-Apr-2018
1548,Revenue,CAHD,Home Care Monitoring (CM2000),Other Supplies & Services,HAS Technology Limited T/A CM2000,9704.69, 12-Apr-2018
1549,Revenue,CAHD,Home Care - Elderly - North,Other Supplies & Services,HAS Technology Limited T/A CM2000,1316, 20-Apr-2018
1550,Revenue,CAHD,Bed Purchasing - Southmead Hospital,Permanent Nursing,Hazelwood Gardens Nursing Home,1426.6, 10-Apr-2018
1551,Revenue,CAHD,Bed Purchasing - Southmead Hospital,Permanent Nursing,Hazelwood Gardens Nursing Home,1400, 10-Apr-2018
1552,Revenue,CAHD,Bed Purchasing - Southmead Hospital,Fees & Charges Income - General,Hazelwood Gardens Nursing Home,1594.19, 10-Apr-2018
1553,Revenue,CAHD,Bed Purchasing - Southmead Hospital,Permanent Nursing,Hazelwood Gardens Nursing Home,1329.02, 10-Apr-2018
1554,Revenue,CAHD,Bed Purchasing - Southmead Hospital,Permanent Nursing,Hazelwood Gardens Nursing Home,1304.24, 10-Apr-2018
1555,Revenue,CAHD,Bed Purchasing - Southmead Hospital,Permanent Nursing,Hazelwood Gardens Nursing Home,1144.28, 10-Apr-2018
1556,Revenue,CAHD,Bed Purchasing - Southmead Hospital,Permanent Nursing,Hazelwood Gardens Nursing Home,1122.94, 10-Apr-2018
1557,Revenue,CAHD,Bed Purchasing - Southmead Hospital,Permanent Residential,Hc-One Ltd,1090.5, 10-Apr-2018
1558,Revenue,CAHD,Bed Purchasing - Southmead Hospital,Permanent Residential,Hc-One Ltd,1070.16, 10-Apr-2018
1559,Revenue,CAHD,Bed Purchasing - Southmead Hospital,Permanent Nursing,Hc-One Ltd,1408.14, 10-Apr-2018
1560,Revenue,CAHD,Bed Purchasing - Southmead Hospital,Permanent Nursing,Hc-One Ltd,1381.88, 10-Apr-2018
1561,Revenue,CAHD,Bed Purchasing - North,Permanent Nursing,Hc-One Ltd,1085.56, 10-Apr-2018
1562,Revenue,CAHD,Bed Purchasing - North,Permanent Nursing,Hc-One Ltd,1065.32, 10-Apr-2018
1563,Revenue,CAHD,Bed Purchasing - North,Permanent Nursing,Hc-One Ltd,1078.28, 10-Apr-2018
1564,Revenue,CAHD,Bed Purchasing - North,Permanent Nursing,Hc-One Ltd,1058.18, 10-Apr-2018
1565,Revenue,CAHD,Bed Purchasing - North,Permanent Nursing,Hc-One Ltd,1085.54, 10-Apr-2018
1566,Revenue,CAHD,Bed Purchasing - North,Permanent Nursing,Hc-One Ltd,1065.3, 10-Apr-2018
1567,Revenue,CAHD,Bed Purchasing - Southmead Hospital,Permanent Nursing,Hc-One Ltd,1428.88, 10-Apr-2018
1568,Revenue,CAHD,Bed Purchasing - Southmead Hospital,Permanent Nursing,Hc-One Ltd,1402.24, 10-Apr-2018
1569,Revenue,CAHD,Bed Purchasing - Southmead Hospital,Permanent Nursing,Hc-One Ltd,1304.72, 10-Apr-2018
1570,Revenue,CAHD,Bed Purchasing - Southmead Hospital,Permanent Nursing,Hc-One Ltd,1280.4, 10-Apr-2018
1571,Revenue,CAHD,Bed Purchasing - Southmead Hospital,Permanent Nursing,Head Office,1206.44, 10-Apr-2018
1572,Revenue,CAHD,Bed Purchasing - Southmead Hospital,Permanent Nursing,Head Office,1183.94, 10-Apr-2018
1573,Revenue,CAHD,CSC - Residential Placements,Permanent Residential,Headway Adolescent Resources Limited,9714, 11-Apr-2018
1574,Revenue,CAHD,Home Care - Elderly - South,Day Care / Social Activities,Headway Bristol,280.8, 09-Apr-2018
1575,Revenue,CAHD,Home Care - Elderly - South,Other Small Contracts,Headway Bristol,64.8, 09-Apr-2018
1576,Revenue,CAHD,Home Care - Elderly - North,Day Care / Social Activities,Headway Bristol,1074.6, 09-Apr-2018
1577,Revenue,CAHD,Home Care - Elderly - North,Other Small Contracts,Headway Bristol,324, 09-Apr-2018
1578,Revenue,CAHD,Younger MH non-res purchasing,Day Care / Social Activities,Headway Bristol,86.4, 09-Apr-2018
1579,Revenue,CAHD,Home Care - Elderly - South,Day Care / Social Activities,Headway Bristol,475.2, 16-Apr-2018
1580,Revenue,CAHD,Home Care - Elderly - South,Other Small Contracts,Headway Bristol,108, 16-Apr-2018
1581,Revenue,CAHD,Home Care - Elderly - North,Day Care / Social Activities,Headway Bristol,1188, 16-Apr-2018
1582,Revenue,CAHD,Home Care - Elderly - North,Other Small Contracts,Headway Bristol,259.2, 16-Apr-2018
1583,Revenue,CAHD,Younger MH non-res purchasing,Day Care / Social Activities,Headway Bristol,86.4, 16-Apr-2018
1584,Revenue,CAHD,Home Care - Elderly - South,Day Care / Social Activities,Headway Bristol,453.6, 24-Apr-2018
1585,Revenue,CAHD,Home Care - Elderly - South,Other Small Contracts,Headway Bristol,64.8, 24-Apr-2018
1586,Revenue,CAHD,Home Care - Elderly - North,Day Care / Social Activities,Headway Bristol,1144.8, 24-Apr-2018
1587,Revenue,CAHD,Home Care - Elderly - North,Other Small Contracts,Headway Bristol,324, 24-Apr-2018
1588,Revenue,CAHD,Younger MH non-res purchasing,Day Care / Social Activities,Headway Bristol,86.4, 24-Apr-2018
1589,Revenue,CAHD,Home Care - Elderly - South,Day Care / Social Activities,Headway Bristol,367.2, 26-Apr-2018
1590,Revenue,CAHD,Home Care - Elderly - South,Other Small Contracts,Headway Bristol,194.4, 26-Apr-2018
1591,Revenue,CAHD,Home Care - Elderly - North,Day Care / Social Activities,Headway Bristol,847.8, 26-Apr-2018
1592,Revenue,CAHD,Home Care - Elderly - North,Other Small Contracts,Headway Bristol,259.2, 26-Apr-2018
1593,Revenue,CAHD,Younger MH non-res purchasing,Day Care / Social Activities,Headway Bristol,43.2, 26-Apr-2018
1594,Revenue,CAHD,Home Care - Elderly - South,Other Small Contracts,Helping Hands Homecare,748.16, 27-Apr-2018
1595,Revenue,CAHD,Home Care - Elderly - North,Day Care / Social Activities,Helping Hands Homecare,219.52, 27-Apr-2018
1596,Revenue,CAHD,Home Care - Elderly - North,Other Small Contracts,Helping Hands Homecare,4014.04, 27-Apr-2018
1597,Revenue,CAHD,Younger MH non-res purchasing,Other Small Contracts,Helping Hands Homecare,66.84, 27-Apr-2018
1598,Revenue,CAHD,Placements OLA Special Schools and RB,Other L.A.'s - General,Henbury Court Primary Academy,819.17, 24-Apr-2018
1599,Revenue,CAHD,S117 Placements PCT,Permanent Residential,Hesley Hall,9629.06, 10-Apr-2018
1600,Revenue,CAHD,S117 Placements PCT,Permanent Residential,Hesley Hall,9449.52, 10-Apr-2018
1601,Revenue,CAHD,Bed Purchasing - North,Permanent Residential,High Border Lodge,1019.86, 10-Apr-2018
1602,Revenue,CAHD,Bed Purchasing - North,Permanent Residential,High Border Lodge,1000.84, 10-Apr-2018
1603,Revenue,CAHD,Bed Purchasing - Southmead Hospital,Permanent Residential,Highgate Studios,1211.94, 10-Apr-2018
1604,Revenue,CAHD,Bed Purchasing - Southmead Hospital,Permanent Residential,Highgate Studios,1189.34, 10-Apr-2018
1605,Revenue,CAHD,Home Care - Elderly - North,Supported Living,Hillcairnie House,2428.78, 10-Apr-2018
1606,Revenue,CAHD,Home Care - Elderly - North,Supported Living,Hillcairnie House,2383.5, 10-Apr-2018
1607,Revenue,CAHD,Home Care - Elderly - North,Supported Living,Hillcairnie House,2152.76, 10-Apr-2018
1608,Revenue,CAHD,Home Care - Elderly - North,Supported Living,Hillcairnie House,2112.62, 10-Apr-2018
1609,Revenue,CAHD,Home Care - Elderly - South,Supported Living,Hillcairnie House,1257.52, 10-Apr-2018
1610,Revenue,CAHD,Home Care - Elderly - South,Supported Living,Hillcairnie House,1234.08, 10-Apr-2018
1611,Revenue,CAHD,Home Care - Elderly - South,Supported Living,Hillcairnie House,1257.5, 10-Apr-2018
1612,Revenue,CAHD,Home Care - Elderly - South,Supported Living,Hillcairnie House,1234.06, 10-Apr-2018
1613,Revenue,CAHD,CSC - Safeguarding Board,Training Expenses,Holiday Inn,4362.5, 13-Apr-2018
1614,Revenue,CAHD,Bed Purchasing - Southmead Hospital,Permanent Nursing,Holly Villa,1051.34, 10-Apr-2018
1615,Revenue,CAHD,Bed Purchasing - Southmead Hospital,Permanent Nursing,Holly Villa,1031.74, 10-Apr-2018
1616,Revenue,CAHD,Bed Purchasing - North,Permanent Residential,Holmleigh Care Homes Ltd,2333.06, 10-Apr-2018
1617,Revenue,CAHD,Bed Purchasing - North,Permanent Residential,Holmleigh Care Homes Ltd,2289.56, 10-Apr-2018
1618,Revenue,CAHD,Bed Purchasing - South,Permanent Residential,Holmleigh Care Homes Ltd,2228.62, 10-Apr-2018
1619,Revenue,CAHD,Jointly Funded H&SC Packages,Permanent Residential,Holmleigh Care Homes Ltd,638.48, 10-Apr-2018
1620,Revenue,CAHD,Bed Purchasing - South,Permanent Residential,Holmleigh Care Homes Ltd,2187.06, 10-Apr-2018
1621,Revenue,CAHD,Jointly Funded H&SC Packages,Permanent Residential,Holmleigh Care Homes Ltd,626.58, 10-Apr-2018
1622,Revenue,CAHD,Home Care - Elderly - North,Supported Living,Home Farm Trust Ltd  5-6 Brook Office Pa,1055.74, 10-Apr-2018
1623,Revenue,CAHD,Home Care - Elderly - North,Supported Living,Home Farm Trust Ltd  5-6 Brook Office Pa,1036.06, 10-Apr-2018
1624,Revenue,CAHD,Home Care - Elderly - South,Supported Living,Home Farm Trust Ltd  5-6 Brook Office Pa,2075.8, 10-Apr-2018
1625,Revenue,CAHD,Home Care - Elderly - South,Supported Living,Home Farm Trust Ltd  5-6 Brook Office Pa,2037.1, 10-Apr-2018
1626,Revenue,CAHD,18-25 Year Olds,Permanent Residential,Home From Home Care Ltd,4962.92, 10-Apr-2018
1627,Revenue,CAHD,18-25 Year Olds,Permanent Residential,Home From Home Care Ltd,4870.38, 10-Apr-2018
1628,Revenue,CAHD,Housing Needs,Training Expenses,Homeless Link,575, 18-Apr-2018
1629,Revenue,CAHD,Bed Purchasing - North,Permanent Residential,Homes Caring For Autism Ltd  Churchill H,4165.64, 10-Apr-2018
1630,Revenue,CAHD,Jointly Funded H&SC Packages,Permanent Residential,Homes Caring For Autism Ltd  Churchill H,1258.64, 10-Apr-2018
1631,Revenue,CAHD,Bed Purchasing - North,Permanent Residential,Homes Caring For Autism Ltd  Churchill H,4087.96, 10-Apr-2018
1632,Revenue,CAHD,Jointly Funded H&SC Packages,Permanent Residential,Homes Caring For Autism Ltd  Churchill H,1235.18, 10-Apr-2018
1633,Revenue,CAHD,18-25 Year Olds,Permanent Residential,Homes Caring For Autism Ltd  Churchill H,4095.98, 10-Apr-2018
1634,Revenue,CAHD,Jointly Funded H&SC Packages,Permanent Residential,Homes Caring For Autism Ltd  Churchill H,2937.44, 10-Apr-2018
1635,Revenue,CAHD,18-25 Year Olds,Permanent Residential,Homes Caring For Autism Ltd  Churchill H,2882.66, 10-Apr-2018
1636,Revenue,CAHD,Jointly Funded H&SC Packages,Permanent Residential,Homes Caring For Autism Ltd  Churchill H,4019.62, 10-Apr-2018
1637,Revenue,CAHD,Bed Purchasing - Southmead Hospital,Permanent Nursing,Horfield Care Limited,834.43, 05-Apr-2018
1638,Revenue,CAHD,Bed Purchasing - Southmead Hospital,Respite Planned - Nursing,Horfield Care Limited,1365.43, 05-Apr-2018
1639,Revenue,CAHD,Bed Purchasing - Southmead Hospital,Permanent Nursing,Horfield Care Limited,1905.84, 05-Apr-2018
1640,Revenue,CAHD,Bed Purchasing - Southmead Hospital,Permanent Nursing,Horfield Care Limited,1214.98, 05-Apr-2018
1641,Revenue,CAHD,Bed Purchasing - South,Permanent Nursing,Horfield Care Limited,1391.81, 05-Apr-2018
1642,Revenue,CAHD,Bed Purchasing - South,Permanent Nursing,Horfield Care Limited,1756.15, 05-Apr-2018
1643,Revenue,CAHD,Bed Purchasing - South,Permanent Nursing,Horfield Care Limited,736.45, 05-Apr-2018
1644,Revenue,CAHD,Supporting People Programme,Grants to Voluntary Bodies,Housing 21,985.34, 06-Apr-2018
1645,Revenue,CAHD,Supporting People Programme,Grants to Voluntary Bodies,Housing 21,648.98, 06-Apr-2018
1646,Revenue,CAHD,Extra Care Housing,Private & Voluntary Home Care,Housing 21,37678.33, 13-Apr-2018
1647,Revenue,CAHD,Extra Care Housing,Private & Voluntary Home Care,Housing 21,34872.5, 06-Apr-2018
1648,Revenue,CAHD,Information Systems - Software,Software Support & Maintenance,Housing Partners Limited,1232, 11-Apr-2018
1649,Revenue,CAHD,Hospital Tuition,Other Private Contractors,Huntercombe Hospital Maidenhead,1500, 24-Apr-2018
1650,Revenue,CAHD,Hospital Tuition,Other Private Contractors,Huntercombe Hospital Maidenhead,2400, 24-Apr-2018
1651,Revenue,CAHD,Information Systems - Software,Software Support & Maintenance,Idox Software Ltd,71800, 20-Apr-2018
1652,Revenue,CAHD,SEN High Needs - Not at School Base,Other Private Contractors,Impact Mentoring,3000, 04-Apr-2018
1653,Revenue,CAHD,SEN High Needs - Not at School Base,Other Private Contractors,Impact Mentoring,2250, 04-Apr-2018
1654,Revenue,CAHD,SEN High Needs - Not at School Base,Other Private Contractors,Impact Mentoring,825, 05-Apr-2018
1655,Revenue,CAHD,SEN High Needs - Not at School Base,Other Private Contractors,Impact Mentoring,1650, 05-Apr-2018
1656,Revenue,CAHD,18-25 Year Olds,Day Care / Social Activities,Impact Mentoring,1375, 25-Apr-2018
1657,Revenue,CAHD,CSC - Vinney Green Secure Unit,Mechanical & Electrical Maintenance,Integral UK Limited,4300, 13-Apr-2018
1658,Revenue,CAHD,CSC - Adoption Support Fund,Post Adoption,Intramosaic Counselling and Psychotherapy Limited,1161, 13-Apr-2018
1659,Revenue,CAHD,Social Lettings Agency,Fees - General,Individual,12.22, 11-Apr-2018
1660,Revenue,CAHD,Social Lettings Agency,Other Supplies & Services,Individual,690.32, 11-Apr-2018
1661,Revenue,CAHD,CSC - Adoption Support Fund,Post Adoption,Individual,924, 12-Apr-2018
1662,Revenue,CAHD,CSC - Adoption Support Fund,Post Adoption,Individual,1550, 27-Apr-2018
1663,Revenue,CAHD,Bed Purchasing - South,Permanent Residential,Jonen House,2113.26, 10-Apr-2018
1664,Revenue,CAHD,Bed Purchasing - South,Permanent Residential,Jonen House,2073.86, 10-Apr-2018
1665,Revenue,CAHD,CSC - Section 17 Long Term Support,"Provisions (Food, etc)",Individual,650, 27-Apr-2018
1666,Revenue,CAHD,Tobacco Control,Drugs & Medical Supplies,JRW Billing,1257.22, 09-Apr-2018
1667,Revenue,CAHD,Post 16 High Needs Placements,Other Private Contractors,Individual,1968, 11-Apr-2018
1668,Revenue,CAHD,0-25 Management Team,Interpreting & Translation,K International Plc,520.8, 13-Apr-2018
1669,Revenue,CAHD,Bed Purchasing - Elderly S117- North,Permanent Residential,Kahala Court,1426.6, 10-Apr-2018
1670,Revenue,CAHD,Bed Purchasing - Elderly S117- North,Permanent Residential,Kahala Court,1400, 10-Apr-2018
1671,Revenue,CAHD,CSC - Adoption Support Fund,Post Adoption,Individual,969.5, 12-Apr-2018
1672,Revenue,CAHD,CSC - Adoption Support Fund,Post Adoption,Individual,735, 12-Apr-2018
1673,Revenue,CAHD,CSC - Adoption Support Fund,Post Adoption,Individual,1780.5, 12-Apr-2018
1674,Revenue,CAHD,Statemented Support Payments to OLAs,Other L.A.'s - General,Katharine Lady Berkeley School,506.24, 27-Apr-2018
1675,Revenue,CAHD,Statemented Support Payments to OLAs,Other L.A.'s - General,Katharine Lady Berkeley School,671.33, 27-Apr-2018
1676,Revenue,CAHD,Statemented Support Payments to OLAs,Other L.A.'s - General,Katharine Lady Berkeley School,635.95, 27-Apr-2018
1677,Revenue,CAHD,Home Care - Elderly - South,Other Small Contracts,Kensington Community Care,1778.56, 11-Apr-2018
1678,Revenue,CAHD,Home Care - Elderly - North,Other Small Contracts,Kensington Community Care,4892.16, 11-Apr-2018
1679,Revenue,CAHD,Home Care - Elderly - South,Other Small Contracts,Kensington Community Care,2163.84, 11-Apr-2018
1680,Revenue,CAHD,Home Care - Elderly - North,Other Small Contracts,Kensington Community Care,5277.44, 11-Apr-2018
1681,Revenue,CAHD,Home Care - Elderly - South,Other Small Contracts,Kensington Community Care,1778.56, 06-Apr-2018
1682,Revenue,CAHD,Home Care - Elderly - North,Other Small Contracts,Kensington Community Care,4273.92, 06-Apr-2018
1683,Revenue,CAHD,Home Care - Elderly - South,Other Small Contracts,Kensington Community Care,1738.24, 11-Apr-2018
1684,Revenue,CAHD,Home Care - Elderly - North,Other Small Contracts,Kensington Community Care,3570.56, 11-Apr-2018
1685,Revenue,CAHD,Home Care - Elderly - South,Other Small Contracts,Kensington Community Care,1724.8, 11-Apr-2018
1686,Revenue,CAHD,Home Care - Elderly - North,Other Small Contracts,Kensington Community Care,3055.36, 11-Apr-2018
1687,Revenue,CAHD,Home Care - Elderly - South,Other Small Contracts,Kensington Community Care,1711.36, 24-Apr-2018
1688,Revenue,CAHD,Home Care - Elderly - North,Other Small Contracts,Kensington Community Care,3055.36, 24-Apr-2018
1689,Revenue,CAHD,Bed Purchasing - South,Permanent Residential,Kenver House Residential Home,1426.6, 10-Apr-2018
1690,Revenue,CAHD,Bed Purchasing - South,Permanent Residential,Kenver House Residential Home,1400, 10-Apr-2018
1691,Revenue,CAHD,Bed Purchasing - Southmead Hospital,Permanent Residential,Kenver House Residential Home,1145.84, 10-Apr-2018
1692,Revenue,CAHD,Bed Purchasing - Southmead Hospital,Permanent Residential,Kenver House Residential Home,1124.48, 10-Apr-2018
1693,Revenue,CAHD,Bed Purchasing - South,Permanent Residential,Kenver House Residential Home,1147.42, 10-Apr-2018
1694,Revenue,CAHD,Bed Purchasing - South,Permanent Residential,Kenver House Residential Home,1126.02, 10-Apr-2018
1695,Revenue,CAHD,Bed Purchasing - South,Permanent Residential,Kenver House Residential Home,1254.94, 10-Apr-2018
1696,Revenue,CAHD,Bed Purchasing - South,Permanent Residential,Kenver House Residential Home,1231.54, 10-Apr-2018
1697,Revenue,CAHD,Bed purchasing - Elderly S117 - South,Permanent Residential,Kenver House Residential Home,1254.94, 10-Apr-2018
1698,Revenue,CAHD,Bed purchasing - Elderly S117 - South,Permanent Residential,Kenver House Residential Home,1231.54, 10-Apr-2018
1699,Revenue,CAHD,Bed Purchasing - South,Permanent Residential,Kenver House Residential Home,1331.6, 10-Apr-2018
1700,Revenue,CAHD,Bed Purchasing - South,Permanent Residential,Kenver House Residential Home,1306.78, 10-Apr-2018
1701,Revenue,CAHD,Bed Purchasing - South,Permanent Residential,Kenver House Residential Home,1254.94, 10-Apr-2018
1702,Revenue,CAHD,Bed Purchasing - South,Permanent Residential,Kenver House Residential Home,1231.54, 10-Apr-2018
1703,Revenue,CAHD,Bed Purchasing - North,Permanent Residential,Kenver House Residential Home,1467.36, 10-Apr-2018
1704,Revenue,CAHD,Bed Purchasing - North,Permanent Residential,Kenver House Residential Home,1440, 10-Apr-2018
1705,Revenue,CAHD,Bed Purchasing - South,Permanent Residential,Kenver House Residential Home,1254.94, 10-Apr-2018
1706,Revenue,CAHD,Bed Purchasing - South,Permanent Residential,Kenver House Residential Home,1231.54, 10-Apr-2018
1707,Revenue,CAHD,Bed Purchasing - Southmead Hospital,Permanent Residential,Kenver House Residential Home,1314.52, 10-Apr-2018
1708,Revenue,CAHD,Bed Purchasing - Southmead Hospital,Permanent Residential,Kenver House Residential Home,1290, 10-Apr-2018
1709,Revenue,CAHD,Bed Purchasing - Southmead Hospital,Permanent Residential,Kenver House Residential Home,1426.6, 10-Apr-2018
1710,Revenue,CAHD,Bed Purchasing - Southmead Hospital,Permanent Residential,Kenver House Residential Home,1400, 10-Apr-2018
1711,Revenue,CAHD,Bed Purchasing - Southmead Hospital,Permanent Residential,Kenver House Residential Home,1314.52, 10-Apr-2018
1712,Revenue,CAHD,Bed Purchasing - Southmead Hospital,Permanent Residential,Kenver House Residential Home,1290, 10-Apr-2018
1713,Revenue,CAHD,Bed Purchasing - South,Permanent Residential,Kenver House Residential Home,1145.84, 10-Apr-2018
1714,Revenue,CAHD,Bed Purchasing - South,Permanent Residential,Kenver House Residential Home,1124.48, 10-Apr-2018
1715,Revenue,CAHD,Mental Capacity Act / DOLS,Legal Fees,Individual,500, 13-Apr-2018
1716,Revenue,CAHD,Bed Purchasing - Southmead Hospital,Permanent Nursing,Keyers Bridge House,1335.08, 10-Apr-2018
1717,Revenue,CAHD,Bed Purchasing - Southmead Hospital,Permanent Nursing,Keyers Bridge House,1310.18, 10-Apr-2018
1718,Revenue,CAHD,Bed Purchasing - Southmead Hospital,Respite Planned - Nursing,Keyers Bridge House,1548.78, 10-Apr-2018
1719,Revenue,CAHD,Bed Purchasing - Southmead Hospital,Respite Planned - Nursing,Keyers Bridge House,1519.9, 10-Apr-2018
1720,Revenue,CAHD,Bed Purchasing - South,Respite Planned - Nursing,Keyers Bridge House,3854.01, 10-Apr-2018
1721,Revenue,CAHD,Bed Purchasing - Southmead Hospital,Permanent Nursing,Keyers Bridge House,1061.76, 10-Apr-2018
1722,Revenue,CAHD,Bed Purchasing - Southmead Hospital,Permanent Nursing,Keyers Bridge House,1023.88, 10-Apr-2018
1723,Revenue,CAHD,Supporting People Programme,Grants to Voluntary Bodies,Keyring Living Support Networks,3049.39, 06-Apr-2018
1724,Revenue,CAHD,Children & Young People�s Health,Other Supplies & Services,Kid Rapt Limited,1156, 19-Apr-2018
1725,Revenue,CAHD,Bed Purchasing - North,Permanent Residential,Kilkhampton Lodge,9032.18, 10-Apr-2018
1726,Revenue,CAHD,Bed Purchasing - North,Permanent Residential,Kilkhampton Lodge,8863.76, 10-Apr-2018
1727,Revenue,CAHD,CSC - OT Equipment - Children,Daily Living Equipment,Kinderkey Healthcare Limited,4000, 27-Apr-2018
1728,Revenue,CAHD,Bed Purchasing - Southmead Hospital,Permanent Nursing,Kingfisher Lodge Care Centre,1834.2, 10-Apr-2018
1729,Revenue,CAHD,Bed Purchasing - Southmead Hospital,Permanent Nursing,Kingfisher Lodge Care Centre,1800, 10-Apr-2018
1730,Revenue,CAHD,Bed Purchasing - South,Permanent Nursing,Kingfisher Lodge Care Centre,2333.4, 10-Apr-2018
1731,Revenue,CAHD,Bed Purchasing - South,Permanent Nursing,Kingfisher Lodge Care Centre,2289.9, 10-Apr-2018
1732,Revenue,CAHD,Supporting People Programme,Grants to Voluntary Bodies,Kingswood Young Homeless Project,9880.38, 06-Apr-2018
1733,Revenue,CAHD,Community Care Contact Centre,Office Supplies & Equipment,Kinnarps UK Limited (Invoice Account),824.2, 17-Apr-2018
1734,Revenue,CAHD,CSC - Regional Adoption Agency Project,Consultants Fees,Individual,5600, 03-Apr-2018
1735,Revenue,CAHD,Bed Purchasing - North,Permanent Residential,Kisimul Group,6234.5, 10-Apr-2018
1736,Revenue,CAHD,Bed Purchasing - North,Permanent Residential,Kisimul Group,6118.26, 10-Apr-2018
1737,Revenue,CAHD,Placements OLA Special Schools and RB,Other L.A.'s - General,Knowle DGE,2053.42, 24-Apr-2018
1738,Revenue,CAHD,Placements OLA Special Schools and RB,Other L.A.'s - General,Knowle DGE,1353.42, 24-Apr-2018
1739,Revenue,CAHD,Placements OLA Special Schools and RB,Other L.A.'s - General,Knowle DGE,886.75, 24-Apr-2018
1740,Revenue,CAHD,Placements OLA Special Schools and RB,Other L.A.'s - General,Knowle DGE,886.75, 24-Apr-2018
1741,Revenue,CAHD,Placements OLA Special Schools and RB,Other L.A.'s - General,Knowle DGE,2053.42, 24-Apr-2018
1742,Revenue,CAHD,Placements OLA Special Schools and RB,Other L.A.'s - General,Knowle DGE,886.75, 24-Apr-2018
1743,Revenue,CAHD,Home Care - Elderly - North,Other Small Contracts,KPW Newkey Ltd,611.84, 10-Apr-2018
1744,Revenue,CAHD,Home Care - Elderly - South,Other Small Contracts,Kumari Care Limited,724.88, 11-Apr-2018
1745,Revenue,CAHD,Home Care - Elderly - North,Other Small Contracts,Kumari Care Limited,1001.98, 11-Apr-2018
1746,Revenue,CAHD,Home Care - Elderly - South,Other Small Contracts,Kumari Care Limited,623.22, 04-Apr-2018
1747,Revenue,CAHD,Home Care - Elderly - North,Other Small Contracts,Kumari Care Limited,1001.98, 04-Apr-2018
1748,Revenue,CAHD,Home Care - Elderly - South,Other Small Contracts,Kumari Care Limited,693.94, 11-Apr-2018
1749,Revenue,CAHD,Home Care - Elderly - North,Other Small Contracts,Kumari Care Limited,1001.98, 11-Apr-2018
1750,Revenue,CAHD,Home Care - Elderly - South,Other Small Contracts,Kumari Care Limited,742.56, 18-Apr-2018
1751,Revenue,CAHD,Home Care - Elderly - North,Other Small Contracts,Kumari Care Limited,1001.98, 18-Apr-2018
1752,Revenue,CAHD,Home Care - Elderly - South,Other Small Contracts,Kumari Care Limited,739.64, 24-Apr-2018
1753,Revenue,CAHD,Home Care - Elderly - North,Other Small Contracts,Kumari Care Limited,1022.19, 24-Apr-2018
1754,Revenue,CAHD,Home Care - Elderly - South,Other Small Contracts,Kumari Care Limited,757.68, 30-Apr-2018
1755,Revenue,CAHD,Home Care - Elderly - North,Other Small Contracts,Kumari Care Limited,1022.19, 30-Apr-2018
1756,Revenue,CAHD,Bed Purchasing - North,Permanent Nursing,Larchfield Care Home,1563.32, 10-Apr-2018
1757,Revenue,CAHD,Bed Purchasing - North,Permanent Nursing,Larchfield Care Home,1534.18, 10-Apr-2018
1758,Revenue,CAHD,Bed Purchasing - North,Permanent Residential,Leonard Cheshire  National Account Centr,1792, 10-Apr-2018
1759,Revenue,CAHD,Bed Purchasing - North,Permanent Residential,Leonard Cheshire  National Account Centr,1758.58, 10-Apr-2018
1760,Revenue,CAHD,Bed Purchasing - South,Permanent Residential,Leonard Cheshire  National Account Centr,1981.78, 10-Apr-2018
1761,Revenue,CAHD,Bed Purchasing - South,Permanent Residential,Leonard Cheshire  National Account Centr,1944.82, 10-Apr-2018
1762,Revenue,CAHD,Bed Purchasing - North,Permanent Nursing,Leonard Cheshire  National Account Centr,2080.14, 10-Apr-2018
1763,Revenue,CAHD,Bed Purchasing - North,Permanent Nursing,Leonard Cheshire  National Account Centr,2041.36, 10-Apr-2018
1764,Revenue,CAHD,Bed Purchasing - North,Permanent Nursing,Leonard Cheshire  National Account Centr,1712.74, 10-Apr-2018
1765,Revenue,CAHD,Bed Purchasing - North,Permanent Nursing,Leonard Cheshire  National Account Centr,1680.8, 10-Apr-2018
1766,Revenue,CAHD,18-25 Year Olds,Permanent Residential,Leonard Cheshire  National Account Centr,1946.72, 10-Apr-2018
1767,Revenue,CAHD,18-25 Year Olds,Permanent Residential,Leonard Cheshire  National Account Centr,1910.42, 10-Apr-2018
1768,Revenue,CAHD,Bed Purchasing - North,Permanent Residential,Leonard Cheshire  National Account Centr,3320.22, 10-Apr-2018
1769,Revenue,CAHD,Bed Purchasing - North,Permanent Residential,Leonard Cheshire  National Account Centr,3258.32, 10-Apr-2018
1770,Revenue,CAHD,Bed Purchasing - North,Permanent Nursing,Leonard Cheshire  National Account Centr,2670.04, 10-Apr-2018
1771,Revenue,CAHD,Bed Purchasing - North,Permanent Nursing,Leonard Cheshire  National Account Centr,2623.38, 10-Apr-2018
1772,Revenue,CAHD,Bed Purchasing - North,Permanent Nursing,Leonard Cheshire  National Account Centr,1733.72, 10-Apr-2018
1773,Revenue,CAHD,Bed Purchasing - North,Permanent Nursing,Leonard Cheshire  National Account Centr,1701.4, 10-Apr-2018
1774,Revenue,CAHD,Bed Purchasing - North,Permanent Nursing,Leonard Cheshire  National Account Centr,2614.36, 10-Apr-2018
1775,Revenue,CAHD,Bed Purchasing - North,Permanent Nursing,Leonard Cheshire  National Account Centr,2565.62, 10-Apr-2018
1776,Revenue,CAHD,Bed Purchasing - North,Permanent Residential,Leonard Cheshire  National Account Centr,1761.64, 10-Apr-2018
1777,Revenue,CAHD,Bed Purchasing - North,Permanent Residential,Leonard Cheshire  National Account Centr,1728.8, 10-Apr-2018
1778,Revenue,CAHD,Bed Purchasing - North,Permanent Nursing,Leonard Cheshire  National Account Centr,1682.82, 10-Apr-2018
1779,Revenue,CAHD,Bed Purchasing - North,Permanent Nursing,Leonard Cheshire  National Account Centr,1651.44, 10-Apr-2018
1780,Revenue,CAHD,Bed Purchasing - North,Permanent Nursing,Leonard Cheshire  National Account Centr,2989.22, 10-Apr-2018
1781,Revenue,CAHD,Bed Purchasing - North,Permanent Nursing,Leonard Cheshire  National Account Centr,2933.48, 10-Apr-2018
1782,Revenue,CAHD,Bed Purchasing - South,Permanent Nursing,Leonard Cheshire  National Account Centr,3143.42, 10-Apr-2018
1783,Revenue,CAHD,Bed Purchasing - South,Permanent Nursing,Leonard Cheshire  National Account Centr,3084.8, 10-Apr-2018
1784,Revenue,CAHD,Bed Purchasing - Southmead Hospital,Permanent Nursing,Leonard Cheshire  National Account Centr,1820.08, 10-Apr-2018
1785,Revenue,CAHD,Bed Purchasing - Southmead Hospital,Permanent Nursing,Leonard Cheshire  National Account Centr,1786.14, 10-Apr-2018
1786,Revenue,CAHD,Bed Purchasing - North,Permanent Nursing,Leonard Cheshire  National Account Centr,1992.4, 10-Apr-2018
1787,Revenue,CAHD,Bed Purchasing - North,Permanent Nursing,Leonard Cheshire  National Account Centr,1955.26, 10-Apr-2018
1788,Revenue,CAHD,EARLY YEARS DISABILITY  ACCES FUND,Preventative Assistance,Lincombe Barn Playgroup,615, 26-Apr-2018
1789,Revenue,CAHD,18-25 Year Olds,Permanent Residential,Linden House,4915.24, 10-Apr-2018
1790,Revenue,CAHD,18-25 Year Olds,Permanent Residential,Linden House,4823.6, 10-Apr-2018
1791,Revenue,CAHD,Bed Purchasing - North,Permanent Residential,Linden House,4183.84, 10-Apr-2018
1792,Revenue,CAHD,Bed Purchasing - North,Permanent Residential,Linden House,4105.82, 10-Apr-2018
1793,Revenue,CAHD,Bed Purchasing - South,Permanent Residential,Linden House,4297.98, 10-Apr-2018
1794,Revenue,CAHD,Bed Purchasing - South,Permanent Residential,Linden House,4217.84, 10-Apr-2018
1795,Revenue,CAHD,Bed purchasing -S28A  Under 65 - North,Permanent Residential,Linden House,6187.96, 10-Apr-2018
1796,Revenue,CAHD,Bed purchasing -S28A  Under 65 - North,Permanent Residential,Linden House,6072.58, 10-Apr-2018
1797,Revenue,CAHD,Bed Purchasing - South,Permanent Residential,Little Croft,1046.28, 10-Apr-2018
1798,Revenue,CAHD,Bed Purchasing - South,Permanent Residential,Little Croft,1026.78, 10-Apr-2018
1799,Revenue,CAHD,Bed Purchasing - Southmead Hospital,Permanent Residential,Little Croft,1630.4, 10-Apr-2018
1800,Revenue,CAHD,Bed Purchasing - Southmead Hospital,Permanent Residential,Little Croft,1600, 10-Apr-2018
1801,Revenue,CAHD,Bed Purchasing - North,Permanent Residential,Little Croft,978.02, 10-Apr-2018
1802,Revenue,CAHD,Bed Purchasing - North,Permanent Residential,Little Croft,943.12, 10-Apr-2018
1803,Revenue,CAHD,Bed Purchasing - Southmead Hospital,Permanent Residential,Little Croft,1150.92, 10-Apr-2018
1804,Revenue,CAHD,Bed Purchasing - Southmead Hospital,Permanent Residential,Little Croft,1129.46, 10-Apr-2018
1805,Revenue,CAHD,Bed Purchasing - South,Permanent Residential,Little Croft,1528.5, 10-Apr-2018
1806,Revenue,CAHD,Bed Purchasing - South,Permanent Residential,Little Croft,1500, 10-Apr-2018
1807,Revenue,CAHD,Bed Purchasing - South,Permanent Residential,Little Croft,1187.1, 10-Apr-2018
1808,Revenue,CAHD,Bed Purchasing - South,Permanent Residential,Little Croft,1164.96, 10-Apr-2018
1809,Revenue,CAHD,Bed Purchasing - Southmead Hospital,Permanent Residential,Little Croft,1528.5, 10-Apr-2018
1810,Revenue,CAHD,Bed Purchasing - Southmead Hospital,Permanent Residential,Little Croft,1500, 10-Apr-2018
1811,Revenue,CAHD,Bed Purchasing - Southmead Hospital,Permanent Residential,Little Croft,1393.54, 10-Apr-2018
1812,Revenue,CAHD,Bed Purchasing - Southmead Hospital,Permanent Residential,Little Croft,1367.56, 10-Apr-2018
1813,Revenue,CAHD,Bed Purchasing - South,Permanent Residential,Little Croft,978.02, 10-Apr-2018
1814,Revenue,CAHD,Bed Purchasing - South,Permanent Residential,Little Croft,943.12, 10-Apr-2018
1815,Revenue,CAHD,Bed Purchasing - Southmead Hospital,Permanent Residential,Little Croft,1393.54, 10-Apr-2018
1816,Revenue,CAHD,Bed Purchasing - Southmead Hospital,Permanent Residential,Little Croft,1367.56, 10-Apr-2018
1817,Revenue,CAHD,Bed Purchasing - Southmead Hospital,Permanent Residential,Little Croft,1209.36, 10-Apr-2018
1818,Revenue,CAHD,Bed Purchasing - Southmead Hospital,Permanent Residential,Little Croft,1186.82, 10-Apr-2018
1819,Revenue,CAHD,Bed Purchasing - Southmead Hospital,Permanent Residential,Little Croft,968.52, 10-Apr-2018
1820,Revenue,CAHD,Bed Purchasing - Southmead Hospital,Permanent Residential,Little Croft,933.96, 10-Apr-2018
1821,Revenue,CAHD,Bed Purchasing - Southmead Hospital,Permanent Residential,Little Croft,1062.38, 10-Apr-2018
1822,Revenue,CAHD,Bed Purchasing - Southmead Hospital,Permanent Residential,Little Croft,1024.48, 10-Apr-2018
1823,Revenue,CAHD,Bed Purchasing - Southmead Hospital,Permanent Residential,Little Croft,1393.54, 10-Apr-2018
1824,Revenue,CAHD,Bed Purchasing - Southmead Hospital,Permanent Residential,Little Croft,1367.56, 10-Apr-2018
1825,Revenue,CAHD,Bed Purchasing - Southmead Hospital,Permanent Residential,Little Croft,978.02, 10-Apr-2018
1826,Revenue,CAHD,Bed Purchasing - Southmead Hospital,Permanent Residential,Little Croft,943.12, 10-Apr-2018
1827,Revenue,CAHD,Bed Purchasing - South,Permanent Residential,Little Croft,1187.1, 10-Apr-2018
1828,Revenue,CAHD,Bed Purchasing - South,Permanent Residential,Little Croft,1164.96, 10-Apr-2018
1829,Revenue,CAHD,Bed Purchasing - South,Permanent Residential,Little Croft,1528.5, 10-Apr-2018
1830,Revenue,CAHD,Bed Purchasing - South,Permanent Residential,Little Croft,1500, 10-Apr-2018
1831,Revenue,CAHD,Bed Purchasing - Southmead Hospital,Permanent Residential,Little Croft,1393.54, 10-Apr-2018
1832,Revenue,CAHD,Bed Purchasing - Southmead Hospital,Permanent Residential,Little Croft,1367.56, 10-Apr-2018
1833,Revenue,CAHD,Bed Purchasing - Southmead Hospital,Respite Planned - Residential,Little Croft,1600, 10-Apr-2018
1834,Revenue,CAHD,Bed Purchasing - South,Permanent Nursing,Little Croft,1269.54, 10-Apr-2018
1835,Revenue,CAHD,Bed Purchasing - South,Fees & Charges Income - General,Little Croft,800.79, 10-Apr-2018
1836,Revenue,CAHD,Bed Purchasing - Southmead Hospital,Permanent Residential,Little Croft,978.02, 10-Apr-2018
1837,Revenue,CAHD,Bed Purchasing - Southmead Hospital,Permanent Residential,Little Croft,943.12, 10-Apr-2018
1838,Revenue,CAHD,Bed Purchasing - Southmead Hospital,Permanent Residential,Little Croft,978.02, 10-Apr-2018
1839,Revenue,CAHD,Bed Purchasing - Southmead Hospital,Permanent Residential,Little Croft,943.12, 10-Apr-2018
1840,Revenue,CAHD,Bed Purchasing - South,Permanent Residential,Little Croft,1135.48, 10-Apr-2018
1841,Revenue,CAHD,Bed Purchasing - South,Permanent Residential,Little Croft,1114.3, 10-Apr-2018
1842,Revenue,CAHD,Bed Purchasing - North,Permanent Residential,Littlecroft Residential Homes  Longcroft,3596.14, 10-Apr-2018
1843,Revenue,CAHD,Bed Purchasing - North,Permanent Residential,Littlecroft Residential Homes  Longcroft,3529.08, 10-Apr-2018
1844,Revenue,CAHD,Supporting People Programme,Grants to Voluntary Bodies,Liverty Limited,2600.1, 06-Apr-2018
1845,Revenue,CAHD,Supporting People Programme,Grants to Voluntary Bodies,Liverty Limited,838.09, 06-Apr-2018
1846,Revenue,CAHD,Supporting People Programme,Grants to Voluntary Bodies,Liverty Limited,1874.07, 06-Apr-2018
1847,Revenue,CAHD,Supporting People Programme,Grants to Voluntary Bodies,Liverty Limited,2592.97, 06-Apr-2018
1848,Revenue,CAHD,Supporting People Programme,Grants to Voluntary Bodies,Liverty Limited,889.27, 06-Apr-2018
1849,Revenue,CAHD,18-25 Year Olds,Supported Living,Lloyds TSB Commercial Finance Limited,5515.26, 16-Apr-2018
1850,Revenue,CAHD,Home Care - Elderly - South,Day Care / Social Activities,Lloyds TSB Commercial Finance Limited,5697.88, 16-Apr-2018
1851,Revenue,CAHD,Home Care - Elderly - South,Other Small Contracts,Lloyds TSB Commercial Finance Limited,11375.54, 16-Apr-2018
1852,Revenue,CAHD,Home Care - Elderly - South,Supported Living,Lloyds TSB Commercial Finance Limited,7033.64, 16-Apr-2018
1853,Revenue,CAHD,Home Care - Elderly - North,Day Care / Social Activities,Lloyds TSB Commercial Finance Limited,215.04, 16-Apr-2018
1854,Revenue,CAHD,Home Care - Elderly - North,Supported Living,Lloyds TSB Commercial Finance Limited,2007.04, 16-Apr-2018
1855,Revenue,CAHD,Younger MH non-res purchasing,Other Small Contracts,Lloyds TSB Commercial Finance Limited,10896.96, 16-Apr-2018
1856,Revenue,CAHD,18-25 Year Olds,Supported Living,Lloyds TSB Commercial Finance Limited,5510.59, 18-Apr-2018
1857,Revenue,CAHD,Home Care - Elderly - South,Day Care / Social Activities,Lloyds TSB Commercial Finance Limited,5724.76, 18-Apr-2018
1858,Revenue,CAHD,Home Care - Elderly - South,Other Small Contracts,Lloyds TSB Commercial Finance Limited,11405.05, 18-Apr-2018
1859,Revenue,CAHD,Home Care - Elderly - South,Supported Living,Lloyds TSB Commercial Finance Limited,6364.46, 18-Apr-2018
1860,Revenue,CAHD,Home Care - Elderly - North,Day Care / Social Activities,Lloyds TSB Commercial Finance Limited,215.04, 18-Apr-2018
1861,Revenue,CAHD,Home Care - Elderly - North,Supported Living,Lloyds TSB Commercial Finance Limited,1599.36, 18-Apr-2018
1862,Revenue,CAHD,Younger MH non-res purchasing,Other Small Contracts,Lloyds TSB Commercial Finance Limited,10966.92, 18-Apr-2018
1863,Revenue,CAHD,18-25 Year Olds,Supported Living,Lloyds TSB Commercial Finance Limited,5508.14, 30-Apr-2018
1864,Revenue,CAHD,Home Care - Elderly - South,Day Care / Social Activities,Lloyds TSB Commercial Finance Limited,5756.12, 30-Apr-2018
